Workbook

Sheet Vstup
A1: STARTOVNÍ LISTINA
A2: Název závodu : | C2: COMPAK SPORTING SPECIÁL
C3: 160 terčů
A4: Druh závodu : | C4: COMPAK SPORTING
A5: Datum konání : | C5: 3.6.2012
A7: Skupina číslo | B7: Start. číslo | C7: Příjmení, jméno | D7: Kategorie
D8: ASAT | E8: Ručně | G8: ="Počet střelců : "&Data!C14 -> Počet střelců : 38
A9: 1 | B9: 1 | C9: Dolanský Jan | D9: C
B10: 2 | C10: Koloc Martin | D10: B
B11: 3 | C11: Greš Marek | D11: =IF(E11<>"",E11,VLOOKUP(C11,ASAT!$A$4:$B$500,2,0)) -> C
B12: 4 | C12: Hoštička Eduard | D12: =IF(E12<>"",E12,VLOOKUP(C12,ASAT!$A$4:$B$500,2,0)) -> C
B13: 5 | C13: Černošek Milan | D13: =IF(E13<>"",E13,VLOOKUP(C13,ASAT!$A$4:$B$500,2,0)) -> A
B14: 6 | C14: Vadlejch Josef | D14: =IF(E14<>"",E14,VLOOKUP(C14,ASAT!$A$4:$B$500,2,0)) -> V
A15: 2 | B15: 7 | C15: Otáhal Milan | D15: V
B16: 8 | C16: Zigo Martin | D16: =IF(E16<>"",E16,VLOOKUP(C16,ASAT!$A$4:$B$500,2,0)) -> A | E16: A
B17: 9 | C17: Uher Jaromír | D17: =IF(E17<>"",E17,VLOOKUP(C17,ASAT!$A$4:$B$500,2,0)) -> V
B18: 10 | C18: Mikulka Peter | D18: =IF(E18<>"",E18,VLOOKUP(C18,ASAT!$A$4:$B$500,2,0)) -> C
B19: 11 | C19: Hedvik Jaromír | D19: =IF(E19<>"",E19,VLOOKUP(C19,ASAT!$A$4:$B$500,2,0)) -> C
B20: 12 | C20: Jankovský Jakub | D20: =IF(E20<>"",E20,VLOOKUP(C20,ASAT!$A$4:$B$500,2,0)) -> J | E20: J
A21: 3 | B21: 13 | C21: Husar Vladimír | D21: =IF(E21<>"",E21,VLOOKUP(C21,ASAT!$A$4:$B$500,2,0)) -> B | E21: B
B22: 14 | C22: Zázvorka Pavel | D22: =IF(E22<>"",E22,VLOOKUP(C22,ASAT!$A$4:$B$500,2,0)) -> A
B23: 15 | C23: Štengl Jiří | D23: =IF(E23<>"",E23,VLOOKUP(C23,ASAT!$A$4:$B$500,2,0)) -> A
B24: 16 | C24: Korál Petr | D24: =IF(E24<>"",E24,VLOOKUP(C24,ASAT!$A$4:$B$500,2,0)) -> C
B25: 17 | C25: Divíšek Martin | D25: =IF(E25<>"",E25,VLOOKUP(C25,ASAT!$A$4:$B$500,2,0)) -> A
B26: 18 | C26: Divíšek Martin ml. | D26: =IF(E26<>"",E26,VLOOKUP(C26,ASAT!$A$4:$B$500,2,0)) -> J
A27: 4 | B27: 19 | C27: Jirků Milan | D27: =IF(E27<>"",E27,VLOOKUP(C27,ASAT!$A$4:$B$500,2,0)) -> C | E27: C
B28: 20 | C28: Kotrc Karel | D28: =IF(E28<>"",E28,VLOOKUP(C28,ASAT!$A$4:$B$500,2,0)) -> A
B29: 21 | C29: Říha Milan | D29: =IF(E29<>"",E29,VLOOKUP(C29,ASAT!$A$4:$B$500,2,0)) -> V | E29: V
B30: 22 | C30: Mrázek Lubomír | D30: =IF(E30<>"",E30,VLOOKUP(C30,ASAT!$A$4:$B$500,2,0)) -> C | E30: C
B31: 23 | C31: Hřebec Jan ml. | D31: =IF(E31<>"",E31,VLOOKUP(C31,ASAT!$A$4:$B$500,2,0)) -> J
B32: 24 | C32: Hřebec Jan | D32: =IF(E32<>"",E32,VLOOKUP(C32,ASAT!$A$4:$B$500,2,0)) -> A | E32: A
A33: 5 | B33: 25 | C33: Lengyel Ivan | D33: =IF(E33<>"",E33,VLOOKUP(C33,ASAT!$A$4:$B$500,2,0)) -> B
B34: 26 | C34: Lengyel Jan | D34: =IF(E34<>"",E34,VLOOKUP(C34,ASAT!$A$4:$B$500,2,0)) -> B | E34: B
B35: 27 | C35: Lengyel Jiří | D35: =IF(E35<>"",E35,VLOOKUP(C35,ASAT!$A$4:$B$500,2,0)) -> B
B36: 28 | C36: Jelínek Jiří | D36: =IF(E36<>"",E36,VLOOKUP(C36,ASAT!$A$4:$B$500,2,0)) -> V
B37: 29 | C37: Horák František | D37: =IF(E37<>"",E37,VLOOKUP(C37,ASAT!$A$4:$B$500,2,0)) -> C
B38: 30 | C38: Kubík Jindřich | D38: =IF(E38<>"",E38,VLOOKUP(C38,ASAT!$A$4:$B$500,2,0)) -> V
A39: 6 | B39: 31 | C39: Neuvirt Martin | D39: B
B40: 32 | C40: Neuvirt Václav | D40: =IF(E40<>"",E40,VLOOKUP(C40,ASAT!$A$4:$B$500,2,0)) -> V | E40: V
B41: 33 | C41: Štícha Lubomír | D41: =IF(E41<>"",E41,VLOOKUP(C41,ASAT!$A$4:$B$500,2,0)) -> B
B42: 34 | C42: Vavrečka Michal | D42: =IF(E42<>"",E42,VLOOKUP(C42,ASAT!$A$4:$B$500,2,0)) -> C
B43: 35 | C43: Jelínek Aleš | D43: =IF(E43<>"",E43,VLOOKUP(C43,ASAT!$A$4:$B$500,2,0)) -> C | E43: C
B44: 36 | D44: =IF(E44<>"",E44,VLOOKUP(C44,ASAT!$A$4:$B$500,2,0)) -> 
A45: 7 | B45: 37 | C45: Wlodarczyk Remigiusz | D45: =IF(E45<>"",E45,VLOOKUP(C45,ASAT!$A$4:$B$500,2,0)) -> A | E45: A
B46: 38 | C46: Jedros Witold | D46: =IF(E46<>"",E46,VLOOKUP(C46,ASAT!$A$4:$B$500,2,0)) -> C | E46: C
B47: 39 | C47: Cieplik Waldemar | D47: =IF(E47<>"",E47,VLOOKUP(C47,ASAT!$A$4:$B$500,2,0)) -> C | E47: C
B48: 40 | D48: =IF(E48<>"",E48,VLOOKUP(C48,ASAT!$A$4:$B$500,2,0)) -> 
B49: 41 | D49: =IF(E49<>"",E49,VLOOKUP(C49,ASAT!$A$4:$B$500,2,0)) -> 
B50: 42 | D50: =IF(E50<>"",E50,VLOOKUP(C50,ASAT!$A$4:$B$500,2,0)) -> 
A51: 8 | B51: 43 | D51: =IF(E51<>"",E51,VLOOKUP(C51,ASAT!$A$4:$B$500,2,0)) -> 
B52: 44 | D52: =IF(E52<>"",E52,VLOOKUP(C52,ASAT!$A$4:$B$500,2,0)) -> 
B53: 45 | D53: =IF(E53<>"",E53,VLOOKUP(C53,ASAT!$A$4:$B$500,2,0)) -> 
B54: 46 | D54: =IF(E54<>"",E54,VLOOKUP(C54,ASAT!$A$4:$B$500,2,0)) -> 
B55: 47 | D55: =IF(E55<>"",E55,VLOOKUP(C55,ASAT!$A$4:$B$500,2,0)) -> 
B56: 48 | D56: =IF(E56<>"",E56,VLOOKUP(C56,ASAT!$A$4:$B$500,2,0)) -> 
A57: 9 | B57: 49 | D57: =IF(E57<>"",E57,VLOOKUP(C57,ASAT!$A$4:$B$500,2,0)) -> 
B58: 50 | D58: =IF(E58<>"",E58,VLOOKUP(C58,ASAT!$A$4:$B$500,2,0)) -> 
B59: 51 | D59: =IF(E59<>"",E59,VLOOKUP(C59,ASAT!$A$4:$B$500,2,0)) -> 
B60: 52 | D60: =IF(E60<>"",E60,VLOOKUP(C60,ASAT!$A$4:$B$500,2,0)) -> 
B61: 53 | D61: =IF(E61<>"",E61,VLOOKUP(C61,ASAT!$A$4:$B$500,2,0)) -> 
B62: 54 | D62: =IF(E62<>"",E62,VLOOKUP(C62,ASAT!$A$4:$B$500,2,0)) -> 
A63: 10 | B63: 55 | D63: =IF(E63<>"",E63,VLOOKUP(C63,ASAT!$A$4:$B$500,2,0)) -> 
B64: 56 | D64: =IF(E64<>"",E64,VLOOKUP(C64,ASAT!$A$4:$B$500,2,0)) -> 
B65: 57 | D65: =IF(E65<>"",E65,VLOOKUP(C65,ASAT!$A$4:$B$500,2,0)) -> 
B66: 58 | D66: =IF(E66<>"",E66,VLOOKUP(C66,ASAT!$A$4:$B$500,2,0)) -> 
B67: 59 | D67: =IF(E67<>"",E67,VLOOKUP(C67,ASAT!$A$4:$B$500,2,0)) -> 
B68: 60 | D68: =IF(E68<>"",E68,VLOOKUP(C68,ASAT!$A$4:$B$500,2,0)) -> 
A69: 11 | B69: 61 | D69: =IF(E69<>"",E69,VLOOKUP(C69,ASAT!$A$4:$B$500,2,0)) -> 
B70: 62 | D70: =IF(E70<>"",E70,VLOOKUP(C70,ASAT!$A$4:$B$500,2,0)) -> 
B71: 63 | D71: =IF(E71<>"",E71,VLOOKUP(C71,ASAT!$A$4:$B$500,2,0)) -> 
B72: 64 | D72: =IF(E72<>"",E72,VLOOKUP(C72,ASAT!$A$4:$B$500,2,0)) -> 
B73: 65 | D73: =IF(E73<>"",E73,VLOOKUP(C73,ASAT!$A$4:$B$500,2,0)) -> 
B74: 66 | D74: =IF(E74<>"",E74,VLOOKUP(C74,ASAT!$A$4:$B$500,2,0)) -> 
A75: 12 | B75: 67 | D75: =IF(E75<>"",E75,VLOOKUP(C75,ASAT!$A$4:$B$500,2,0)) -> 
B76: 68 | D76: =IF(E76<>"",E76,VLOOKUP(C76,ASAT!$A$4:$B$500,2,0)) -> 
B77: 69 | D77: =IF(E77<>"",E77,VLOOKUP(C77,ASAT!$A$4:$B$500,2,0)) -> 
B78: 70 | D78: =IF(E78<>"",E78,VLOOKUP(C78,ASAT!$A$4:$B$500,2,0)) -> 
B79: 71 | D79: =IF(E79<>"",E79,VLOOKUP(C79,ASAT!$A$4:$B$500,2,0)) -> 
B80: 72 | D80: =IF(E80<>"",E80,VLOOKUP(C80,ASAT!$A$4:$B$500,2,0)) -> 
A81: 13 | B81: 73 | D81: =IF(E81<>"",E81,VLOOKUP(C81,ASAT!$A$4:$B$500,2,0)) -> 
B82: 74 | D82: =IF(E82<>"",E82,VLOOKUP(C82,ASAT!$A$4:$B$500,2,0)) -> 
B83: 75 | D83: =IF(E83<>"",E83,VLOOKUP(C83,ASAT!$A$4:$B$500,2,0)) -> 
B84: 76 | D84: =IF(E84<>"",E84,VLOOKUP(C84,ASAT!$A$4:$B$500,2,0)) -> 
B85: 77 | D85: =IF(E85<>"",E85,VLOOKUP(C85,ASAT!$A$4:$B$500,2,0)) -> 
B86: 78 | D86: =IF(E86<>"",E86,VLOOKUP(C86,ASAT!$A$4:$B$500,2,0)) -> 
A87: 14 | B87: 79 | D87: =IF(E87<>"",E87,VLOOKUP(C87,ASAT!$A$4:$B$500,2,0)) -> 
B88: 80 | D88: =IF(E88<>"",E88,VLOOKUP(C88,ASAT!$A$4:$B$500,2,0)) -> 
B89: 81 | D89: =IF(E89<>"",E89,VLOOKUP(C89,ASAT!$A$4:$B$500,2,0)) -> 
B90: 82 | D90: =IF(E90<>"",E90,VLOOKUP(C90,ASAT!$A$4:$B$500,2,0)) -> 
B91: 83 | D91: =IF(E91<>"",E91,VLOOKUP(C91,ASAT!$A$4:$B$500,2,0)) -> 
B92: 84 | D92: =IF(E92<>"",E92,VLOOKUP(C92,ASAT!$A$4:$B$500,2,0)) -> 
A93: 15 | B93: 85 | D93: =IF(E93<>"",E93,VLOOKUP(C93,ASAT!$A$4:$B$500,2,0)) -> 
B94: 86 | D94: =IF(E94<>"",E94,VLOOKUP(C94,ASAT!$A$4:$B$500,2,0)) -> 
B95: 87 | D95: =IF(E95<>"",E95,VLOOKUP(C95,ASAT!$A$4:$B$500,2,0)) -> 
B96: 88 | D96: =IF(E96<>"",E96,VLOOKUP(C96,ASAT!$A$4:$B$500,2,0)) -> 
B97: 89 | D97: =IF(E97<>"",E97,VLOOKUP(C97,ASAT!$A$4:$B$500,2,0)) -> 
B98: 90 | D98: =IF(E98<>"",E98,VLOOKUP(C98,ASAT!$A$4:$B$500,2,0)) -> 
A99: 16 | B99: 91 | D99: =IF(E99<>"",E99,VLOOKUP(C99,ASAT!$A$4:$B$500,2,0)) -> 
B100: 92 | D100: =IF(E100<>"",E100,VLOOKUP(C100,ASAT!$A$4:$B$500,2,0)) -> 
B101: 93 | D101: =IF(E101<>"",E101,VLOOKUP(C101,ASAT!$A$4:$B$500,2,0)) -> 
B102: 94 | D102: =IF(E102<>"",E102,VLOOKUP(C102,ASAT!$A$4:$B$500,2,0)) -> 
B103: 95 | D103: =IF(E103<>"",E103,VLOOKUP(C103,ASAT!$A$4:$B$500,2,0)) -> 
B104: 96 | D104: =IF(E104<>"",E104,VLOOKUP(C104,ASAT!$A$4:$B$500,2,0)) -> 
A105: 17 | B105: 97 | D105: =IF(E105<>"",E105,VLOOKUP(C105,ASAT!$A$4:$B$500,2,0)) -> 
B106: 98 | D106: =IF(E106<>"",E106,VLOOKUP(C106,ASAT!$A$4:$B$500,2,0)) -> 
B107: 99 | D107: =IF(E107<>"",E107,VLOOKUP(C107,ASAT!$A$4:$B$500,2,0)) -> 
B108: 100 | D108: =IF(E108<>"",E108,VLOOKUP(C108,ASAT!$A$4:$B$500,2,0)) -> 
B109: 101 | D109: =IF(E109<>"",E109,VLOOKUP(C109,ASAT!$A$4:$B$500,2,0)) -> 
B110: 102 | D110: =IF(E110<>"",E110,VLOOKUP(C110,ASAT!$A$4:$B$500,2,0)) -> 
A111: 18 | B111: 103 | D111: =IF(E111<>"",E111,VLOOKUP(C111,ASAT!$A$4:$B$500,2,0)) -> 
B112: 104 | D112: =IF(E112<>"",E112,VLOOKUP(C112,ASAT!$A$4:$B$500,2,0)) -> 
B113: 105 | D113: =IF(E113<>"",E113,VLOOKUP(C113,ASAT!$A$4:$B$500,2,0)) -> 
B114: 106 | D114: =IF(E114<>"",E114,VLOOKUP(C114,ASAT!$A$4:$B$500,2,0)) -> 
B115: 107 | D115: =IF(E115<>"",E115,VLOOKUP(C115,ASAT!$A$4:$B$500,2,0)) -> 
B116: 108 | D116: =IF(E116<>"",E116,VLOOKUP(C116,ASAT!$A$4:$B$500,2,0)) -> 
A117: 19 | B117: 109 | D117: =IF(E117<>"",E117,VLOOKUP(C117,ASAT!$A$4:$B$500,2,0)) -> 
B118: 110 | D118: =IF(E118<>"",E118,VLOOKUP(C118,ASAT!$A$4:$B$500,2,0)) -> 
B119: 111 | D119: =IF(E119<>"",E119,VLOOKUP(C119,ASAT!$A$4:$B$500,2,0)) -> 
B120: 112 | D120: =IF(E120<>"",E120,VLOOKUP(C120,ASAT!$A$4:$B$500,2,0)) -> 
B121: 113 | D121: =IF(E121<>"",E121,VLOOKUP(C121,ASAT!$A$4:$B$500,2,0)) -> 
B122: 114 | D122: =IF(E122<>"",E122,VLOOKUP(C122,ASAT!$A$4:$B$500,2,0)) -> 
A123: 20 | B123: 115 | D123: =IF(E123<>"",E123,VLOOKUP(C123,ASAT!$A$4:$B$500,2,0)) -> 
B124: 116 | D124: =IF(E124<>"",E124,VLOOKUP(C124,ASAT!$A$4:$B$500,2,0)) -> 
B125: 117 | D125: =IF(E125<>"",E125,VLOOKUP(C125,ASAT!$A$4:$B$500,2,0)) -> 
B126: 118 | D126: =IF(E126<>"",E126,VLOOKUP(C126,ASAT!$A$4:$B$500,2,0)) -> 
B127: 119 | D127: =IF(E127<>"",E127,VLOOKUP(C127,ASAT!$A$4:$B$500,2,0)) -> 
B128: 120 | D128: =IF(E128<>"",E128,VLOOKUP(C128,ASAT!$A$4:$B$500,2,0)) -> 

Sheet Vysledky-doplneni
A1: Doplnění výsledků
E4: COMPAK SPORTING SPECIÁL - 160 TERČŮ
A5: Skupina číslo | B5: Start. číslo | C5: Příjmení, jméno | D5: Kategorie | E5: Skeet I | F5: Skeet II | G5: Trap I | H5: Trap II | I5: Skeet1/2 | J5: Skeet II/2 | K5: Trap I/2 | L5: Trap II/2
A7: 1 | B7: =IF(Vstup!C9<>"",Vstup!B9,"") -> 1 | C7: =IF(Vstup!C9<>"",Vstup!C9,"") -> Dolanský Jan | D7: =IF(Vstup!C9<>"",Vstup!D9,"") -> C | E7: 15 | F7: 4 | G7: 13 | H7: 13 | I7: 13 | J7: 3 | K7: 10 | L7: 14
B8: =IF(Vstup!C10<>"",Vstup!B10,"") -> 2 | C8: =IF(Vstup!C10<>"",Vstup!C10,"") -> Koloc Martin | D8: =IF(Vstup!C10<>"",Vstup!D10,"") -> B | E8: 13 | F8: 11 | G8: 17 | H8: 17 | I8: 9 | J8: 7 | K8: 14 | L8: 13
B9: =IF(Vstup!C11<>"",Vstup!B11,"") -> 3 | C9: =IF(Vstup!C11<>"",Vstup!C11,"") -> Greš Marek | D9: =IF(Vstup!C11<>"",Vstup!D11,"") -> C | E9: 14 | F9: 8 | G9: 10 | H9: 11 | I9: 10 | J9: 6 | K9: 8 | L9: 13
B10: 4 | C10: Hoštička Eduard | D10: C | E10: 13 | F10: 7 | G10: 13 | H10: 9 | I10: 11 | J10: 9 | K10: 12 | L10: 10
B11: 5 | C11: Černošek Milan | D11: A | E11: 20 | F11: 16 | G11: 13 | H11: 15 | I11: 15 | J11: 10 | K11: 13 | L11: 13
B12: 6 | C12: Vadlejch Josef | D12: =IF(Vstup!C14<>"",Vstup!D14,"") -> V | E12: 13 | F12: 12 | G12: 16 | H12: 13 | I12: 13 | J12: 11 | K12: 14 | L12: 14
A13: 2 | B13: =IF(Vstup!C15<>"",Vstup!B15,"") -> 7 | C13: =IF(Vstup!C15<>"",Vstup!C15,"") -> Otáhal Milan | D13: =IF(Vstup!C15<>"",Vstup!D15,"") -> V | E13: 18 | F13: 13 | G13: 14 | H13: 17 | I13: 18 | J13: 14 | K13: 14 | L13: 13
B14: =IF(Vstup!C16<>"",Vstup!B16,"") -> 8 | C14: =IF(Vstup!C16<>"",Vstup!C16,"") -> Zigo Martin | D14: =IF(Vstup!C16<>"",Vstup!D16,"") -> A | E14: 12 | F14: 11 | G14: 16 | H14: 15 | I14: 18 | J14: 9 | K14: 17 | L14: 17
B15: =IF(Vstup!C17<>"",Vstup!B17,"") -> 9 | C15: =IF(Vstup!C17<>"",Vstup!C17,"") -> Uher Jaromír | D15: =IF(Vstup!C17<>"",Vstup!D17,"") -> V | E15: 18 | F15: 16 | G15: 17 | H15: 18 | I15: 17 | J15: 13 | K15: 14 | L15: 17
B16: =IF(Vstup!C18<>"",Vstup!B18,"") -> 10 | C16: =IF(Vstup!C18<>"",Vstup!C18,"") -> Mikulka Peter | D16: =IF(Vstup!C18<>"",Vstup!D18,"") -> C | E16: 15 | F16: 8 | G16: 15 | H16: 12 | I16: 17 | J16: 4 | K16: 13 | L16: 15
B17: =IF(Vstup!C19<>"",Vstup!B19,"") -> 11 | C17: =IF(Vstup!C19<>"",Vstup!C19,"") -> Hedvik Jaromír | D17: =IF(Vstup!C19<>"",Vstup!D19,"") -> C | E17: 13 | F17: 15 | G17: 13 | H17: 11 | I17: 12 | J17: 9 | K17: 5 | L17: 7
B18: =IF(Vstup!C20<>"",Vstup!B20,"") -> 12 | C18: =IF(Vstup!C20<>"",Vstup!C20,"") -> Jankovský Jakub | D18: =IF(Vstup!C20<>"",Vstup!D20,"") -> J | E18: 17 | F18: 17 | G18: 17 | H18: 18 | I18: 14 | J18: 9 | K18: 17 | L18: 17
A19: 3 | B19: =IF(Vstup!C21<>"",Vstup!B21,"") -> 13 | C19: =IF(Vstup!C21<>"",Vstup!C21,"") -> Husar Vladimír | D19: =IF(Vstup!C21<>"",Vstup!D21,"") -> B | E19: 16 | F19: 7 | G19: 16 | H19: 10 | I19: 14 | J19: 10 | K19: 17 | L19: 13
B20: =IF(Vstup!C22<>"",Vstup!B22,"") -> 14 | C20: =IF(Vstup!C22<>"",Vstup!C22,"") -> Zázvorka Pavel | D20: =IF(Vstup!C22<>"",Vstup!D22,"") -> A | E20: 19 | F20: 18 | G20: 17 | H20: 18 | I20: 18 | J20: 17 | K20: 17 | L20: 18
B21: =IF(Vstup!C23<>"",Vstup!B23,"") -> 15 | C21: =IF(Vstup!C23<>"",Vstup!C23,"") -> Štengl Jiří | D21: =IF(Vstup!C23<>"",Vstup!D23,"") -> A | E21: 17 | F21: 16 | G21: 18 | H21: 14 | I21: 14 | J21: 11 | K21: 9 | L21: 15
B22: =IF(Vstup!C24<>"",Vstup!B24,"") -> 16 | C22: =IF(Vstup!C24<>"",Vstup!C24,"") -> Korál Petr | D22: =IF(Vstup!C24<>"",Vstup!D24,"") -> C | E22: 12 | F22: 13 | G22: 10 | H22: 14 | I22: 13 | J22: 8 | K22: 9 | L22: 14
B23: =IF(Vstup!C25<>"",Vstup!B25,"") -> 17 | C23: =IF(Vstup!C25<>"",Vstup!C25,"") -> Divíšek Martin | D23: =IF(Vstup!C25<>"",Vstup!D25,"") -> A | E23: 17 | F23: 16 | G23: 19 | H23: 16 | I23: 17 | J23: 10 | K23: 16 | L23: 14
B24: =IF(Vstup!C26<>"",Vstup!B26,"") -> 18 | C24: =IF(Vstup!C26<>"",Vstup!C26,"") -> Divíšek Martin ml. | D24: =IF(Vstup!C26<>"",Vstup!D26,"") -> J | E24: 14 | F24: 10 | G24: 12 | H24: 10 | I24: 13 | J24: 8 | K24: 11 | L24: 10
A25: 4 | B25: =IF(Vstup!C27<>"",Vstup!B27,"") -> 19 | C25: =IF(Vstup!C27<>"",Vstup!C27,"") -> Jirků Milan | D25: =IF(Vstup!C27<>"",Vstup!D27,"") -> C | E25: 9 | F25: 10 | G25: 10 | H25: 10 | I25: 8 | J25: 8 | K25: 10 | L25: 7
B26: =IF(Vstup!C28<>"",Vstup!B28,"") -> 20 | C26: =IF(Vstup!C28<>"",Vstup!C28,"") -> Kotrc Karel | D26: =IF(Vstup!C28<>"",Vstup!D28,"") -> A | E26: 18 | F26: 12 | G26: 16 | H26: 17 | I26: 16 | J26: 10 | K26: 15 | L26: 11
B27: =IF(Vstup!C29<>"",Vstup!B29,"") -> 21 | C27: =IF(Vstup!C29<>"",Vstup!C29,"") -> Říha Milan | D27: =IF(Vstup!C29<>"",Vstup!D29,"") -> V | E27: 18 | F27: 13 | G27: 17 | H27: 16 | I27: 10 | J27: 12 | K27: 14 | L27: 16
B28: =IF(Vstup!C30<>"",Vstup!B30,"") -> 22 | C28: =IF(Vstup!C30<>"",Vstup!C30,"") -> Mrázek Lubomír | D28: =IF(Vstup!C30<>"",Vstup!D30,"") -> C | E28: 15 | F28: 3 | G28: 15 | H28: 16 | I28: 7 | J28: 7 | K28: 13 | L28: 12
B29: =IF(Vstup!C31<>"",Vstup!B31,"") -> 23 | C29: =IF(Vstup!C31<>"",Vstup!C31,"") -> Hřebec Jan ml. | D29: =IF(Vstup!C31<>"",Vstup!D31,"") -> J | E29: 16 | F29: 14 | G29: 13 | H29: 13 | I29: 14 | J29: 7 | K29: 13 | L29: 17
B30: =IF(Vstup!C32<>"",Vstup!B32,"") -> 24 | C30: =IF(Vstup!C32<>"",Vstup!C32,"") -> Hřebec Jan | D30: =IF(Vstup!C32<>"",Vstup!D32,"") -> A | E30: 15 | F30: 15 | G30: 19 | H30: 17 | I30: 16 | J30: 13 | K30: 14 | L30: 16
A31: 5 | B31: =IF(Vstup!C33<>"",Vstup!B33,"") -> 25 | C31: =IF(Vstup!C33<>"",Vstup!C33,"") -> Lengyel Ivan | D31: =IF(Vstup!C33<>"",Vstup!D33,"") -> B | E31: 15 | F31: 11 | G31: 15 | H31: 15 | I31: 13 | J31: 8 | K31: 11 | L31: 15
B32: =IF(Vstup!C34<>"",Vstup!B34,"") -> 26 | C32: =IF(Vstup!C34<>"",Vstup!C34,"") -> Lengyel Jan | D32: =IF(Vstup!C34<>"",Vstup!D34,"") -> B | E32: 19 | F32: 14 | G32: 16 | H32: 14 | I32: 16 | J32: 12 | K32: 15 | L32: 16
B33: =IF(Vstup!C35<>"",Vstup!B35,"") -> 27 | C33: =IF(Vstup!C35<>"",Vstup!C35,"") -> Lengyel Jiří | D33: =IF(Vstup!C35<>"",Vstup!D35,"") -> B | E33: 16 | F33: 15 | G33: 13 | H33: 17 | I33: 13 | J33: 12 | K33: 14 | L33: 18
B34: =IF(Vstup!C36<>"",Vstup!B36,"") -> 28 | C34: =IF(Vstup!C36<>"",Vstup!C36,"") -> Jelínek Jiří | D34: =IF(Vstup!C36<>"",Vstup!D36,"") -> V | E34: 16 | F34: 11 | G34: 11 | H34: 11 | I34: 11 | J34: 6 | K34: 13 | L34: 6
B35: =IF(Vstup!C37<>"",Vstup!B37,"") -> 29 | C35: =IF(Vstup!C37<>"",Vstup!C37,"") -> Horák František | D35: =IF(Vstup!C37<>"",Vstup!D37,"") -> C | E35: 13 | F35: 11 | G35: 15 | H35: 12 | I35: 7 | J35: 6 | K35: 10 | L35: 15
B36: =IF(Vstup!C38<>"",Vstup!B38,"") -> 30 | C36: =IF(Vstup!C38<>"",Vstup!C38,"") -> Kubík Jindřich | D36: =IF(Vstup!C38<>"",Vstup!D38,"") -> V | E36: 11 | F36: 9 | G36: 12 | H36: 14 | I36: 13 | J36: 10 | K36: 11 | L36: 10
A37: 6 | B37: =IF(Vstup!C39<>"",Vstup!B39,"") -> 31 | C37: =IF(Vstup!C39<>"",Vstup!C39,"") -> Neuvirt Martin | D37: =IF(Vstup!C39<>"",Vstup!D39,"") -> B | E37: 13 | F37: 7 | G37: 13 | H37: 16 | I37: 7 | J37: 8 | K37: 14 | L37: 16
B38: =IF(Vstup!C40<>"",Vstup!B40,"") -> 32 | C38: =IF(Vstup!C40<>"",Vstup!C40,"") -> Neuvirt Václav | D38: =IF(Vstup!C40<>"",Vstup!D40,"") -> V | E38: 14 | F38: 12 | G38: 12 | H38: 12 | I38: 15 | J38: 11 | K38: 10 | L38: 8
B39: =IF(Vstup!C41<>"",Vstup!B41,"") -> 33 | C39: =IF(Vstup!C41<>"",Vstup!C41,"") -> Štícha Lubomír | D39: =IF(Vstup!C41<>"",Vstup!D41,"") -> B | E39: 17 | F39: 12 | G39: 13 | H39: 15 | I39: 15 | J39: 10 | K39: 15 | L39: 16
B40: =IF(Vstup!C42<>"",Vstup!B42,"") -> 34 | C40: =IF(Vstup!C42<>"",Vstup!C42,"") -> Vavrečka Michal | D40: =IF(Vstup!C42<>"",Vstup!D42,"") -> C | E40: 12 | F40: 7 | G40: 12 | H40: 11 | I40: 9 | J40: 5 | K40: 14 | L40: 11
B41: =IF(Vstup!C43<>"",Vstup!B43,"") -> 35 | C41: =IF(Vstup!C43<>"",Vstup!C43,"") -> Jelínek Aleš | D41: =IF(Vstup!C43<>"",Vstup!D43,"") -> C | E41: 14 | F41: 3 | G41: 10 | H41: 7 | I41: 8 | J41: 4 | K41: 4 | L41: 5
B42: =IF(Vstup!C44<>"",Vstup!B44,"") ->  | C42: =IF(Vstup!C44<>"",Vstup!C44,"") ->  | D42: =IF(Vstup!C44<>"",Vstup!D44,"") -> 
A43: 7 | B43: =IF(Vstup!C45<>"",Vstup!B45,"") -> 37 | C43: =IF(Vstup!C45<>"",Vstup!C45,"") -> Wlodarczyk Remigiusz | D43: =IF(Vstup!C45<>"",Vstup!D45,"") -> A | E43: 18 | F43: 13 | G43: 17 | H43: 17 | I43: 17 | J43: 12 | K43: 18 | L43: 18
B44: =IF(Vstup!C46<>"",Vstup!B46,"") -> 38 | C44: =IF(Vstup!C46<>"",Vstup!C46,"") -> Jedros Witold | D44: =IF(Vstup!C46<>"",Vstup!D46,"") -> C | E44: 14 | F44: 13 | G44: 13 | H44: 17 | I44: 11 | J44: 9 | K44: 12 | L44: 9
B45: =IF(Vstup!C47<>"",Vstup!B47,"") -> 39 | C45: =IF(Vstup!C47<>"",Vstup!C47,"") -> Cieplik Waldemar | D45: =IF(Vstup!C47<>"",Vstup!D47,"") -> C | E45: 13 | F45: 14 | G45: 17 | H45: 12 | I45: 16 | J45: 9 | K45: 16 | L45: 15
B46: =IF(Vstup!C48<>"",Vstup!B48,"") ->  | C46: =IF(Vstup!C48<>"",Vstup!C48,"") ->  | D46: =IF(Vstup!C48<>"",Vstup!D48,"") -> 
B47: =IF(Vstup!C49<>"",Vstup!B49,"") ->  | C47: =IF(Vstup!C49<>"",Vstup!C49,"") ->  | D47: =IF(Vstup!C49<>"",Vstup!D49,"") -> 
B48: =IF(Vstup!C50<>"",Vstup!B50,"") ->  | C48: =IF(Vstup!C50<>"",Vstup!C50,"") ->  | D48: =IF(Vstup!C50<>"",Vstup!D50,"") -> 
A49: 8 | B49: =IF(Vstup!C51<>"",Vstup!B51,"") ->  | C49: =IF(Vstup!C51<>"",Vstup!C51,"") ->  | D49: =IF(Vstup!C51<>"",Vstup!D51,"") -> 
B50: =IF(Vstup!C52<>"",Vstup!B52,"") ->  | C50: =IF(Vstup!C52<>"",Vstup!C52,"") ->  | D50: =IF(Vstup!C52<>"",Vstup!D52,"") -> 
B51: =IF(Vstup!C53<>"",Vstup!B53,"") ->  | C51: =IF(Vstup!C53<>"",Vstup!C53,"") ->  | D51: =IF(Vstup!C53<>"",Vstup!D53,"") -> 
B52: =IF(Vstup!C54<>"",Vstup!B54,"") ->  | C52: =IF(Vstup!C54<>"",Vstup!C54,"") ->  | D52: =IF(Vstup!C54<>"",Vstup!D54,"") -> 
B53: =IF(Vstup!C55<>"",Vstup!B55,"") ->  | C53: =IF(Vstup!C55<>"",Vstup!C55,"") ->  | D53: =IF(Vstup!C55<>"",Vstup!D55,"") -> 
B54: =IF(Vstup!C56<>"",Vstup!B56,"") ->  | C54: =IF(Vstup!C56<>"",Vstup!C56,"") ->  | D54: =IF(Vstup!C56<>"",Vstup!D56,"") -> 
A55: 9 | B55: =IF(Vstup!C57<>"",Vstup!B57,"") ->  | C55: =IF(Vstup!C57<>"",Vstup!C57,"") ->  | D55: =IF(Vstup!C57<>"",Vstup!D57,"") -> 
B56: =IF(Vstup!C58<>"",Vstup!B58,"") ->  | C56: =IF(Vstup!C58<>"",Vstup!C58,"") ->  | D56: =IF(Vstup!C58<>"",Vstup!D58,"") -> 
B57: =IF(Vstup!C59<>"",Vstup!B59,"") ->  | C57: =IF(Vstup!C59<>"",Vstup!C59,"") ->  | D57: =IF(Vstup!C59<>"",Vstup!D59,"") -> 
B58: =IF(Vstup!C60<>"",Vstup!B60,"") ->  | C58: =IF(Vstup!C60<>"",Vstup!C60,"") ->  | D58: =IF(Vstup!C60<>"",Vstup!D60,"") -> 
B59: =IF(Vstup!C61<>"",Vstup!B61,"") ->  | C59: =IF(Vstup!C61<>"",Vstup!C61,"") ->  | D59: =IF(Vstup!C61<>"",Vstup!D61,"") -> 
B60: =IF(Vstup!C62<>"",Vstup!B62,"") ->  | C60: =IF(Vstup!C62<>"",Vstup!C62,"") ->  | D60: =IF(Vstup!C62<>"",Vstup!D62,"") -> 
A61: 10 | B61: =IF(Vstup!C63<>"",Vstup!B63,"") ->  | C61: =IF(Vstup!C63<>"",Vstup!C63,"") ->  | D61: =IF(Vstup!C63<>"",Vstup!D63,"") -> 
B62: =IF(Vstup!C64<>"",Vstup!B64,"") ->  | C62: =IF(Vstup!C64<>"",Vstup!C64,"") ->  | D62: =IF(Vstup!C64<>"",Vstup!D64,"") -> 
B63: =IF(Vstup!C65<>"",Vstup!B65,"") ->  | C63: =IF(Vstup!C65<>"",Vstup!C65,"") ->  | D63: =IF(Vstup!C65<>"",Vstup!D65,"") -> 
B64: =IF(Vstup!C66<>"",Vstup!B66,"") ->  | C64: =IF(Vstup!C66<>"",Vstup!C66,"") ->  | D64: =IF(Vstup!C66<>"",Vstup!D66,"") -> 
B65: =IF(Vstup!C67<>"",Vstup!B67,"") ->  | C65: =IF(Vstup!C67<>"",Vstup!C67,"") ->  | D65: =IF(Vstup!C67<>"",Vstup!D67,"") -> 
B66: =IF(Vstup!C68<>"",Vstup!B68,"") ->  | C66: =IF(Vstup!C68<>"",Vstup!C68,"") ->  | D66: =IF(Vstup!C68<>"",Vstup!D68,"") -> 
A67: 11 | B67: =IF(Vstup!C69<>"",Vstup!B69,"") ->  | C67: =IF(Vstup!C69<>"",Vstup!C69,"") ->  | D67: =IF(Vstup!C69<>"",Vstup!D69,"") -> 
B68: =IF(Vstup!C70<>"",Vstup!B70,"") ->  | C68: =IF(Vstup!C70<>"",Vstup!C70,"") ->  | D68: =IF(Vstup!C70<>"",Vstup!D70,"") -> 
B69: =IF(Vstup!C71<>"",Vstup!B71,"") ->  | C69: =IF(Vstup!C71<>"",Vstup!C71,"") ->  | D69: =IF(Vstup!C71<>"",Vstup!D71,"") -> 
B70: =IF(Vstup!C72<>"",Vstup!B72,"") ->  | C70: =IF(Vstup!C72<>"",Vstup!C72,"") ->  | D70: =IF(Vstup!C72<>"",Vstup!D72,"") -> 
B71: =IF(Vstup!C73<>"",Vstup!B73,"") ->  | C71: =IF(Vstup!C73<>"",Vstup!C73,"") ->  | D71: =IF(Vstup!C73<>"",Vstup!D73,"") -> 
B72: =IF(Vstup!C74<>"",Vstup!B74,"") ->  | C72: =IF(Vstup!C74<>"",Vstup!C74,"") ->  | D72: =IF(Vstup!C74<>"",Vstup!D74,"") -> 
A73: 12 | B73: =IF(Vstup!C75<>"",Vstup!B75,"") ->  | C73: =IF(Vstup!C75<>"",Vstup!C75,"") ->  | D73: =IF(Vstup!C75<>"",Vstup!D75,"") -> 
B74: =IF(Vstup!C76<>"",Vstup!B76,"") ->  | C74: =IF(Vstup!C76<>"",Vstup!C76,"") ->  | D74: =IF(Vstup!C76<>"",Vstup!D76,"") -> 
B75: =IF(Vstup!C77<>"",Vstup!B77,"") ->  | C75: =IF(Vstup!C77<>"",Vstup!C77,"") ->  | D75: =IF(Vstup!C77<>"",Vstup!D77,"") -> 
B76: =IF(Vstup!C78<>"",Vstup!B78,"") ->  | C76: =IF(Vstup!C78<>"",Vstup!C78,"") ->  | D76: =IF(Vstup!C78<>"",Vstup!D78,"") -> 
B77: =IF(Vstup!C79<>"",Vstup!B79,"") ->  | C77: =IF(Vstup!C79<>"",Vstup!C79,"") ->  | D77: =IF(Vstup!C79<>"",Vstup!D79,"") -> 
B78: =IF(Vstup!C80<>"",Vstup!B80,"") ->  | C78: =IF(Vstup!C80<>"",Vstup!C80,"") ->  | D78: =IF(Vstup!C80<>"",Vstup!D80,"") -> 
A79: 13 | B79: =IF(Vstup!C81<>"",Vstup!B81,"") ->  | C79: =IF(Vstup!C81<>"",Vstup!C81,"") ->  | D79: =IF(Vstup!C81<>"",Vstup!D81,"") -> 
B80: =IF(Vstup!C82<>"",Vstup!B82,"") ->  | C80: =IF(Vstup!C82<>"",Vstup!C82,"") ->  | D80: =IF(Vstup!C82<>"",Vstup!D82,"") -> 
B81: =IF(Vstup!C83<>"",Vstup!B83,"") ->  | C81: =IF(Vstup!C83<>"",Vstup!C83,"") ->  | D81: =IF(Vstup!C83<>"",Vstup!D83,"") -> 
B82: =IF(Vstup!C84<>"",Vstup!B84,"") ->  | C82: =IF(Vstup!C84<>"",Vstup!C84,"") ->  | D82: =IF(Vstup!C84<>"",Vstup!D84,"") -> 
B83: =IF(Vstup!C85<>"",Vstup!B85,"") ->  | C83: =IF(Vstup!C85<>"",Vstup!C85,"") ->  | D83: =IF(Vstup!C85<>"",Vstup!D85,"") -> 
B84: =IF(Vstup!C86<>"",Vstup!B86,"") ->  | C84: =IF(Vstup!C86<>"",Vstup!C86,"") ->  | D84: =IF(Vstup!C86<>"",Vstup!D86,"") -> 
A85: 14 | B85: =IF(Vstup!C87<>"",Vstup!B87,"") ->  | C85: =IF(Vstup!C87<>"",Vstup!C87,"") ->  | D85: =IF(Vstup!C87<>"",Vstup!D87,"") -> 
B86: =IF(Vstup!C88<>"",Vstup!B88,"") ->  | C86: =IF(Vstup!C88<>"",Vstup!C88,"") ->  | D86: =IF(Vstup!C88<>"",Vstup!D88,"") -> 
B87: =IF(Vstup!C89<>"",Vstup!B89,"") ->  | C87: =IF(Vstup!C89<>"",Vstup!C89,"") ->  | D87: =IF(Vstup!C89<>"",Vstup!D89,"") -> 
B88: =IF(Vstup!C90<>"",Vstup!B90,"") ->  | C88: =IF(Vstup!C90<>"",Vstup!C90,"") ->  | D88: =IF(Vstup!C90<>"",Vstup!D90,"") -> 
B89: =IF(Vstup!C91<>"",Vstup!B91,"") ->  | C89: =IF(Vstup!C91<>"",Vstup!C91,"") ->  | D89: =IF(Vstup!C91<>"",Vstup!D91,"") -> 
B90: =IF(Vstup!C92<>"",Vstup!B92,"") ->  | C90: =IF(Vstup!C92<>"",Vstup!C92,"") ->  | D90: =IF(Vstup!C92<>"",Vstup!D92,"") -> 
A91: 15 | B91: =IF(Vstup!C93<>"",Vstup!B93,"") ->  | C91: =IF(Vstup!C93<>"",Vstup!C93,"") ->  | D91: =IF(Vstup!C93<>"",Vstup!D93,"") -> 
B92: =IF(Vstup!C94<>"",Vstup!B94,"") ->  | C92: =IF(Vstup!C94<>"",Vstup!C94,"") ->  | D92: =IF(Vstup!C94<>"",Vstup!D94,"") -> 
B93: =IF(Vstup!C95<>"",Vstup!B95,"") ->  | C93: =IF(Vstup!C95<>"",Vstup!C95,"") ->  | D93: =IF(Vstup!C95<>"",Vstup!D95,"") -> 
B94: =IF(Vstup!C96<>"",Vstup!B96,"") ->  | C94: =IF(Vstup!C96<>"",Vstup!C96,"") ->  | D94: =IF(Vstup!C96<>"",Vstup!D96,"") -> 
B95: =IF(Vstup!C97<>"",Vstup!B97,"") ->  | C95: =IF(Vstup!C97<>"",Vstup!C97,"") ->  | D95: =IF(Vstup!C97<>"",Vstup!D97,"") -> 
B96: =IF(Vstup!C98<>"",Vstup!B98,"") ->  | C96: =IF(Vstup!C98<>"",Vstup!C98,"") ->  | D96: =IF(Vstup!C98<>"",Vstup!D98,"") -> 
A97: 16 | B97: =IF(Vstup!C99<>"",Vstup!B99,"") ->  | C97: =IF(Vstup!C99<>"",Vstup!C99,"") ->  | D97: =IF(Vstup!C99<>"",Vstup!D99,"") -> 
B98: =IF(Vstup!C100<>"",Vstup!B100,"") ->  | C98: =IF(Vstup!C100<>"",Vstup!C100,"") ->  | D98: =IF(Vstup!C100<>"",Vstup!D100,"") -> 
B99: =IF(Vstup!C101<>"",Vstup!B101,"") ->  | C99: =IF(Vstup!C101<>"",Vstup!C101,"") ->  | D99: =IF(Vstup!C101<>"",Vstup!D101,"") -> 
B100: =IF(Vstup!C102<>"",Vstup!B102,"") ->  | C100: =IF(Vstup!C102<>"",Vstup!C102,"") ->  | D100: =IF(Vstup!C102<>"",Vstup!D102,"") -> 
B101: =IF(Vstup!C103<>"",Vstup!B103,"") ->  | C101: =IF(Vstup!C103<>"",Vstup!C103,"") ->  | D101: =IF(Vstup!C103<>"",Vstup!D103,"") -> 
B102: =IF(Vstup!C104<>"",Vstup!B104,"") ->  | C102: =IF(Vstup!C104<>"",Vstup!C104,"") ->  | D102: =IF(Vstup!C104<>"",Vstup!D104,"") -> 
A103: 17 | B103: =IF(Vstup!C105<>"",Vstup!B105,"") ->  | C103: =IF(Vstup!C105<>"",Vstup!C105,"") ->  | D103: =IF(Vstup!C105<>"",Vstup!D105,"") -> 
B104: =IF(Vstup!C106<>"",Vstup!B106,"") ->  | C104: =IF(Vstup!C106<>"",Vstup!C106,"") ->  | D104: =IF(Vstup!C106<>"",Vstup!D106,"") -> 
B105: =IF(Vstup!C107<>"",Vstup!B107,"") ->  | C105: =IF(Vstup!C107<>"",Vstup!C107,"") ->  | D105: =IF(Vstup!C107<>"",Vstup!D107,"") -> 
B106: =IF(Vstup!C108<>"",Vstup!B108,"") ->  | C106: =IF(Vstup!C108<>"",Vstup!C108,"") ->  | D106: =IF(Vstup!C108<>"",Vstup!D108,"") -> 
B107: =IF(Vstup!C109<>"",Vstup!B109,"") ->  | C107: =IF(Vstup!C109<>"",Vstup!C109,"") ->  | D107: =IF(Vstup!C109<>"",Vstup!D109,"") -> 
B108: =IF(Vstup!C110<>"",Vstup!B110,"") ->  | C108: =IF(Vstup!C110<>"",Vstup!C110,"") ->  | D108: =IF(Vstup!C110<>"",Vstup!D110,"") -> 
A109: 18 | B109: =IF(Vstup!C111<>"",Vstup!B111,"") ->  | C109: =IF(Vstup!C111<>"",Vstup!C111,"") ->  | D109: =IF(Vstup!C111<>"",Vstup!D111,"") -> 
B110: =IF(Vstup!C112<>"",Vstup!B112,"") ->  | C110: =IF(Vstup!C112<>"",Vstup!C112,"") ->  | D110: =IF(Vstup!C112<>"",Vstup!D112,"") -> 
B111: =IF(Vstup!C113<>"",Vstup!B113,"") ->  | C111: =IF(Vstup!C113<>"",Vstup!C113,"") ->  | D111: =IF(Vstup!C113<>"",Vstup!D113,"") -> 
B112: =IF(Vstup!C114<>"",Vstup!B114,"") ->  | C112: =IF(Vstup!C114<>"",Vstup!C114,"") ->  | D112: =IF(Vstup!C114<>"",Vstup!D114,"") -> 
B113: =IF(Vstup!C115<>"",Vstup!B115,"") ->  | C113: =IF(Vstup!C115<>"",Vstup!C115,"") ->  | D113: =IF(Vstup!C115<>"",Vstup!D115,"") -> 
B114: =IF(Vstup!C116<>"",Vstup!B116,"") ->  | C114: =IF(Vstup!C116<>"",Vstup!C116,"") ->  | D114: =IF(Vstup!C116<>"",Vstup!D116,"") -> 
A115: 19 | B115: =IF(Vstup!C117<>"",Vstup!B117,"") ->  | C115: =IF(Vstup!C117<>"",Vstup!C117,"") ->  | D115: =IF(Vstup!C117<>"",Vstup!D117,"") -> 
B116: =IF(Vstup!C118<>"",Vstup!B118,"") ->  | C116: =IF(Vstup!C118<>"",Vstup!C118,"") ->  | D116: =IF(Vstup!C118<>"",Vstup!D118,"") -> 
B117: =IF(Vstup!C119<>"",Vstup!B119,"") ->  | C117: =IF(Vstup!C119<>"",Vstup!C119,"") ->  | D117: =IF(Vstup!C119<>"",Vstup!D119,"") -> 
B118: =IF(Vstup!C120<>"",Vstup!B120,"") ->  | C118: =IF(Vstup!C120<>"",Vstup!C120,"") ->  | D118: =IF(Vstup!C120<>"",Vstup!D120,"") -> 
B119: =IF(Vstup!C121<>"",Vstup!B121,"") ->  | C119: =IF(Vstup!C121<>"",Vstup!C121,"") ->  | D119: =IF(Vstup!C121<>"",Vstup!D121,"") -> 
B120: =IF(Vstup!C122<>"",Vstup!B122,"") ->  | C120: =IF(Vstup!C122<>"",Vstup!C122,"") ->  | D120: =IF(Vstup!C122<>"",Vstup!D122,"") -> 
A121: 20 | B121: =IF(Vstup!C123<>"",Vstup!B123,"") ->  | C121: =IF(Vstup!C123<>"",Vstup!C123,"") ->  | D121: =IF(Vstup!C123<>"",Vstup!D123,"") -> 
B122: =IF(Vstup!C124<>"",Vstup!B124,"") ->  | C122: =IF(Vstup!C124<>"",Vstup!C124,"") ->  | D122: =IF(Vstup!C124<>"",Vstup!D124,"") -> 
B123: =IF(Vstup!C125<>"",Vstup!B125,"") ->  | C123: =IF(Vstup!C125<>"",Vstup!C125,"") ->  | D123: =IF(Vstup!C125<>"",Vstup!D125,"") -> 
B124: =IF(Vstup!C126<>"",Vstup!B126,"") ->  | C124: =IF(Vstup!C126<>"",Vstup!C126,"") ->  | D124: =IF(Vstup!C126<>"",Vstup!D126,"") -> 
B125: =IF(Vstup!C127<>"",Vstup!B127,"") ->  | C125: =IF(Vstup!C127<>"",Vstup!C127,"") ->  | D125: =IF(Vstup!C127<>"",Vstup!D127,"") -> 
B126: =IF(Vstup!C128<>"",Vstup!B128,"") ->  | C126: =IF(Vstup!C128<>"",Vstup!C128,"") ->  | D126: =IF(Vstup!C128<>"",Vstup!D128,"") -> 

Sheet List3 (hidden)
D1: =COUNTIF(D6:D17,"A") -> 3
N2: A | O2: =MATCH("A",D6:D17,0) -> 1
N3: B | O3: =MATCH("B",D6:D17,0) -> 4
N4: C | O4: =MATCH("C",D6:D17,0) -> 7
N5: J | O5: =MATCH("J",D6:D17,0) -> 8
C6: Hřebec Jan | D6: A | E6: =VLOOKUP(C6,'Vysledky-doplneni'!$C$7:$J$18,3,0) ->  | F6: =VLOOKUP($C6,'Vysledky-doplneni'!$C$7:$J$18,4,0) ->  | G6: =VLOOKUP($C6,'Vysledky-doplneni'!$C$7:$J$18,5,0) ->  | H6: =VLOOKUP($C6,'Vysledky-doplneni'!$C$7:$J$18,6,0) ->  | I6: =VLOOKUP($C6,'Vysledky-doplneni'!$C$7:$J$18,7,0) ->  | N6: V | O6: =MATCH("V",D6:D17,0) -> 12
C7: Štengl Jiří | D7: A | E7: =VLOOKUP(C7,'Vysledky-doplneni'!$C$7:$J$18,3,0) ->  | F7: =VLOOKUP($C7,'Vysledky-doplneni'!$C$7:$J$18,4,0) ->  | G7: =VLOOKUP($C7,'Vysledky-doplneni'!$C$7:$J$18,5,0) ->  | H7: =VLOOKUP($C7,'Vysledky-doplneni'!$C$7:$J$18,6,0) ->  | I7: =VLOOKUP($C7,'Vysledky-doplneni'!$C$7:$J$18,7,0) -> 
C8: Zázvorka Pavel | D8: A | E8: =VLOOKUP(C8,'Vysledky-doplneni'!$C$7:$J$18,3,0) ->  | F8: =VLOOKUP($C8,'Vysledky-doplneni'!$C$7:$J$18,4,0) ->  | G8: =VLOOKUP($C8,'Vysledky-doplneni'!$C$7:$J$18,5,0) ->  | H8: =VLOOKUP($C8,'Vysledky-doplneni'!$C$7:$J$18,6,0) ->  | I8: =VLOOKUP($C8,'Vysledky-doplneni'!$C$7:$J$18,7,0) -> 
C9: Honz Petr | D9: B | E9: =VLOOKUP(C9,'Vysledky-doplneni'!$C$7:$J$18,3,0) ->  | F9: =VLOOKUP($C9,'Vysledky-doplneni'!$C$7:$J$18,4,0) ->  | G9: =VLOOKUP($C9,'Vysledky-doplneni'!$C$7:$J$18,5,0) ->  | H9: =VLOOKUP($C9,'Vysledky-doplneni'!$C$7:$J$18,6,0) ->  | I9: =VLOOKUP($C9,'Vysledky-doplneni'!$C$7:$J$18,7,0) -> 
C10: Kodeš Václav | D10: B | E10: =VLOOKUP(C10,'Vysledky-doplneni'!$C$7:$J$18,3,0) ->  | F10: =VLOOKUP($C10,'Vysledky-doplneni'!$C$7:$J$18,4,0) ->  | G10: =VLOOKUP($C10,'Vysledky-doplneni'!$C$7:$J$18,5,0) ->  | H10: =VLOOKUP($C10,'Vysledky-doplneni'!$C$7:$J$18,6,0) ->  | I10: =VLOOKUP($C10,'Vysledky-doplneni'!$C$7:$J$18,7,0) -> 
C11: Pacal Antonín | D11: B | E11: =VLOOKUP(C11,'Vysledky-doplneni'!$C$7:$J$18,3,0) ->  | F11: =VLOOKUP($C11,'Vysledky-doplneni'!$C$7:$J$18,4,0) ->  | G11: =VLOOKUP($C11,'Vysledky-doplneni'!$C$7:$J$18,5,0) ->  | H11: =VLOOKUP($C11,'Vysledky-doplneni'!$C$7:$J$18,6,0) ->  | I11: =VLOOKUP($C11,'Vysledky-doplneni'!$C$7:$J$18,7,0) -> 
C12: Není v tabulce ASATu | D12: C | E12: =VLOOKUP(C12,'Vysledky-doplneni'!$C$7:$J$18,3,0) ->  | F12: =VLOOKUP($C12,'Vysledky-doplneni'!$C$7:$J$18,4,0) ->  | G12: =VLOOKUP($C12,'Vysledky-doplneni'!$C$7:$J$18,5,0) ->  | H12: =VLOOKUP($C12,'Vysledky-doplneni'!$C$7:$J$18,6,0) ->  | I12: =VLOOKUP($C12,'Vysledky-doplneni'!$C$7:$J$18,7,0) -> 
C13: Divíšek Martin ml. | D13: J | E13: =VLOOKUP(C13,'Vysledky-doplneni'!$C$7:$J$18,3,0) ->  | F13: =VLOOKUP($C13,'Vysledky-doplneni'!$C$7:$J$18,4,0) ->  | G13: =VLOOKUP($C13,'Vysledky-doplneni'!$C$7:$J$18,5,0) ->  | H13: =VLOOKUP($C13,'Vysledky-doplneni'!$C$7:$J$18,6,0) ->  | I13: =VLOOKUP($C13,'Vysledky-doplneni'!$C$7:$J$18,7,0) -> 
C14: Hřebec Jan ml. | D14: J | E14: =VLOOKUP(C14,'Vysledky-doplneni'!$C$7:$J$18,3,0) ->  | F14: =VLOOKUP($C14,'Vysledky-doplneni'!$C$7:$J$18,4,0) ->  | G14: =VLOOKUP($C14,'Vysledky-doplneni'!$C$7:$J$18,5,0) ->  | H14: =VLOOKUP($C14,'Vysledky-doplneni'!$C$7:$J$18,6,0) ->  | I14: =VLOOKUP($C14,'Vysledky-doplneni'!$C$7:$J$18,7,0) -> 
C15: Jankovský Jakub | D15: J | E15: =VLOOKUP(C15,'Vysledky-doplneni'!$C$7:$J$18,3,0) ->  | F15: =VLOOKUP($C15,'Vysledky-doplneni'!$C$7:$J$18,4,0) ->  | G15: =VLOOKUP($C15,'Vysledky-doplneni'!$C$7:$J$18,5,0) ->  | H15: =VLOOKUP($C15,'Vysledky-doplneni'!$C$7:$J$18,6,0) ->  | I15: =VLOOKUP($C15,'Vysledky-doplneni'!$C$7:$J$18,7,0) -> 
C16: Štenglová Michaela | D16: J | E16: =VLOOKUP(C16,'Vysledky-doplneni'!$C$7:$J$18,3,0) ->  | F16: =VLOOKUP($C16,'Vysledky-doplneni'!$C$7:$J$18,4,0) ->  | G16: =VLOOKUP($C16,'Vysledky-doplneni'!$C$7:$J$18,5,0) ->  | H16: =VLOOKUP($C16,'Vysledky-doplneni'!$C$7:$J$18,6,0) ->  | I16: =VLOOKUP($C16,'Vysledky-doplneni'!$C$7:$J$18,7,0) -> 
C17: Neuvirt Václav | D17: V | E17: =VLOOKUP(C17,'Vysledky-doplneni'!$C$7:$J$18,3,0) ->  | F17: =VLOOKUP($C17,'Vysledky-doplneni'!$C$7:$J$18,4,0) ->  | G17: =VLOOKUP($C17,'Vysledky-doplneni'!$C$7:$J$18,5,0) ->  | H17: =VLOOKUP($C17,'Vysledky-doplneni'!$C$7:$J$18,6,0) ->  | I17: =VLOOKUP($C17,'Vysledky-doplneni'!$C$7:$J$18,7,0) -> 

Sheet SkS-1 (hidden)
A2: POLOŽKOVÝ LIST
A3: =Vstup!C2&IF(Vstup!C3<>"",", "&Vstup!C3,"") -> COMPAK SPORTING SPECIÁL, 160 terčů
A4: =Vstup!C4&", "&Vstup!C5 -> COMPAK SPORTING, 3.6.2012
A6: Skupina: | C6: 1 | D6: Kolo : | E6: 1 | F6: Rozhodčí: | AD6: ∑ | AE6: Podpis
A7: St. č. | B7: Příjmení, jméno | E7: Kat. | F7: Terče
A8: 1 | F8: Stanoviště 1 | J8: Stanoviště 2 | N8: Stanoviště 3 | R8: Stanoviště 4 | V8: Stanoviště 5
F9: 1 | G9: 2 | H9: 3 | I9: 4 | J9: 5 | K9: 6 | L9: 7 | M9: 8 | N9: 9 | O9: 10 | P9: 11 | Q9: 12 | R9: 13 | S9: 14 | T9: 15 | U9: 16 | V9: 17 | W9: 18 | X9: 19 | Y9: 20
A11: 2 | F11: Stanoviště 2 | J11: Stanoviště 3 | N11: Stanoviště 4 | R11: Stanoviště 5 | Z11: Stanoviště 1
F12: 1 | G12: 2 | H12: 3 | I12: 4 | J12: 5 | K12: 6 | L12: 7 | M12: 8 | N12: 9 | O12: 10 | P12: 11 | Q12: 12 | R12: 13 | S12: 14 | T12: 15 | U12: 16 | Z12: 17 | AA12: 18 | AB12: 19 | AC12: 20
A14: 3 | F14: Stanoviště 3 | J14: Stanoviště 4 | N14: Stanoviště 5 | V14: Stanoviště 1 | Z14: Stanoviště 2
F15: 1 | G15: 2 | H15: 3 | I15: 4 | J15: 5 | K15: 6 | L15: 7 | M15: 8 | N15: 9 | O15: 10 | P15: 11 | Q15: 12 | V15: 13 | W15: 14 | X15: 15 | Y15: 16 | Z15: 17 | AA15: 18 | AB15: 19 | AC15: 20
A17: 4 | F17: Stanoviště 4 | J17: Stanoviště 5 | R17: Stanoviště 1 | V17: Stanoviště 2 | Z17: Stanoviště 3
F18: 1 | G18: 2 | H18: 3 | I18: 4 | J18: 5 | K18: 6 | L18: 7 | M18: 8 | R18: 9 | S18: 10 | T18: 11 | U18: 12 | V18: 13 | W18: 14 | X18: 15 | Y18: 16 | Z18: 17 | AA18: 18 | AB18: 19 | AC18: 20
A20: 5 | F20: Stanoviště 5 | N20: Stanoviště 1 | R20: Stanoviště 2 | V20: Stanoviště 3 | Z20: Stanoviště 4
F21: 1 | G21: 2 | H21: 3 | I21: 4 | N21: 5 | O21: 6 | P21: 7 | Q21: 8 | R21: 9 | S21: 10 | T21: 11 | U21: 12 | V21: 13 | W21: 14 | X21: 15 | Y21: 16 | Z21: 17 | AA21: 18 | AB21: 19 | AC21: 20
A23: 6 | J23: Stanoviště 1 | N23: Stanoviště 2 | R23: Stanoviště 3 | V23: Stanoviště 4 | Z23: Stanoviště 5
J24: 1 | K24: 2 | L24: 3 | M24: 4 | N24: 5 | O24: 6 | P24: 7 | Q24: 8 | R24: 9 | S24: 10 | T24: 11 | U24: 12 | V24: 13 | W24: 14 | X24: 15 | Y24: 16 | Z24: 17 | AA24: 18 | AB24: 19 | AC24: 20
A26: Poznámky:

Sheet SkS-2 (hidden)
A2: POLOŽKOVÝ LIST
A3: =Vstup!C2&IF(Vstup!C3<>"",", "&Vstup!C3,"") -> COMPAK SPORTING SPECIÁL, 160 terčů
A4: =Vstup!C4&", "&Vstup!C5 -> COMPAK SPORTING, 3.6.2012
A6: Skupina: | C6: 2 | D6: Kolo : | E6: 1 | F6: Rozhodčí: | AD6: ∑ | AE6: Podpis
A7: St. č. | B7: Příjmení, jméno | E7: Kat. | F7: Terče
A8: 7 | F8: Stanoviště 1 | J8: Stanoviště 2 | N8: Stanoviště 3 | R8: Stanoviště 4 | V8: Stanoviště 5
F9: 1 | G9: 2 | H9: 3 | I9: 4 | J9: 5 | K9: 6 | L9: 7 | M9: 8 | N9: 9 | O9: 10 | P9: 11 | Q9: 12 | R9: 13 | S9: 14 | T9: 15 | U9: 16 | V9: 17 | W9: 18 | X9: 19 | Y9: 20
A11: 8 | F11: Stanoviště 2 | J11: Stanoviště 3 | N11: Stanoviště 4 | R11: Stanoviště 5 | Z11: Stanoviště 1
F12: 1 | G12: 2 | H12: 3 | I12: 4 | J12: 5 | K12: 6 | L12: 7 | M12: 8 | N12: 9 | O12: 10 | P12: 11 | Q12: 12 | R12: 13 | S12: 14 | T12: 15 | U12: 16 | Z12: 17 | AA12: 18 | AB12: 19 | AC12: 20
A14: 9 | F14: Stanoviště 3 | J14: Stanoviště 4 | N14: Stanoviště 5 | V14: Stanoviště 1 | Z14: Stanoviště 2
F15: 1 | G15: 2 | H15: 3 | I15: 4 | J15: 5 | K15: 6 | L15: 7 | M15: 8 | N15: 9 | O15: 10 | P15: 11 | Q15: 12 | V15: 13 | W15: 14 | X15: 15 | Y15: 16 | Z15: 17 | AA15: 18 | AB15: 19 | AC15: 20
A17: 10 | F17: Stanoviště 4 | J17: Stanoviště 5 | R17: Stanoviště 1 | V17: Stanoviště 2 | Z17: Stanoviště 3
F18: 1 | G18: 2 | H18: 3 | I18: 4 | J18: 5 | K18: 6 | L18: 7 | M18: 8 | R18: 9 | S18: 10 | T18: 11 | U18: 12 | V18: 13 | W18: 14 | X18: 15 | Y18: 16 | Z18: 17 | AA18: 18 | AB18: 19 | AC18: 20
A20: 11 | F20: Stanoviště 5 | N20: Stanoviště 1 | R20: Stanoviště 2 | V20: Stanoviště 3 | Z20: Stanoviště 4
F21: 1 | G21: 2 | H21: 3 | I21: 4 | N21: 5 | O21: 6 | P21: 7 | Q21: 8 | R21: 9 | S21: 10 | T21: 11 | U21: 12 | V21: 13 | W21: 14 | X21: 15 | Y21: 16 | Z21: 17 | AA21: 18 | AB21: 19 | AC21: 20
A23: 12 | J23: Stanoviště 1 | N23: Stanoviště 2 | R23: Stanoviště 3 | V23: Stanoviště 4 | Z23: Stanoviště 5
J24: 1 | K24: 2 | L24: 3 | M24: 4 | N24: 5 | O24: 6 | P24: 7 | Q24: 8 | R24: 9 | S24: 10 | T24: 11 | U24: 12 | V24: 13 | W24: 14 | X24: 15 | Y24: 16 | Z24: 17 | AA24: 18 | AB24: 19 | AC24: 20
A26: Poznámky:

Sheet SkS-3 (hidden)
A2: POLOŽKOVÝ LIST
A3: =Vstup!C2&IF(Vstup!C3<>"",", "&Vstup!C3,"") -> COMPAK SPORTING SPECIÁL, 160 terčů
A4: =Vstup!C4&", "&Vstup!C5 -> COMPAK SPORTING, 3.6.2012
A6: Skupina: | C6: 3 | D6: Kolo : | E6: 1 | F6: Rozhodčí: | AD6: ∑ | AE6: Podpis
A7: St. č. | B7: Příjmení, jméno | E7: Kat. | F7: Terče
A8: 13 | F8: Stanoviště 1 | J8: Stanoviště 2 | N8: Stanoviště 3 | R8: Stanoviště 4 | V8: Stanoviště 5
F9: 1 | G9: 2 | H9: 3 | I9: 4 | J9: 5 | K9: 6 | L9: 7 | M9: 8 | N9: 9 | O9: 10 | P9: 11 | Q9: 12 | R9: 13 | S9: 14 | T9: 15 | U9: 16 | V9: 17 | W9: 18 | X9: 19 | Y9: 20
A11: 14 | F11: Stanoviště 2 | J11: Stanoviště 3 | N11: Stanoviště 4 | R11: Stanoviště 5 | Z11: Stanoviště 1
F12: 1 | G12: 2 | H12: 3 | I12: 4 | J12: 5 | K12: 6 | L12: 7 | M12: 8 | N12: 9 | O12: 10 | P12: 11 | Q12: 12 | R12: 13 | S12: 14 | T12: 15 | U12: 16 | Z12: 17 | AA12: 18 | AB12: 19 | AC12: 20
A14: 15 | F14: Stanoviště 3 | J14: Stanoviště 4 | N14: Stanoviště 5 | V14: Stanoviště 1 | Z14: Stanoviště 2
F15: 1 | G15: 2 | H15: 3 | I15: 4 | J15: 5 | K15: 6 | L15: 7 | M15: 8 | N15: 9 | O15: 10 | P15: 11 | Q15: 12 | V15: 13 | W15: 14 | X15: 15 | Y15: 16 | Z15: 17 | AA15: 18 | AB15: 19 | AC15: 20
A17: 16 | F17: Stanoviště 4 | J17: Stanoviště 5 | R17: Stanoviště 1 | V17: Stanoviště 2 | Z17: Stanoviště 3
F18: 1 | G18: 2 | H18: 3 | I18: 4 | J18: 5 | K18: 6 | L18: 7 | M18: 8 | R18: 9 | S18: 10 | T18: 11 | U18: 12 | V18: 13 | W18: 14 | X18: 15 | Y18: 16 | Z18: 17 | AA18: 18 | AB18: 19 | AC18: 20
A20: 17 | F20: Stanoviště 5 | N20: Stanoviště 1 | R20: Stanoviště 2 | V20: Stanoviště 3 | Z20: Stanoviště 4
F21: 1 | G21: 2 | H21: 3 | I21: 4 | N21: 5 | O21: 6 | P21: 7 | Q21: 8 | R21: 9 | S21: 10 | T21: 11 | U21: 12 | V21: 13 | W21: 14 | X21: 15 | Y21: 16 | Z21: 17 | AA21: 18 | AB21: 19 | AC21: 20
A23: 18 | J23: Stanoviště 1 | N23: Stanoviště 2 | R23: Stanoviště 3 | V23: Stanoviště 4 | Z23: Stanoviště 5
J24: 1 | K24: 2 | L24: 3 | M24: 4 | N24: 5 | O24: 6 | P24: 7 | Q24: 8 | R24: 9 | S24: 10 | T24: 11 | U24: 12 | V24: 13 | W24: 14 | X24: 15 | Y24: 16 | Z24: 17 | AA24: 18 | AB24: 19 | AC24: 20
A26: Poznámky:

Sheet SkS-4 (hidden)
A2: POLOŽKOVÝ LIST
A3: =Vstup!C2&IF(Vstup!C3<>"",", "&Vstup!C3,"") -> COMPAK SPORTING SPECIÁL, 160 terčů
A4: =Vstup!C4&", "&Vstup!C5 -> COMPAK SPORTING, 3.6.2012
A6: Skupina: | C6: 4 | D6: Kolo : | E6: 1 | F6: Rozhodčí: | AD6: ∑ | AE6: Podpis
A7: St. č. | B7: Příjmení, jméno | E7: Kat. | F7: Terče
A8: 19 | F8: Stanoviště 1 | J8: Stanoviště 2 | N8: Stanoviště 3 | R8: Stanoviště 4 | V8: Stanoviště 5
F9: 1 | G9: 2 | H9: 3 | I9: 4 | J9: 5 | K9: 6 | L9: 7 | M9: 8 | N9: 9 | O9: 10 | P9: 11 | Q9: 12 | R9: 13 | S9: 14 | T9: 15 | U9: 16 | V9: 17 | W9: 18 | X9: 19 | Y9: 20
A11: 20 | F11: Stanoviště 2 | J11: Stanoviště 3 | N11: Stanoviště 4 | R11: Stanoviště 5 | Z11: Stanoviště 1
F12: 1 | G12: 2 | H12: 3 | I12: 4 | J12: 5 | K12: 6 | L12: 7 | M12: 8 | N12: 9 | O12: 10 | P12: 11 | Q12: 12 | R12: 13 | S12: 14 | T12: 15 | U12: 16 | Z12: 17 | AA12: 18 | AB12: 19 | AC12: 20
A14: 21 | F14: Stanoviště 3 | J14: Stanoviště 4 | N14: Stanoviště 5 | V14: Stanoviště 1 | Z14: Stanoviště 2
F15: 1 | G15: 2 | H15: 3 | I15: 4 | J15: 5 | K15: 6 | L15: 7 | M15: 8 | N15: 9 | O15: 10 | P15: 11 | Q15: 12 | V15: 13 | W15: 14 | X15: 15 | Y15: 16 | Z15: 17 | AA15: 18 | AB15: 19 | AC15: 20
A17: 22 | F17: Stanoviště 4 | J17: Stanoviště 5 | R17: Stanoviště 1 | V17: Stanoviště 2 | Z17: Stanoviště 3
F18: 1 | G18: 2 | H18: 3 | I18: 4 | J18: 5 | K18: 6 | L18: 7 | M18: 8 | R18: 9 | S18: 10 | T18: 11 | U18: 12 | V18: 13 | W18: 14 | X18: 15 | Y18: 16 | Z18: 17 | AA18: 18 | AB18: 19 | AC18: 20
A20: 23 | F20: Stanoviště 5 | N20: Stanoviště 1 | R20: Stanoviště 2 | V20: Stanoviště 3 | Z20: Stanoviště 4
F21: 1 | G21: 2 | H21: 3 | I21: 4 | N21: 5 | O21: 6 | P21: 7 | Q21: 8 | R21: 9 | S21: 10 | T21: 11 | U21: 12 | V21: 13 | W21: 14 | X21: 15 | Y21: 16 | Z21: 17 | AA21: 18 | AB21: 19 | AC21: 20
A23: 24 | J23: Stanoviště 1 | N23: Stanoviště 2 | R23: Stanoviště 3 | V23: Stanoviště 4 | Z23: Stanoviště 5
J24: 1 | K24: 2 | L24: 3 | M24: 4 | N24: 5 | O24: 6 | P24: 7 | Q24: 8 | R24: 9 | S24: 10 | T24: 11 | U24: 12 | V24: 13 | W24: 14 | X24: 15 | Y24: 16 | Z24: 17 | AA24: 18 | AB24: 19 | AC24: 20
A26: Poznámky:

Sheet SkS-5 (hidden)
A2: POLOŽKOVÝ LIST
A3: =Vstup!C2&IF(Vstup!C3<>"",", "&Vstup!C3,"") -> COMPAK SPORTING SPECIÁL, 160 terčů
A4: =Vstup!C4&", "&Vstup!C5 -> COMPAK SPORTING, 3.6.2012
A6: Skupina: | C6: 5 | D6: Kolo : | E6: 1 | F6: Rozhodčí: | AD6: ∑ | AE6: Podpis
A7: St. č. | B7: Příjmení, jméno | E7: Kat. | F7: Terče
A8: 25 | F8: Stanoviště 1 | J8: Stanoviště 2 | N8: Stanoviště 3 | R8: Stanoviště 4 | V8: Stanoviště 5
F9: 1 | G9: 2 | H9: 3 | I9: 4 | J9: 5 | K9: 6 | L9: 7 | M9: 8 | N9: 9 | O9: 10 | P9: 11 | Q9: 12 | R9: 13 | S9: 14 | T9: 15 | U9: 16 | V9: 17 | W9: 18 | X9: 19 | Y9: 20
A11: 26 | F11: Stanoviště 2 | J11: Stanoviště 3 | N11: Stanoviště 4 | R11: Stanoviště 5 | Z11: Stanoviště 1
F12: 1 | G12: 2 | H12: 3 | I12: 4 | J12: 5 | K12: 6 | L12: 7 | M12: 8 | N12: 9 | O12: 10 | P12: 11 | Q12: 12 | R12: 13 | S12: 14 | T12: 15 | U12: 16 | Z12: 17 | AA12: 18 | AB12: 19 | AC12: 20
A14: 27 | F14: Stanoviště 3 | J14: Stanoviště 4 | N14: Stanoviště 5 | V14: Stanoviště 1 | Z14: Stanoviště 2
F15: 1 | G15: 2 | H15: 3 | I15: 4 | J15: 5 | K15: 6 | L15: 7 | M15: 8 | N15: 9 | O15: 10 | P15: 11 | Q15: 12 | V15: 13 | W15: 14 | X15: 15 | Y15: 16 | Z15: 17 | AA15: 18 | AB15: 19 | AC15: 20
A17: 28 | F17: Stanoviště 4 | J17: Stanoviště 5 | R17: Stanoviště 1 | V17: Stanoviště 2 | Z17: Stanoviště 3
F18: 1 | G18: 2 | H18: 3 | I18: 4 | J18: 5 | K18: 6 | L18: 7 | M18: 8 | R18: 9 | S18: 10 | T18: 11 | U18: 12 | V18: 13 | W18: 14 | X18: 15 | Y18: 16 | Z18: 17 | AA18: 18 | AB18: 19 | AC18: 20
A20: 29 | F20: Stanoviště 5 | N20: Stanoviště 1 | R20: Stanoviště 2 | V20: Stanoviště 3 | Z20: Stanoviště 4
F21: 1 | G21: 2 | H21: 3 | I21: 4 | N21: 5 | O21: 6 | P21: 7 | Q21: 8 | R21: 9 | S21: 10 | T21: 11 | U21: 12 | V21: 13 | W21: 14 | X21: 15 | Y21: 16 | Z21: 17 | AA21: 18 | AB21: 19 | AC21: 20
A23: 30 | J23: Stanoviště 1 | N23: Stanoviště 2 | R23: Stanoviště 3 | V23: Stanoviště 4 | Z23: Stanoviště 5
J24: 1 | K24: 2 | L24: 3 | M24: 4 | N24: 5 | O24: 6 | P24: 7 | Q24: 8 | R24: 9 | S24: 10 | T24: 11 | U24: 12 | V24: 13 | W24: 14 | X24: 15 | Y24: 16 | Z24: 17 | AA24: 18 | AB24: 19 | AC24: 20
A26: Poznámky:

Sheet SkS-6 (hidden)
A2: POLOŽKOVÝ LIST
A3: =Vstup!C2&IF(Vstup!C3<>"",", "&Vstup!C3,"") -> COMPAK SPORTING SPECIÁL, 160 terčů
A4: =Vstup!C4&", "&Vstup!C5 -> COMPAK SPORTING, 3.6.2012
A6: Skupina: | C6: 6 | D6: Kolo : | E6: 1 | F6: Rozhodčí: | AD6: ∑ | AE6: Podpis
A7: St. č. | B7: Příjmení, jméno | E7: Kat. | F7: Terče
A8: 31 | F8: Stanoviště 1 | J8: Stanoviště 2 | N8: Stanoviště 3 | R8: Stanoviště 4 | V8: Stanoviště 5
F9: 1 | G9: 2 | H9: 3 | I9: 4 | J9: 5 | K9: 6 | L9: 7 | M9: 8 | N9: 9 | O9: 10 | P9: 11 | Q9: 12 | R9: 13 | S9: 14 | T9: 15 | U9: 16 | V9: 17 | W9: 18 | X9: 19 | Y9: 20
A11: 32 | F11: Stanoviště 2 | J11: Stanoviště 3 | N11: Stanoviště 4 | R11: Stanoviště 5 | Z11: Stanoviště 1
F12: 1 | G12: 2 | H12: 3 | I12: 4 | J12: 5 | K12: 6 | L12: 7 | M12: 8 | N12: 9 | O12: 10 | P12: 11 | Q12: 12 | R12: 13 | S12: 14 | T12: 15 | U12: 16 | Z12: 17 | AA12: 18 | AB12: 19 | AC12: 20
A14: 33 | F14: Stanoviště 3 | J14: Stanoviště 4 | N14: Stanoviště 5 | V14: Stanoviště 1 | Z14: Stanoviště 2
F15: 1 | G15: 2 | H15: 3 | I15: 4 | J15: 5 | K15: 6 | L15: 7 | M15: 8 | N15: 9 | O15: 10 | P15: 11 | Q15: 12 | V15: 13 | W15: 14 | X15: 15 | Y15: 16 | Z15: 17 | AA15: 18 | AB15: 19 | AC15: 20
A17: 34 | F17: Stanoviště 4 | J17: Stanoviště 5 | R17: Stanoviště 1 | V17: Stanoviště 2 | Z17: Stanoviště 3
F18: 1 | G18: 2 | H18: 3 | I18: 4 | J18: 5 | K18: 6 | L18: 7 | M18: 8 | R18: 9 | S18: 10 | T18: 11 | U18: 12 | V18: 13 | W18: 14 | X18: 15 | Y18: 16 | Z18: 17 | AA18: 18 | AB18: 19 | AC18: 20
A20: 35 | F20: Stanoviště 5 | N20: Stanoviště 1 | R20: Stanoviště 2 | V20: Stanoviště 3 | Z20: Stanoviště 4
F21: 1 | G21: 2 | H21: 3 | I21: 4 | N21: 5 | O21: 6 | P21: 7 | Q21: 8 | R21: 9 | S21: 10 | T21: 11 | U21: 12 | V21: 13 | W21: 14 | X21: 15 | Y21: 16 | Z21: 17 | AA21: 18 | AB21: 19 | AC21: 20
A23: 36 | J23: Stanoviště 1 | N23: Stanoviště 2 | R23: Stanoviště 3 | V23: Stanoviště 4 | Z23: Stanoviště 5
J24: 1 | K24: 2 | L24: 3 | M24: 4 | N24: 5 | O24: 6 | P24: 7 | Q24: 8 | R24: 9 | S24: 10 | T24: 11 | U24: 12 | V24: 13 | W24: 14 | X24: 15 | Y24: 16 | Z24: 17 | AA24: 18 | AB24: 19 | AC24: 20
A26: Poznámky:

Sheet SkS-7 (hidden)
A2: POLOŽKOVÝ LIST
A3: =Vstup!C2&IF(Vstup!C3<>"",", "&Vstup!C3,"") -> COMPAK SPORTING SPECIÁL, 160 terčů
A4: =Vstup!C4&", "&Vstup!C5 -> COMPAK SPORTING, 3.6.2012
A6: Skupina: | C6: 7 | D6: Kolo : | E6: 1 | F6: Rozhodčí: | AD6: ∑ | AE6: Podpis
A7: St. č. | B7: Příjmení, jméno | E7: Kat. | F7: Terče
A8: 37 | F8: Stanoviště 1 | J8: Stanoviště 2 | N8: Stanoviště 3 | R8: Stanoviště 4 | V8: Stanoviště 5
F9: 1 | G9: 2 | H9: 3 | I9: 4 | J9: 5 | K9: 6 | L9: 7 | M9: 8 | N9: 9 | O9: 10 | P9: 11 | Q9: 12 | R9: 13 | S9: 14 | T9: 15 | U9: 16 | V9: 17 | W9: 18 | X9: 19 | Y9: 20
A11: 38 | F11: Stanoviště 2 | J11: Stanoviště 3 | N11: Stanoviště 4 | R11: Stanoviště 5 | Z11: Stanoviště 1
F12: 1 | G12: 2 | H12: 3 | I12: 4 | J12: 5 | K12: 6 | L12: 7 | M12: 8 | N12: 9 | O12: 10 | P12: 11 | Q12: 12 | R12: 13 | S12: 14 | T12: 15 | U12: 16 | Z12: 17 | AA12: 18 | AB12: 19 | AC12: 20
A14: 39 | F14: Stanoviště 3 | J14: Stanoviště 4 | N14: Stanoviště 5 | V14: Stanoviště 1 | Z14: Stanoviště 2
F15: 1 | G15: 2 | H15: 3 | I15: 4 | J15: 5 | K15: 6 | L15: 7 | M15: 8 | N15: 9 | O15: 10 | P15: 11 | Q15: 12 | V15: 13 | W15: 14 | X15: 15 | Y15: 16 | Z15: 17 | AA15: 18 | AB15: 19 | AC15: 20
A17: 40 | F17: Stanoviště 4 | J17: Stanoviště 5 | R17: Stanoviště 1 | V17: Stanoviště 2 | Z17: Stanoviště 3
F18: 1 | G18: 2 | H18: 3 | I18: 4 | J18: 5 | K18: 6 | L18: 7 | M18: 8 | R18: 9 | S18: 10 | T18: 11 | U18: 12 | V18: 13 | W18: 14 | X18: 15 | Y18: 16 | Z18: 17 | AA18: 18 | AB18: 19 | AC18: 20
A20: 41 | F20: Stanoviště 5 | N20: Stanoviště 1 | R20: Stanoviště 2 | V20: Stanoviště 3 | Z20: Stanoviště 4
F21: 1 | G21: 2 | H21: 3 | I21: 4 | N21: 5 | O21: 6 | P21: 7 | Q21: 8 | R21: 9 | S21: 10 | T21: 11 | U21: 12 | V21: 13 | W21: 14 | X21: 15 | Y21: 16 | Z21: 17 | AA21: 18 | AB21: 19 | AC21: 20
A23: 42 | J23: Stanoviště 1 | N23: Stanoviště 2 | R23: Stanoviště 3 | V23: Stanoviště 4 | Z23: Stanoviště 5
J24: 1 | K24: 2 | L24: 3 | M24: 4 | N24: 5 | O24: 6 | P24: 7 | Q24: 8 | R24: 9 | S24: 10 | T24: 11 | U24: 12 | V24: 13 | W24: 14 | X24: 15 | Y24: 16 | Z24: 17 | AA24: 18 | AB24: 19 | AC24: 20
A26: Poznámky:

Sheet SkS-8 (hidden)
A2: POLOŽKOVÝ LIST
A3: =Vstup!C2&IF(Vstup!C3<>"",", "&Vstup!C3,"") -> COMPAK SPORTING SPECIÁL, 160 terčů
A4: =Vstup!C4&", "&Vstup!C5 -> COMPAK SPORTING, 3.6.2012
A6: Skupina: | C6: 8 | D6: Kolo : | E6: 1 | F6: Rozhodčí: | AD6: ∑ | AE6: Podpis
A7: St. č. | B7: Příjmení, jméno | E7: Kat. | F7: Terče
A8: 43 | B8: Divíšek Martin | E8: A | F8: Stanoviště 1 | J8: Stanoviště 2 | N8: Stanoviště 3 | R8: Stanoviště 4 | V8: Stanoviště 5
F9: 1 | G9: 2 | H9: 3 | I9: 4 | J9: 5 | K9: 6 | L9: 7 | M9: 8 | N9: 9 | O9: 10 | P9: 11 | Q9: 12 | R9: 13 | S9: 14 | T9: 15 | U9: 16 | V9: 17 | W9: 18 | X9: 19 | Y9: 20
A11: 44 | B11: Hřebec Jan | E11: A | F11: Stanoviště 2 | J11: Stanoviště 3 | N11: Stanoviště 4 | R11: Stanoviště 5 | Z11: Stanoviště 1
F12: 1 | G12: 2 | H12: 3 | I12: 4 | J12: 5 | K12: 6 | L12: 7 | M12: 8 | N12: 9 | O12: 10 | P12: 11 | Q12: 12 | R12: 13 | S12: 14 | T12: 15 | U12: 16 | Z12: 17 | AA12: 18 | AB12: 19 | AC12: 20
A14: 45 | F14: Stanoviště 3 | J14: Stanoviště 4 | N14: Stanoviště 5 | V14: Stanoviště 1 | Z14: Stanoviště 2
F15: 1 | G15: 2 | H15: 3 | I15: 4 | J15: 5 | K15: 6 | L15: 7 | M15: 8 | N15: 9 | O15: 10 | P15: 11 | Q15: 12 | V15: 13 | W15: 14 | X15: 15 | Y15: 16 | Z15: 17 | AA15: 18 | AB15: 19 | AC15: 20
A17: 46 | F17: Stanoviště 4 | J17: Stanoviště 5 | R17: Stanoviště 1 | V17: Stanoviště 2 | Z17: Stanoviště 3
F18: 1 | G18: 2 | H18: 3 | I18: 4 | J18: 5 | K18: 6 | L18: 7 | M18: 8 | R18: 9 | S18: 10 | T18: 11 | U18: 12 | V18: 13 | W18: 14 | X18: 15 | Y18: 16 | Z18: 17 | AA18: 18 | AB18: 19 | AC18: 20
A20: 47 | F20: Stanoviště 5 | N20: Stanoviště 1 | R20: Stanoviště 2 | V20: Stanoviště 3 | Z20: Stanoviště 4
F21: 1 | G21: 2 | H21: 3 | I21: 4 | N21: 5 | O21: 6 | P21: 7 | Q21: 8 | R21: 9 | S21: 10 | T21: 11 | U21: 12 | V21: 13 | W21: 14 | X21: 15 | Y21: 16 | Z21: 17 | AA21: 18 | AB21: 19 | AC21: 20
A23: 48 | J23: Stanoviště 1 | N23: Stanoviště 2 | R23: Stanoviště 3 | V23: Stanoviště 4 | Z23: Stanoviště 5
J24: 1 | K24: 2 | L24: 3 | M24: 4 | N24: 5 | O24: 6 | P24: 7 | Q24: 8 | R24: 9 | S24: 10 | T24: 11 | U24: 12 | V24: 13 | W24: 14 | X24: 15 | Y24: 16 | Z24: 17 | AA24: 18 | AB24: 19 | AC24: 20
A26: Poznámky:

Sheet SkS-16 (hidden)
A2: POLOŽKOVÝ LIST
A3: =Vstup!C2&IF(Vstup!C3<>"",", "&Vstup!C3,"") -> COMPAK SPORTING SPECIÁL, 160 terčů
A4: =Vstup!C4&", "&Vstup!C5 -> COMPAK SPORTING, 3.6.2012
A6: Skupina: | C6: 1 | D6: Kolo : | E6: 1 | F6: Rozhodčí: | K6: 1________________ | P6: 2________________ | U6: 3________________ | Z6: 4________________ | AE6: ∑ | AF6: Podpis
A7: St. č. | B7: Příjmení, jméno | E7: Kat. | F7: Terče
A8: 1 | B8: Jankovský Jakub | E8: J | F8: 25 | G8: 24 | H8: 23 | I8: 22 | J8: 21 | K8: 20 | L8: 19 | M8: 18 | N8: 17 | O8: 16 | P8: 15 | Q8: 14 | R8: 13 | S8: 12 | T8: 11 | U8: 10 | V8: 9 | W8: 8 | X8: 7 | Y8: 6 | Z8: 5 | AA8: 4 | AB8: 3 | AC8: 2 | AD8: 1
A10: 2 | B10: Neuvirt Martin | E10: B | F10: 25 | G10: 24 | H10: 23 | I10: 22 | J10: 21 | K10: 20 | L10: 19 | M10: 18 | N10: 17 | O10: 16 | P10: 15 | Q10: 14 | R10: 13 | S10: 12 | T10: 11 | U10: 10 | V10: 9 | W10: 8 | X10: 7 | Y10: 6 | Z10: 5 | AA10: 4 | AB10: 3 | AC10: 2 | AD10: 1
A12: 3 | B12: Škanta Marek | E12: A | F12: 25 | G12: 24 | H12: 23 | I12: 22 | J12: 21 | K12: 20 | L12: 19 | M12: 18 | N12: 17 | O12: 16 | P12: 15 | Q12: 14 | R12: 13 | S12: 12 | T12: 11 | U12: 10 | V12: 9 | W12: 8 | X12: 7 | Y12: 6 | Z12: 5 | AA12: 4 | AB12: 3 | AC12: 2 | AD12: 1
A14: 4 | B14: Neuvirt Václav | E14: V | F14: 25 | G14: 24 | H14: 23 | I14: 22 | J14: 21 | K14: 20 | L14: 19 | M14: 18 | N14: 17 | O14: 16 | P14: 15 | Q14: 14 | R14: 13 | S14: 12 | T14: 11 | U14: 10 | V14: 9 | W14: 8 | X14: 7 | Y14: 6 | Z14: 5 | AA14: 4 | AB14: 3 | AC14: 2 | AD14: 1
A16: 5 | B16: Koloc Martin | E16: B | F16: 25 | G16: 24 | H16: 23 | I16: 22 | J16: 21 | K16: 20 | L16: 19 | M16: 18 | N16: 17 | O16: 16 | P16: 15 | Q16: 14 | R16: 13 | S16: 12 | T16: 11 | U16: 10 | V16: 9 | W16: 8 | X16: 7 | Y16: 6 | Z16: 5 | AA16: 4 | AB16: 3 | AC16: 2 | AD16: 1
A18: 6 | B18: Kodeš Václav | E18: B | F18: 25 | G18: 24 | H18: 23 | I18: 22 | J18: 21 | K18: 20 | L18: 19 | M18: 18 | N18: 17 | O18: 16 | P18: 15 | Q18: 14 | R18: 13 | S18: 12 | T18: 11 | U18: 10 | V18: 9 | W18: 8 | X18: 7 | Y18: 6 | Z18: 5 | AA18: 4 | AB18: 3 | AC18: 2 | AD18: 1
A20: Poznámky:

Sheet SkS-17 (hidden)
A2: POLOŽKOVÝ LIST
A3: =Vstup!C2&IF(Vstup!C3<>"",", "&Vstup!C3,"") -> COMPAK SPORTING SPECIÁL, 160 terčů
A4: =Vstup!C4&", "&Vstup!C5 -> COMPAK SPORTING, 3.6.2012
A6: Skupina: | C6: 1 | D6: Kolo : | E6: 1 | F6: Rozhodčí: | K6: 1________________ | P6: 2________________ | U6: 3________________ | Z6: 4________________ | AE6: ∑ | AF6: Podpis
A7: St. č. | B7: Příjmení, jméno | E7: Kat. | F7: Terče
A8: 1 | B8: Jankovský Jakub | E8: J | F8: 25 | G8: 24 | H8: 23 | I8: 22 | J8: 21 | K8: 20 | L8: 19 | M8: 18 | N8: 17 | O8: 16 | P8: 15 | Q8: 14 | R8: 13 | S8: 12 | T8: 11 | U8: 10 | V8: 9 | W8: 8 | X8: 7 | Y8: 6 | Z8: 5 | AA8: 4 | AB8: 3 | AC8: 2 | AD8: 1
A10: 2 | B10: Neuvirt Martin | E10: B | F10: 25 | G10: 24 | H10: 23 | I10: 22 | J10: 21 | K10: 20 | L10: 19 | M10: 18 | N10: 17 | O10: 16 | P10: 15 | Q10: 14 | R10: 13 | S10: 12 | T10: 11 | U10: 10 | V10: 9 | W10: 8 | X10: 7 | Y10: 6 | Z10: 5 | AA10: 4 | AB10: 3 | AC10: 2 | AD10: 1
A12: 3 | B12: Škanta Marek | E12: A | F12: 25 | G12: 24 | H12: 23 | I12: 22 | J12: 21 | K12: 20 | L12: 19 | M12: 18 | N12: 17 | O12: 16 | P12: 15 | Q12: 14 | R12: 13 | S12: 12 | T12: 11 | U12: 10 | V12: 9 | W12: 8 | X12: 7 | Y12: 6 | Z12: 5 | AA12: 4 | AB12: 3 | AC12: 2 | AD12: 1
A14: 4 | B14: Neuvirt Václav | E14: V | F14: 25 | G14: 24 | H14: 23 | I14: 22 | J14: 21 | K14: 20 | L14: 19 | M14: 18 | N14: 17 | O14: 16 | P14: 15 | Q14: 14 | R14: 13 | S14: 12 | T14: 11 | U14: 10 | V14: 9 | W14: 8 | X14: 7 | Y14: 6 | Z14: 5 | AA14: 4 | AB14: 3 | AC14: 2 | AD14: 1
A16: 5 | B16: Koloc Martin | E16: B | F16: 25 | G16: 24 | H16: 23 | I16: 22 | J16: 21 | K16: 20 | L16: 19 | M16: 18 | N16: 17 | O16: 16 | P16: 15 | Q16: 14 | R16: 13 | S16: 12 | T16: 11 | U16: 10 | V16: 9 | W16: 8 | X16: 7 | Y16: 6 | Z16: 5 | AA16: 4 | AB16: 3 | AC16: 2 | AD16: 1
A18: 6 | B18: Kodeš Václav | E18: B | F18: 25 | G18: 24 | H18: 23 | I18: 22 | J18: 21 | K18: 20 | L18: 19 | M18: 18 | N18: 17 | O18: 16 | P18: 15 | Q18: 14 | R18: 13 | S18: 12 | T18: 11 | U18: 10 | V18: 9 | W18: 8 | X18: 7 | Y18: 6 | Z18: 5 | AA18: 4 | AB18: 3 | AC18: 2 | AD18: 1
A20: Poznámky:

Sheet SkS-18 (hidden)
A2: POLOŽKOVÝ LIST
A3: =Vstup!C2&IF(Vstup!C3<>"",", "&Vstup!C3,"") -> COMPAK SPORTING SPECIÁL, 160 terčů
A4: =Vstup!C4&", "&Vstup!C5 -> COMPAK SPORTING, 3.6.2012
A6: Skupina: | C6: 1 | D6: Kolo : | E6: 1 | F6: Rozhodčí: | K6: 1________________ | P6: 2________________ | U6: 3________________ | Z6: 4________________ | AE6: ∑ | AF6: Podpis
A7: St. č. | B7: Příjmení, jméno | E7: Kat. | F7: Terče
A8: 1 | B8: Jankovský Jakub | E8: J | F8: 25 | G8: 24 | H8: 23 | I8: 22 | J8: 21 | K8: 20 | L8: 19 | M8: 18 | N8: 17 | O8: 16 | P8: 15 | Q8: 14 | R8: 13 | S8: 12 | T8: 11 | U8: 10 | V8: 9 | W8: 8 | X8: 7 | Y8: 6 | Z8: 5 | AA8: 4 | AB8: 3 | AC8: 2 | AD8: 1
A10: 2 | B10: Neuvirt Martin | E10: B | F10: 25 | G10: 24 | H10: 23 | I10: 22 | J10: 21 | K10: 20 | L10: 19 | M10: 18 | N10: 17 | O10: 16 | P10: 15 | Q10: 14 | R10: 13 | S10: 12 | T10: 11 | U10: 10 | V10: 9 | W10: 8 | X10: 7 | Y10: 6 | Z10: 5 | AA10: 4 | AB10: 3 | AC10: 2 | AD10: 1
A12: 3 | B12: Škanta Marek | E12: A | F12: 25 | G12: 24 | H12: 23 | I12: 22 | J12: 21 | K12: 20 | L12: 19 | M12: 18 | N12: 17 | O12: 16 | P12: 15 | Q12: 14 | R12: 13 | S12: 12 | T12: 11 | U12: 10 | V12: 9 | W12: 8 | X12: 7 | Y12: 6 | Z12: 5 | AA12: 4 | AB12: 3 | AC12: 2 | AD12: 1
A14: 4 | B14: Neuvirt Václav | E14: V | F14: 25 | G14: 24 | H14: 23 | I14: 22 | J14: 21 | K14: 20 | L14: 19 | M14: 18 | N14: 17 | O14: 16 | P14: 15 | Q14: 14 | R14: 13 | S14: 12 | T14: 11 | U14: 10 | V14: 9 | W14: 8 | X14: 7 | Y14: 6 | Z14: 5 | AA14: 4 | AB14: 3 | AC14: 2 | AD14: 1
A16: 5 | B16: Koloc Martin | E16: B | F16: 25 | G16: 24 | H16: 23 | I16: 22 | J16: 21 | K16: 20 | L16: 19 | M16: 18 | N16: 17 | O16: 16 | P16: 15 | Q16: 14 | R16: 13 | S16: 12 | T16: 11 | U16: 10 | V16: 9 | W16: 8 | X16: 7 | Y16: 6 | Z16: 5 | AA16: 4 | AB16: 3 | AC16: 2 | AD16: 1
A18: 6 | B18: Kodeš Václav | E18: B | F18: 25 | G18: 24 | H18: 23 | I18: 22 | J18: 21 | K18: 20 | L18: 19 | M18: 18 | N18: 17 | O18: 16 | P18: 15 | Q18: 14 | R18: 13 | S18: 12 | T18: 11 | U18: 10 | V18: 9 | W18: 8 | X18: 7 | Y18: 6 | Z18: 5 | AA18: 4 | AB18: 3 | AC18: 2 | AD18: 1
A20: Poznámky:

Sheet SkS-19 (hidden)
A2: POLOŽKOVÝ LIST
A3: =Vstup!C2&IF(Vstup!C3<>"",", "&Vstup!C3,"") -> COMPAK SPORTING SPECIÁL, 160 terčů
A4: =Vstup!C4&", "&Vstup!C5 -> COMPAK SPORTING, 3.6.2012
A6: Skupina: | C6: 1 | D6: Kolo : | E6: 1 | F6: Rozhodčí: | K6: 1________________ | P6: 2________________ | U6: 3________________ | Z6: 4________________ | AE6: ∑ | AF6: Podpis
A7: St. č. | B7: Příjmení, jméno | E7: Kat. | F7: Terče
A8: 1 | B8: Jankovský Jakub | E8: J | F8: 25 | G8: 24 | H8: 23 | I8: 22 | J8: 21 | K8: 20 | L8: 19 | M8: 18 | N8: 17 | O8: 16 | P8: 15 | Q8: 14 | R8: 13 | S8: 12 | T8: 11 | U8: 10 | V8: 9 | W8: 8 | X8: 7 | Y8: 6 | Z8: 5 | AA8: 4 | AB8: 3 | AC8: 2 | AD8: 1
A10: 2 | B10: Neuvirt Martin | E10: B | F10: 25 | G10: 24 | H10: 23 | I10: 22 | J10: 21 | K10: 20 | L10: 19 | M10: 18 | N10: 17 | O10: 16 | P10: 15 | Q10: 14 | R10: 13 | S10: 12 | T10: 11 | U10: 10 | V10: 9 | W10: 8 | X10: 7 | Y10: 6 | Z10: 5 | AA10: 4 | AB10: 3 | AC10: 2 | AD10: 1
A12: 3 | B12: Škanta Marek | E12: A | F12: 25 | G12: 24 | H12: 23 | I12: 22 | J12: 21 | K12: 20 | L12: 19 | M12: 18 | N12: 17 | O12: 16 | P12: 15 | Q12: 14 | R12: 13 | S12: 12 | T12: 11 | U12: 10 | V12: 9 | W12: 8 | X12: 7 | Y12: 6 | Z12: 5 | AA12: 4 | AB12: 3 | AC12: 2 | AD12: 1
A14: 4 | B14: Neuvirt Václav | E14: V | F14: 25 | G14: 24 | H14: 23 | I14: 22 | J14: 21 | K14: 20 | L14: 19 | M14: 18 | N14: 17 | O14: 16 | P14: 15 | Q14: 14 | R14: 13 | S14: 12 | T14: 11 | U14: 10 | V14: 9 | W14: 8 | X14: 7 | Y14: 6 | Z14: 5 | AA14: 4 | AB14: 3 | AC14: 2 | AD14: 1
A16: 5 | B16: Koloc Martin | E16: B | F16: 25 | G16: 24 | H16: 23 | I16: 22 | J16: 21 | K16: 20 | L16: 19 | M16: 18 | N16: 17 | O16: 16 | P16: 15 | Q16: 14 | R16: 13 | S16: 12 | T16: 11 | U16: 10 | V16: 9 | W16: 8 | X16: 7 | Y16: 6 | Z16: 5 | AA16: 4 | AB16: 3 | AC16: 2 | AD16: 1
A18: 6 | B18: Kodeš Václav | E18: B | F18: 25 | G18: 24 | H18: 23 | I18: 22 | J18: 21 | K18: 20 | L18: 19 | M18: 18 | N18: 17 | O18: 16 | P18: 15 | Q18: 14 | R18: 13 | S18: 12 | T18: 11 | U18: 10 | V18: 9 | W18: 8 | X18: 7 | Y18: 6 | Z18: 5 | AA18: 4 | AB18: 3 | AC18: 2 | AD18: 1
A20: Poznámky:

Sheet SkS-20 (hidden)
A2: POLOŽKOVÝ LIST
A3: =Vstup!C2&IF(Vstup!C3<>"",", "&Vstup!C3,"") -> COMPAK SPORTING SPECIÁL, 160 terčů
A4: =Vstup!C4&", "&Vstup!C5 -> COMPAK SPORTING, 3.6.2012
A6: Skupina: | C6: 1 | D6: Kolo : | E6: 1 | F6: Rozhodčí: | K6: 1________________ | P6: 2________________ | U6: 3________________ | Z6: 4________________ | AE6: ∑ | AF6: Podpis
A7: St. č. | B7: Příjmení, jméno | E7: Kat. | F7: Terče
A8: 1 | B8: Jankovský Jakub | E8: J | F8: 25 | G8: 24 | H8: 23 | I8: 22 | J8: 21 | K8: 20 | L8: 19 | M8: 18 | N8: 17 | O8: 16 | P8: 15 | Q8: 14 | R8: 13 | S8: 12 | T8: 11 | U8: 10 | V8: 9 | W8: 8 | X8: 7 | Y8: 6 | Z8: 5 | AA8: 4 | AB8: 3 | AC8: 2 | AD8: 1
A10: 2 | B10: Neuvirt Martin | E10: B | F10: 25 | G10: 24 | H10: 23 | I10: 22 | J10: 21 | K10: 20 | L10: 19 | M10: 18 | N10: 17 | O10: 16 | P10: 15 | Q10: 14 | R10: 13 | S10: 12 | T10: 11 | U10: 10 | V10: 9 | W10: 8 | X10: 7 | Y10: 6 | Z10: 5 | AA10: 4 | AB10: 3 | AC10: 2 | AD10: 1
A12: 3 | B12: Škanta Marek | E12: A | F12: 25 | G12: 24 | H12: 23 | I12: 22 | J12: 21 | K12: 20 | L12: 19 | M12: 18 | N12: 17 | O12: 16 | P12: 15 | Q12: 14 | R12: 13 | S12: 12 | T12: 11 | U12: 10 | V12: 9 | W12: 8 | X12: 7 | Y12: 6 | Z12: 5 | AA12: 4 | AB12: 3 | AC12: 2 | AD12: 1
A14: 4 | B14: Neuvirt Václav | E14: V | F14: 25 | G14: 24 | H14: 23 | I14: 22 | J14: 21 | K14: 20 | L14: 19 | M14: 18 | N14: 17 | O14: 16 | P14: 15 | Q14: 14 | R14: 13 | S14: 12 | T14: 11 | U14: 10 | V14: 9 | W14: 8 | X14: 7 | Y14: 6 | Z14: 5 | AA14: 4 | AB14: 3 | AC14: 2 | AD14: 1
A16: 5 | B16: Koloc Martin | E16: B | F16: 25 | G16: 24 | H16: 23 | I16: 22 | J16: 21 | K16: 20 | L16: 19 | M16: 18 | N16: 17 | O16: 16 | P16: 15 | Q16: 14 | R16: 13 | S16: 12 | T16: 11 | U16: 10 | V16: 9 | W16: 8 | X16: 7 | Y16: 6 | Z16: 5 | AA16: 4 | AB16: 3 | AC16: 2 | AD16: 1
A18: 6 | B18: Kodeš Václav | E18: B | F18: 25 | G18: 24 | H18: 23 | I18: 22 | J18: 21 | K18: 20 | L18: 19 | M18: 18 | N18: 17 | O18: 16 | P18: 15 | Q18: 14 | R18: 13 | S18: 12 | T18: 11 | U18: 10 | V18: 9 | W18: 8 | X18: 7 | Y18: 6 | Z18: 5 | AA18: 4 | AB18: 3 | AC18: 2 | AD18: 1
A20: Poznámky:

Sheet SkS-9 (hidden)
A2: POLOŽKOVÝ LIST
A3: =Vstup!C2&IF(Vstup!C3<>"",", "&Vstup!C3,"") -> COMPAK SPORTING SPECIÁL, 160 terčů
A4: =Vstup!C4&", "&Vstup!C5 -> COMPAK SPORTING, 3.6.2012
A6: Skupina: | C6: 9 | D6: Kolo : | E6: 1 | F6: Rozhodčí: | AD6: ∑ | AE6: Podpis
A7: St. č. | B7: Příjmení, jméno | E7: Kat. | F7: Terče
A8: 49 | F8: Stanoviště 1 | J8: Stanoviště 2 | N8: Stanoviště 3 | R8: Stanoviště 4 | V8: Stanoviště 5
F9: 1 | G9: 2 | H9: 3 | I9: 4 | J9: 5 | K9: 6 | L9: 7 | M9: 8 | N9: 9 | O9: 10 | P9: 11 | Q9: 12 | R9: 13 | S9: 14 | T9: 15 | U9: 16 | V9: 17 | W9: 18 | X9: 19 | Y9: 20
A11: 50 | F11: Stanoviště 2 | J11: Stanoviště 3 | N11: Stanoviště 4 | R11: Stanoviště 5 | Z11: Stanoviště 1
F12: 1 | G12: 2 | H12: 3 | I12: 4 | J12: 5 | K12: 6 | L12: 7 | M12: 8 | N12: 9 | O12: 10 | P12: 11 | Q12: 12 | R12: 13 | S12: 14 | T12: 15 | U12: 16 | Z12: 17 | AA12: 18 | AB12: 19 | AC12: 20
A14: 51 | F14: Stanoviště 3 | J14: Stanoviště 4 | N14: Stanoviště 5 | V14: Stanoviště 1 | Z14: Stanoviště 2
F15: 1 | G15: 2 | H15: 3 | I15: 4 | J15: 5 | K15: 6 | L15: 7 | M15: 8 | N15: 9 | O15: 10 | P15: 11 | Q15: 12 | V15: 13 | W15: 14 | X15: 15 | Y15: 16 | Z15: 17 | AA15: 18 | AB15: 19 | AC15: 20
A17: 52 | F17: Stanoviště 4 | J17: Stanoviště 5 | R17: Stanoviště 1 | V17: Stanoviště 2 | Z17: Stanoviště 3
F18: 1 | G18: 2 | H18: 3 | I18: 4 | J18: 5 | K18: 6 | L18: 7 | M18: 8 | R18: 9 | S18: 10 | T18: 11 | U18: 12 | V18: 13 | W18: 14 | X18: 15 | Y18: 16 | Z18: 17 | AA18: 18 | AB18: 19 | AC18: 20
A20: 53 | F20: Stanoviště 5 | N20: Stanoviště 1 | R20: Stanoviště 2 | V20: Stanoviště 3 | Z20: Stanoviště 4
F21: 1 | G21: 2 | H21: 3 | I21: 4 | N21: 5 | O21: 6 | P21: 7 | Q21: 8 | R21: 9 | S21: 10 | T21: 11 | U21: 12 | V21: 13 | W21: 14 | X21: 15 | Y21: 16 | Z21: 17 | AA21: 18 | AB21: 19 | AC21: 20
A23: 54 | J23: Stanoviště 1 | N23: Stanoviště 2 | R23: Stanoviště 3 | V23: Stanoviště 4 | Z23: Stanoviště 5
J24: 1 | K24: 2 | L24: 3 | M24: 4 | N24: 5 | O24: 6 | P24: 7 | Q24: 8 | R24: 9 | S24: 10 | T24: 11 | U24: 12 | V24: 13 | W24: 14 | X24: 15 | Y24: 16 | Z24: 17 | AA24: 18 | AB24: 19 | AC24: 20
A26: Poznámky:

Sheet SkS-10 (hidden)
A2: POLOŽKOVÝ LIST
A3: =Vstup!C2&IF(Vstup!C3<>"",", "&Vstup!C3,"") -> COMPAK SPORTING SPECIÁL, 160 terčů
A4: =Vstup!C4&", "&Vstup!C5 -> COMPAK SPORTING, 3.6.2012
A6: Skupina: | C6: 10 | D6: Kolo : | E6: 1 | F6: Rozhodčí: | AD6: ∑ | AE6: Podpis
A7: St. č. | B7: Příjmení, jméno | E7: Kat. | F7: Terče
A8: 55 | F8: Stanoviště 1 | J8: Stanoviště 2 | N8: Stanoviště 3 | R8: Stanoviště 4 | V8: Stanoviště 5
F9: 1 | G9: 2 | H9: 3 | I9: 4 | J9: 5 | K9: 6 | L9: 7 | M9: 8 | N9: 9 | O9: 10 | P9: 11 | Q9: 12 | R9: 13 | S9: 14 | T9: 15 | U9: 16 | V9: 17 | W9: 18 | X9: 19 | Y9: 20
A11: 56 | F11: Stanoviště 2 | J11: Stanoviště 3 | N11: Stanoviště 4 | R11: Stanoviště 5 | Z11: Stanoviště 1
F12: 1 | G12: 2 | H12: 3 | I12: 4 | J12: 5 | K12: 6 | L12: 7 | M12: 8 | N12: 9 | O12: 10 | P12: 11 | Q12: 12 | R12: 13 | S12: 14 | T12: 15 | U12: 16 | Z12: 17 | AA12: 18 | AB12: 19 | AC12: 20
A14: 57 | F14: Stanoviště 3 | J14: Stanoviště 4 | N14: Stanoviště 5 | V14: Stanoviště 1 | Z14: Stanoviště 2
F15: 1 | G15: 2 | H15: 3 | I15: 4 | J15: 5 | K15: 6 | L15: 7 | M15: 8 | N15: 9 | O15: 10 | P15: 11 | Q15: 12 | V15: 13 | W15: 14 | X15: 15 | Y15: 16 | Z15: 17 | AA15: 18 | AB15: 19 | AC15: 20
A17: 58 | F17: Stanoviště 4 | J17: Stanoviště 5 | R17: Stanoviště 1 | V17: Stanoviště 2 | Z17: Stanoviště 3
F18: 1 | G18: 2 | H18: 3 | I18: 4 | J18: 5 | K18: 6 | L18: 7 | M18: 8 | R18: 9 | S18: 10 | T18: 11 | U18: 12 | V18: 13 | W18: 14 | X18: 15 | Y18: 16 | Z18: 17 | AA18: 18 | AB18: 19 | AC18: 20
A20: 59 | F20: Stanoviště 5 | N20: Stanoviště 1 | R20: Stanoviště 2 | V20: Stanoviště 3 | Z20: Stanoviště 4
F21: 1 | G21: 2 | H21: 3 | I21: 4 | N21: 5 | O21: 6 | P21: 7 | Q21: 8 | R21: 9 | S21: 10 | T21: 11 | U21: 12 | V21: 13 | W21: 14 | X21: 15 | Y21: 16 | Z21: 17 | AA21: 18 | AB21: 19 | AC21: 20
A23: 60 | J23: Stanoviště 1 | N23: Stanoviště 2 | R23: Stanoviště 3 | V23: Stanoviště 4 | Z23: Stanoviště 5
J24: 1 | K24: 2 | L24: 3 | M24: 4 | N24: 5 | O24: 6 | P24: 7 | Q24: 8 | R24: 9 | S24: 10 | T24: 11 | U24: 12 | V24: 13 | W24: 14 | X24: 15 | Y24: 16 | Z24: 17 | AA24: 18 | AB24: 19 | AC24: 20
A26: Poznámky:

Sheet SkS-11 (hidden)
A2: POLOŽKOVÝ LIST
A3: =Vstup!C2&IF(Vstup!C3<>"",", "&Vstup!C3,"") -> COMPAK SPORTING SPECIÁL, 160 terčů
A4: =Vstup!C4&", "&Vstup!C5 -> COMPAK SPORTING, 3.6.2012
A6: Skupina: | C6: 11 | D6: Kolo : | E6: 1 | F6: Rozhodčí: | AD6: ∑ | AE6: Podpis
A7: St. č. | B7: Příjmení, jméno | E7: Kat. | F7: Terče
A8: 61 | F8: Stanoviště 1 | J8: Stanoviště 2 | N8: Stanoviště 3 | R8: Stanoviště 4 | V8: Stanoviště 5
F9: 1 | G9: 2 | H9: 3 | I9: 4 | J9: 5 | K9: 6 | L9: 7 | M9: 8 | N9: 9 | O9: 10 | P9: 11 | Q9: 12 | R9: 13 | S9: 14 | T9: 15 | U9: 16 | V9: 17 | W9: 18 | X9: 19 | Y9: 20
A11: 62 | F11: Stanoviště 2 | J11: Stanoviště 3 | N11: Stanoviště 4 | R11: Stanoviště 5 | Z11: Stanoviště 1
F12: 1 | G12: 2 | H12: 3 | I12: 4 | J12: 5 | K12: 6 | L12: 7 | M12: 8 | N12: 9 | O12: 10 | P12: 11 | Q12: 12 | R12: 13 | S12: 14 | T12: 15 | U12: 16 | Z12: 17 | AA12: 18 | AB12: 19 | AC12: 20
A14: 63 | F14: Stanoviště 3 | J14: Stanoviště 4 | N14: Stanoviště 5 | V14: Stanoviště 1 | Z14: Stanoviště 2
F15: 1 | G15: 2 | H15: 3 | I15: 4 | J15: 5 | K15: 6 | L15: 7 | M15: 8 | N15: 9 | O15: 10 | P15: 11 | Q15: 12 | V15: 13 | W15: 14 | X15: 15 | Y15: 16 | Z15: 17 | AA15: 18 | AB15: 19 | AC15: 20
A17: 64 | F17: Stanoviště 4 | J17: Stanoviště 5 | R17: Stanoviště 1 | V17: Stanoviště 2 | Z17: Stanoviště 3
F18: 1 | G18: 2 | H18: 3 | I18: 4 | J18: 5 | K18: 6 | L18: 7 | M18: 8 | R18: 9 | S18: 10 | T18: 11 | U18: 12 | V18: 13 | W18: 14 | X18: 15 | Y18: 16 | Z18: 17 | AA18: 18 | AB18: 19 | AC18: 20
A20: 65 | F20: Stanoviště 5 | N20: Stanoviště 1 | R20: Stanoviště 2 | V20: Stanoviště 3 | Z20: Stanoviště 4
F21: 1 | G21: 2 | H21: 3 | I21: 4 | N21: 5 | O21: 6 | P21: 7 | Q21: 8 | R21: 9 | S21: 10 | T21: 11 | U21: 12 | V21: 13 | W21: 14 | X21: 15 | Y21: 16 | Z21: 17 | AA21: 18 | AB21: 19 | AC21: 20
A23: 66 | J23: Stanoviště 1 | N23: Stanoviště 2 | R23: Stanoviště 3 | V23: Stanoviště 4 | Z23: Stanoviště 5
J24: 1 | K24: 2 | L24: 3 | M24: 4 | N24: 5 | O24: 6 | P24: 7 | Q24: 8 | R24: 9 | S24: 10 | T24: 11 | U24: 12 | V24: 13 | W24: 14 | X24: 15 | Y24: 16 | Z24: 17 | AA24: 18 | AB24: 19 | AC24: 20
A26: Poznámky:

Sheet SkS-12 (hidden)
A2: POLOŽKOVÝ LIST
A3: =Vstup!C2&IF(Vstup!C3<>"",", "&Vstup!C3,"") -> COMPAK SPORTING SPECIÁL, 160 terčů
A4: =Vstup!C4&", "&Vstup!C5 -> COMPAK SPORTING, 3.6.2012
A6: Skupina: | C6: 12 | D6: Kolo : | E6: 1 | F6: Rozhodčí: | AD6: ∑ | AE6: Podpis
A7: St. č. | B7: Příjmení, jméno | E7: Kat. | F7: Terče
A8: 43 | F8: Stanoviště 1 | J8: Stanoviště 2 | N8: Stanoviště 3 | R8: Stanoviště 4 | V8: Stanoviště 5
F9: 1 | G9: 2 | H9: 3 | I9: 4 | J9: 5 | K9: 6 | L9: 7 | M9: 8 | N9: 9 | O9: 10 | P9: 11 | Q9: 12 | R9: 13 | S9: 14 | T9: 15 | U9: 16 | V9: 17 | W9: 18 | X9: 19 | Y9: 20
A11: 44 | F11: Stanoviště 2 | J11: Stanoviště 3 | N11: Stanoviště 4 | R11: Stanoviště 5 | Z11: Stanoviště 1
F12: 1 | G12: 2 | H12: 3 | I12: 4 | J12: 5 | K12: 6 | L12: 7 | M12: 8 | N12: 9 | O12: 10 | P12: 11 | Q12: 12 | R12: 13 | S12: 14 | T12: 15 | U12: 16 | Z12: 17 | AA12: 18 | AB12: 19 | AC12: 20
A14: 45 | F14: Stanoviště 3 | J14: Stanoviště 4 | N14: Stanoviště 5 | V14: Stanoviště 1 | Z14: Stanoviště 2
F15: 1 | G15: 2 | H15: 3 | I15: 4 | J15: 5 | K15: 6 | L15: 7 | M15: 8 | N15: 9 | O15: 10 | P15: 11 | Q15: 12 | V15: 13 | W15: 14 | X15: 15 | Y15: 16 | Z15: 17 | AA15: 18 | AB15: 19 | AC15: 20
A17: 46 | F17: Stanoviště 4 | J17: Stanoviště 5 | R17: Stanoviště 1 | V17: Stanoviště 2 | Z17: Stanoviště 3
F18: 1 | G18: 2 | H18: 3 | I18: 4 | J18: 5 | K18: 6 | L18: 7 | M18: 8 | R18: 9 | S18: 10 | T18: 11 | U18: 12 | V18: 13 | W18: 14 | X18: 15 | Y18: 16 | Z18: 17 | AA18: 18 | AB18: 19 | AC18: 20
A20: 47 | F20: Stanoviště 5 | N20: Stanoviště 1 | R20: Stanoviště 2 | V20: Stanoviště 3 | Z20: Stanoviště 4
F21: 1 | G21: 2 | H21: 3 | I21: 4 | N21: 5 | O21: 6 | P21: 7 | Q21: 8 | R21: 9 | S21: 10 | T21: 11 | U21: 12 | V21: 13 | W21: 14 | X21: 15 | Y21: 16 | Z21: 17 | AA21: 18 | AB21: 19 | AC21: 20
A23: 48 | J23: Stanoviště 1 | N23: Stanoviště 2 | R23: Stanoviště 3 | V23: Stanoviště 4 | Z23: Stanoviště 5
J24: 1 | K24: 2 | L24: 3 | M24: 4 | N24: 5 | O24: 6 | P24: 7 | Q24: 8 | R24: 9 | S24: 10 | T24: 11 | U24: 12 | V24: 13 | W24: 14 | X24: 15 | Y24: 16 | Z24: 17 | AA24: 18 | AB24: 19 | AC24: 20
A26: Poznámky:

Sheet SkS-13 (hidden)
A2: POLOŽKOVÝ LIST
A3: =Vstup!C2&IF(Vstup!C3<>"",", "&Vstup!C3,"") -> COMPAK SPORTING SPECIÁL, 160 terčů
A4: =Vstup!C4&", "&Vstup!C5 -> COMPAK SPORTING, 3.6.2012
A6: Skupina: | C6: 13 | D6: Kolo : | E6: 1 | F6: Rozhodčí: | AD6: ∑ | AE6: Podpis
A7: St. č. | B7: Příjmení, jméno | E7: Kat. | F7: Terče
A8: 43 | F8: Stanoviště 1 | J8: Stanoviště 2 | N8: Stanoviště 3 | R8: Stanoviště 4 | V8: Stanoviště 5
F9: 1 | G9: 2 | H9: 3 | I9: 4 | J9: 5 | K9: 6 | L9: 7 | M9: 8 | N9: 9 | O9: 10 | P9: 11 | Q9: 12 | R9: 13 | S9: 14 | T9: 15 | U9: 16 | V9: 17 | W9: 18 | X9: 19 | Y9: 20
A11: 44 | F11: Stanoviště 2 | J11: Stanoviště 3 | N11: Stanoviště 4 | R11: Stanoviště 5 | Z11: Stanoviště 1
F12: 1 | G12: 2 | H12: 3 | I12: 4 | J12: 5 | K12: 6 | L12: 7 | M12: 8 | N12: 9 | O12: 10 | P12: 11 | Q12: 12 | R12: 13 | S12: 14 | T12: 15 | U12: 16 | Z12: 17 | AA12: 18 | AB12: 19 | AC12: 20
A14: 45 | F14: Stanoviště 3 | J14: Stanoviště 4 | N14: Stanoviště 5 | V14: Stanoviště 1 | Z14: Stanoviště 2
F15: 1 | G15: 2 | H15: 3 | I15: 4 | J15: 5 | K15: 6 | L15: 7 | M15: 8 | N15: 9 | O15: 10 | P15: 11 | Q15: 12 | V15: 13 | W15: 14 | X15: 15 | Y15: 16 | Z15: 17 | AA15: 18 | AB15: 19 | AC15: 20
A17: 46 | F17: Stanoviště 4 | J17: Stanoviště 5 | R17: Stanoviště 1 | V17: Stanoviště 2 | Z17: Stanoviště 3
F18: 1 | G18: 2 | H18: 3 | I18: 4 | J18: 5 | K18: 6 | L18: 7 | M18: 8 | R18: 9 | S18: 10 | T18: 11 | U18: 12 | V18: 13 | W18: 14 | X18: 15 | Y18: 16 | Z18: 17 | AA18: 18 | AB18: 19 | AC18: 20
A20: 47 | F20: Stanoviště 5 | N20: Stanoviště 1 | R20: Stanoviště 2 | V20: Stanoviště 3 | Z20: Stanoviště 4
F21: 1 | G21: 2 | H21: 3 | I21: 4 | N21: 5 | O21: 6 | P21: 7 | Q21: 8 | R21: 9 | S21: 10 | T21: 11 | U21: 12 | V21: 13 | W21: 14 | X21: 15 | Y21: 16 | Z21: 17 | AA21: 18 | AB21: 19 | AC21: 20
A23: 48 | J23: Stanoviště 1 | N23: Stanoviště 2 | R23: Stanoviště 3 | V23: Stanoviště 4 | Z23: Stanoviště 5
J24: 1 | K24: 2 | L24: 3 | M24: 4 | N24: 5 | O24: 6 | P24: 7 | Q24: 8 | R24: 9 | S24: 10 | T24: 11 | U24: 12 | V24: 13 | W24: 14 | X24: 15 | Y24: 16 | Z24: 17 | AA24: 18 | AB24: 19 | AC24: 20
A26: Poznámky:

Sheet SkS-14 (hidden)
A2: POLOŽKOVÝ LIST
A3: =Vstup!C2&IF(Vstup!C3<>"",", "&Vstup!C3,"") -> COMPAK SPORTING SPECIÁL, 160 terčů
A4: =Vstup!C4&", "&Vstup!C5 -> COMPAK SPORTING, 3.6.2012
A6: Skupina: | C6: 14 | D6: Kolo : | E6: 1 | F6: Rozhodčí: | AD6: ∑ | AE6: Podpis
A7: St. č. | B7: Příjmení, jméno | E7: Kat. | F7: Terče
A8: 43 | F8: Stanoviště 1 | J8: Stanoviště 2 | N8: Stanoviště 3 | R8: Stanoviště 4 | V8: Stanoviště 5
F9: 1 | G9: 2 | H9: 3 | I9: 4 | J9: 5 | K9: 6 | L9: 7 | M9: 8 | N9: 9 | O9: 10 | P9: 11 | Q9: 12 | R9: 13 | S9: 14 | T9: 15 | U9: 16 | V9: 17 | W9: 18 | X9: 19 | Y9: 20
A11: 44 | F11: Stanoviště 2 | J11: Stanoviště 3 | N11: Stanoviště 4 | R11: Stanoviště 5 | Z11: Stanoviště 1
F12: 1 | G12: 2 | H12: 3 | I12: 4 | J12: 5 | K12: 6 | L12: 7 | M12: 8 | N12: 9 | O12: 10 | P12: 11 | Q12: 12 | R12: 13 | S12: 14 | T12: 15 | U12: 16 | Z12: 17 | AA12: 18 | AB12: 19 | AC12: 20
A14: 45 | F14: Stanoviště 3 | J14: Stanoviště 4 | N14: Stanoviště 5 | V14: Stanoviště 1 | Z14: Stanoviště 2
F15: 1 | G15: 2 | H15: 3 | I15: 4 | J15: 5 | K15: 6 | L15: 7 | M15: 8 | N15: 9 | O15: 10 | P15: 11 | Q15: 12 | V15: 13 | W15: 14 | X15: 15 | Y15: 16 | Z15: 17 | AA15: 18 | AB15: 19 | AC15: 20
A17: 46 | F17: Stanoviště 4 | J17: Stanoviště 5 | R17: Stanoviště 1 | V17: Stanoviště 2 | Z17: Stanoviště 3
F18: 1 | G18: 2 | H18: 3 | I18: 4 | J18: 5 | K18: 6 | L18: 7 | M18: 8 | R18: 9 | S18: 10 | T18: 11 | U18: 12 | V18: 13 | W18: 14 | X18: 15 | Y18: 16 | Z18: 17 | AA18: 18 | AB18: 19 | AC18: 20
A20: 47 | F20: Stanoviště 5 | N20: Stanoviště 1 | R20: Stanoviště 2 | V20: Stanoviště 3 | Z20: Stanoviště 4
F21: 1 | G21: 2 | H21: 3 | I21: 4 | N21: 5 | O21: 6 | P21: 7 | Q21: 8 | R21: 9 | S21: 10 | T21: 11 | U21: 12 | V21: 13 | W21: 14 | X21: 15 | Y21: 16 | Z21: 17 | AA21: 18 | AB21: 19 | AC21: 20
A23: 48 | J23: Stanoviště 1 | N23: Stanoviště 2 | R23: Stanoviště 3 | V23: Stanoviště 4 | Z23: Stanoviště 5
J24: 1 | K24: 2 | L24: 3 | M24: 4 | N24: 5 | O24: 6 | P24: 7 | Q24: 8 | R24: 9 | S24: 10 | T24: 11 | U24: 12 | V24: 13 | W24: 14 | X24: 15 | Y24: 16 | Z24: 17 | AA24: 18 | AB24: 19 | AC24: 20
A26: Poznámky:

Sheet SkS-15 (hidden)
A2: POLOŽKOVÝ LIST
A3: =Vstup!C2&IF(Vstup!C3<>"",", "&Vstup!C3,"") -> COMPAK SPORTING SPECIÁL, 160 terčů
A4: =Vstup!C4&", "&Vstup!C5 -> COMPAK SPORTING, 3.6.2012
A6: Skupina: | C6: 15 | D6: Kolo : | E6: 1 | F6: Rozhodčí: | AD6: ∑ | AE6: Podpis
A7: St. č. | B7: Příjmení, jméno | E7: Kat. | F7: Terče
A8: 43 | F8: Stanoviště 1 | J8: Stanoviště 2 | N8: Stanoviště 3 | R8: Stanoviště 4 | V8: Stanoviště 5
F9: 1 | G9: 2 | H9: 3 | I9: 4 | J9: 5 | K9: 6 | L9: 7 | M9: 8 | N9: 9 | O9: 10 | P9: 11 | Q9: 12 | R9: 13 | S9: 14 | T9: 15 | U9: 16 | V9: 17 | W9: 18 | X9: 19 | Y9: 20
A11: 44 | F11: Stanoviště 2 | J11: Stanoviště 3 | N11: Stanoviště 4 | R11: Stanoviště 5 | Z11: Stanoviště 1
F12: 1 | G12: 2 | H12: 3 | I12: 4 | J12: 5 | K12: 6 | L12: 7 | M12: 8 | N12: 9 | O12: 10 | P12: 11 | Q12: 12 | R12: 13 | S12: 14 | T12: 15 | U12: 16 | Z12: 17 | AA12: 18 | AB12: 19 | AC12: 20
A14: 45 | F14: Stanoviště 3 | J14: Stanoviště 4 | N14: Stanoviště 5 | V14: Stanoviště 1 | Z14: Stanoviště 2
F15: 1 | G15: 2 | H15: 3 | I15: 4 | J15: 5 | K15: 6 | L15: 7 | M15: 8 | N15: 9 | O15: 10 | P15: 11 | Q15: 12 | V15: 13 | W15: 14 | X15: 15 | Y15: 16 | Z15: 17 | AA15: 18 | AB15: 19 | AC15: 20
A17: 46 | F17: Stanoviště 4 | J17: Stanoviště 5 | R17: Stanoviště 1 | V17: Stanoviště 2 | Z17: Stanoviště 3
F18: 1 | G18: 2 | H18: 3 | I18: 4 | J18: 5 | K18: 6 | L18: 7 | M18: 8 | R18: 9 | S18: 10 | T18: 11 | U18: 12 | V18: 13 | W18: 14 | X18: 15 | Y18: 16 | Z18: 17 | AA18: 18 | AB18: 19 | AC18: 20
A20: 47 | F20: Stanoviště 5 | N20: Stanoviště 1 | R20: Stanoviště 2 | V20: Stanoviště 3 | Z20: Stanoviště 4
F21: 1 | G21: 2 | H21: 3 | I21: 4 | N21: 5 | O21: 6 | P21: 7 | Q21: 8 | R21: 9 | S21: 10 | T21: 11 | U21: 12 | V21: 13 | W21: 14 | X21: 15 | Y21: 16 | Z21: 17 | AA21: 18 | AB21: 19 | AC21: 20
A23: 48 | J23: Stanoviště 1 | N23: Stanoviště 2 | R23: Stanoviště 3 | V23: Stanoviště 4 | Z23: Stanoviště 5
J24: 1 | K24: 2 | L24: 3 | M24: 4 | N24: 5 | O24: 6 | P24: 7 | Q24: 8 | R24: 9 | S24: 10 | T24: 11 | U24: 12 | V24: 13 | W24: 14 | X24: 15 | Y24: 16 | Z24: 17 | AA24: 18 | AB24: 19 | AC24: 20
A26: Poznámky:

Sheet VList-CS160
A1: =Vstup!C2 -> COMPAK SPORTING SPECIÁL
A2: =Vstup!C3&" - "&Vstup!C5 -> 160 terčů - 3.6.2012
A4: VÝSLEDKOVÁ LISTINA
A5: Pořadí | B5: Příjmení, jméno | C5: Kategorie | D5: Střeliště | L5: R | M5: Σ
D6: =Data!F2 -> SKEET I | E6: =Data!F3 -> SKEET II | F6: =Data!F4 -> TRAP I | G6: =Data!F5 -> TRAP II | H6: =Data!F6 -> SKEET I/2 | I6: =Data!F7 -> SKEET II/2 | J6: =Data!F8 -> TRAP I/2 | K6: =Data!F9 -> TRAP II/2
B8: =IF(Vstup!C44<>"",Vstup!C44,"") ->  | C8: =IF(Vstup!C44<>"",Vstup!D44,"") ->  | D8: =VLOOKUP($B8,'Vysledky-doplneni'!$C$7:$L$126,3,0) -> 0 | E8: =VLOOKUP($B8,'Vysledky-doplneni'!$C$7:$L$126,4,0) -> 0 | F8: =VLOOKUP($B8,'Vysledky-doplneni'!$C$7:$L$126,5,0) -> 0 | G8: =VLOOKUP($B8,'Vysledky-doplneni'!$C$7:$L$126,6,0) -> 0 | H8: =VLOOKUP($B8,'Vysledky-doplneni'!$C$7:$L$126,7,0) -> 0 | I8: =VLOOKUP($B8,'Vysledky-doplneni'!$C$7:$L$126,8,0) -> 0 | J8: =VLOOKUP($B8,'Vysledky-doplneni'!$C$7:$L$126,9,0) -> 0 | K8: =VLOOKUP($B8,'Vysledky-doplneni'!$C$7:$L$126,10,0) -> 0 | M8: =SUM(D8:H8) -> 0 | N8: =(M8/(20*O8)) ->  | O8: =COUNTIF(D8:K8,">0") -> 0
A9: KATEGORIE A
A10: 1 | B10: =IF(Vstup!C22<>"",Vstup!C22,"") -> Zázvorka Pavel | C10: =IF(Vstup!C22<>"",Vstup!D22,"") -> A | D10: =VLOOKUP($B10,'Vysledky-doplneni'!$C$7:$L$126,3,0) -> 19 | E10: =VLOOKUP($B10,'Vysledky-doplneni'!$C$7:$L$126,4,0) -> 18 | F10: =VLOOKUP($B10,'Vysledky-doplneni'!$C$7:$L$126,5,0) -> 17 | G10: =VLOOKUP($B10,'Vysledky-doplneni'!$C$7:$L$126,6,0) -> 18 | H10: =VLOOKUP($B10,'Vysledky-doplneni'!$C$7:$L$126,7,0) -> 18 | I10: =VLOOKUP($B10,'Vysledky-doplneni'!$C$7:$L$126,8,0) -> 17 | J10: =VLOOKUP($B10,'Vysledky-doplneni'!$C$7:$L$126,9,0) -> 17 | K10: =VLOOKUP($B10,'Vysledky-doplneni'!$C$7:$L$126,10,0) -> 18 | M10: =SUM(D10:K10) -> 142 | N10: =(M10/(20*O10)) -> 88.8% | O10: =COUNTIF(D10:K10,">0") -> 8
A11: 2 | B11: =IF(Vstup!C45<>"",Vstup!C45,"") -> Wlodarczyk Remigiusz | C11: =IF(Vstup!C45<>"",Vstup!D45,"") -> A | D11: =VLOOKUP($B11,'Vysledky-doplneni'!$C$7:$L$126,3,0) -> 18 | E11: =VLOOKUP($B11,'Vysledky-doplneni'!$C$7:$L$126,4,0) -> 13 | F11: =VLOOKUP($B11,'Vysledky-doplneni'!$C$7:$L$126,5,0) -> 17 | G11: =VLOOKUP($B11,'Vysledky-doplneni'!$C$7:$L$126,6,0) -> 17 | H11: =VLOOKUP($B11,'Vysledky-doplneni'!$C$7:$L$126,7,0) -> 17 | I11: =VLOOKUP($B11,'Vysledky-doplneni'!$C$7:$L$126,8,0) -> 12 | J11: =VLOOKUP($B11,'Vysledky-doplneni'!$C$7:$L$126,9,0) -> 18 | K11: =VLOOKUP($B11,'Vysledky-doplneni'!$C$7:$L$126,10,0) -> 18 | M11: 130 | N11: 81.3% | O11: 8
A12: 3 | B12: =IF(Vstup!C25<>"",Vstup!C25,"") -> Divíšek Martin | C12: =IF(Vstup!C25<>"",Vstup!D25,"") -> A | D12: =VLOOKUP($B12,'Vysledky-doplneni'!$C$7:$L$126,3,0) -> 17 | E12: =VLOOKUP($B12,'Vysledky-doplneni'!$C$7:$L$126,4,0) -> 16 | F12: =VLOOKUP($B12,'Vysledky-doplneni'!$C$7:$L$126,5,0) -> 19 | G12: =VLOOKUP($B12,'Vysledky-doplneni'!$C$7:$L$126,6,0) -> 16 | H12: =VLOOKUP($B12,'Vysledky-doplneni'!$C$7:$L$126,7,0) -> 17 | I12: =VLOOKUP($B12,'Vysledky-doplneni'!$C$7:$L$126,8,0) -> 10 | J12: =VLOOKUP($B12,'Vysledky-doplneni'!$C$7:$L$126,9,0) -> 16 | K12: =VLOOKUP($B12,'Vysledky-doplneni'!$C$7:$L$126,10,0) -> 14 | L12: 10 | M12: 125 | N12: 78.1% | O12: 8
A13: 4 | B13: =IF(Vstup!C32<>"",Vstup!C32,"") -> Hřebec Jan | C13: =IF(Vstup!C32<>"",Vstup!D32,"") -> A | D13: =VLOOKUP($B13,'Vysledky-doplneni'!$C$7:$L$126,3,0) -> 15 | E13: =VLOOKUP($B13,'Vysledky-doplneni'!$C$7:$L$126,4,0) -> 15 | F13: =VLOOKUP($B13,'Vysledky-doplneni'!$C$7:$L$126,5,0) -> 19 | G13: =VLOOKUP($B13,'Vysledky-doplneni'!$C$7:$L$126,6,0) -> 17 | H13: =VLOOKUP($B13,'Vysledky-doplneni'!$C$7:$L$126,7,0) -> 16 | I13: =VLOOKUP($B13,'Vysledky-doplneni'!$C$7:$L$126,8,0) -> 13 | J13: =VLOOKUP($B13,'Vysledky-doplneni'!$C$7:$L$126,9,0) -> 14 | K13: =VLOOKUP($B13,'Vysledky-doplneni'!$C$7:$L$126,10,0) -> 16 | L13: 6 | M13: 125 | N13: 78.1% | O13: 8
A14: 5 | B14: =IF(Vstup!C16<>"",Vstup!C16,"") -> Zigo Martin | C14: =IF(Vstup!C16<>"",Vstup!D16,"") -> A | D14: =VLOOKUP($B14,'Vysledky-doplneni'!$C$7:$L$126,3,0) -> 12 | E14: =VLOOKUP($B14,'Vysledky-doplneni'!$C$7:$L$126,4,0) -> 11 | F14: =VLOOKUP($B14,'Vysledky-doplneni'!$C$7:$L$126,5,0) -> 16 | G14: =VLOOKUP($B14,'Vysledky-doplneni'!$C$7:$L$126,6,0) -> 15 | H14: =VLOOKUP($B14,'Vysledky-doplneni'!$C$7:$L$126,7,0) -> 18 | I14: =VLOOKUP($B14,'Vysledky-doplneni'!$C$7:$L$126,8,0) -> 9 | J14: =VLOOKUP($B14,'Vysledky-doplneni'!$C$7:$L$126,9,0) -> 17 | K14: =VLOOKUP($B14,'Vysledky-doplneni'!$C$7:$L$126,10,0) -> 17 | M14: 115 | N14: 71.9% | O14: 8
A15: 6 | B15: =IF(Vstup!C13<>"",Vstup!C13,"") -> Černošek Milan | C15: =IF(Vstup!C13<>"",Vstup!D13,"") -> A | D15: =VLOOKUP($B15,'Vysledky-doplneni'!$C$7:$L$126,3,0) -> 20 | E15: =VLOOKUP($B15,'Vysledky-doplneni'!$C$7:$L$126,4,0) -> 16 | F15: =VLOOKUP($B15,'Vysledky-doplneni'!$C$7:$L$126,5,0) -> 13 | G15: =VLOOKUP($B15,'Vysledky-doplneni'!$C$7:$L$126,6,0) -> 15 | H15: =VLOOKUP($B15,'Vysledky-doplneni'!$C$7:$L$126,7,0) -> 15 | I15: =VLOOKUP($B15,'Vysledky-doplneni'!$C$7:$L$126,8,0) -> 10 | J15: =VLOOKUP($B15,'Vysledky-doplneni'!$C$7:$L$126,9,0) -> 13 | K15: =VLOOKUP($B15,'Vysledky-doplneni'!$C$7:$L$126,10,0) -> 13 | M15: 115 | N15: 71.9% | O15: 8
A16: 7 | B16: =IF(Vstup!C28<>"",Vstup!C28,"") -> Kotrc Karel | C16: =IF(Vstup!C28<>"",Vstup!D28,"") -> A | D16: =VLOOKUP($B16,'Vysledky-doplneni'!$C$7:$L$126,3,0) -> 18 | E16: =VLOOKUP($B16,'Vysledky-doplneni'!$C$7:$L$126,4,0) -> 12 | F16: =VLOOKUP($B16,'Vysledky-doplneni'!$C$7:$L$126,5,0) -> 16 | G16: =VLOOKUP($B16,'Vysledky-doplneni'!$C$7:$L$126,6,0) -> 17 | H16: =VLOOKUP($B16,'Vysledky-doplneni'!$C$7:$L$126,7,0) -> 16 | I16: =VLOOKUP($B16,'Vysledky-doplneni'!$C$7:$L$126,8,0) -> 10 | J16: =VLOOKUP($B16,'Vysledky-doplneni'!$C$7:$L$126,9,0) -> 15 | K16: =VLOOKUP($B16,'Vysledky-doplneni'!$C$7:$L$126,10,0) -> 11 | M16: 115 | N16: 71.9% | O16: 8
A17: 8 | B17: =IF(Vstup!C23<>"",Vstup!C23,"") -> Štengl Jiří | C17: =IF(Vstup!C23<>"",Vstup!D23,"") -> A | D17: =VLOOKUP($B17,'Vysledky-doplneni'!$C$7:$L$126,3,0) -> 17 | E17: =VLOOKUP($B17,'Vysledky-doplneni'!$C$7:$L$126,4,0) -> 16 | F17: =VLOOKUP($B17,'Vysledky-doplneni'!$C$7:$L$126,5,0) -> 18 | G17: =VLOOKUP($B17,'Vysledky-doplneni'!$C$7:$L$126,6,0) -> 14 | H17: =VLOOKUP($B17,'Vysledky-doplneni'!$C$7:$L$126,7,0) -> 14 | I17: =VLOOKUP($B17,'Vysledky-doplneni'!$C$7:$L$126,8,0) -> 11 | J17: =VLOOKUP($B17,'Vysledky-doplneni'!$C$7:$L$126,9,0) -> 9 | K17: =VLOOKUP($B17,'Vysledky-doplneni'!$C$7:$L$126,10,0) -> 15 | M17: 114 | N17: 71.3% | O17: 8
A18: KATEGORIE B
A19: 1 | B19: =IF(Vstup!C34<>"",Vstup!C34,"") -> Lengyel Jan | C19: =IF(Vstup!C34<>"",Vstup!D34,"") -> B | D19: =VLOOKUP($B19,'Vysledky-doplneni'!$C$7:$L$126,3,0) -> 19 | E19: =VLOOKUP($B19,'Vysledky-doplneni'!$C$7:$L$126,4,0) -> 14 | F19: =VLOOKUP($B19,'Vysledky-doplneni'!$C$7:$L$126,5,0) -> 16 | G19: =VLOOKUP($B19,'Vysledky-doplneni'!$C$7:$L$126,6,0) -> 14 | H19: =VLOOKUP($B19,'Vysledky-doplneni'!$C$7:$L$126,7,0) -> 16 | I19: =VLOOKUP($B19,'Vysledky-doplneni'!$C$7:$L$126,8,0) -> 12 | J19: =VLOOKUP($B19,'Vysledky-doplneni'!$C$7:$L$126,9,0) -> 15 | K19: =VLOOKUP($B19,'Vysledky-doplneni'!$C$7:$L$126,10,0) -> 16 | M19: =SUM(D19:K19) -> 122 | N19: =(M19/(20*O19)) -> 76.3% | O19: 8
A20: 2 | B20: =IF(Vstup!C35<>"",Vstup!C35,"") -> Lengyel Jiří | C20: =IF(Vstup!C35<>"",Vstup!D35,"") -> B | D20: =VLOOKUP($B20,'Vysledky-doplneni'!$C$7:$L$126,3,0) -> 16 | E20: =VLOOKUP($B20,'Vysledky-doplneni'!$C$7:$L$126,4,0) -> 15 | F20: =VLOOKUP($B20,'Vysledky-doplneni'!$C$7:$L$126,5,0) -> 13 | G20: =VLOOKUP($B20,'Vysledky-doplneni'!$C$7:$L$126,6,0) -> 17 | H20: =VLOOKUP($B20,'Vysledky-doplneni'!$C$7:$L$126,7,0) -> 13 | I20: =VLOOKUP($B20,'Vysledky-doplneni'!$C$7:$L$126,8,0) -> 12 | J20: =VLOOKUP($B20,'Vysledky-doplneni'!$C$7:$L$126,9,0) -> 14 | K20: =VLOOKUP($B20,'Vysledky-doplneni'!$C$7:$L$126,10,0) -> 18 | M20: 118 | N20: 73.8% | O20: 8
A21: 3 | B21: =IF(Vstup!C41<>"",Vstup!C41,"") -> Štícha Lubomír | C21: =IF(Vstup!C41<>"",Vstup!D41,"") -> B | D21: =VLOOKUP($B21,'Vysledky-doplneni'!$C$7:$L$126,3,0) -> 17 | E21: =VLOOKUP($B21,'Vysledky-doplneni'!$C$7:$L$126,4,0) -> 12 | F21: =VLOOKUP($B21,'Vysledky-doplneni'!$C$7:$L$126,5,0) -> 13 | G21: =VLOOKUP($B21,'Vysledky-doplneni'!$C$7:$L$126,6,0) -> 15 | H21: =VLOOKUP($B21,'Vysledky-doplneni'!$C$7:$L$126,7,0) -> 15 | I21: =VLOOKUP($B21,'Vysledky-doplneni'!$C$7:$L$126,8,0) -> 10 | J21: =VLOOKUP($B21,'Vysledky-doplneni'!$C$7:$L$126,9,0) -> 15 | K21: =VLOOKUP($B21,'Vysledky-doplneni'!$C$7:$L$126,10,0) -> 16 | M21: 113 | N21: 70.6% | O21: 8
A22: 4 | B22: =IF(Vstup!C33<>"",Vstup!C33,"") -> Lengyel Ivan | C22: =IF(Vstup!C33<>"",Vstup!D33,"") -> B | D22: =VLOOKUP($B22,'Vysledky-doplneni'!$C$7:$L$126,3,0) -> 15 | E22: =VLOOKUP($B22,'Vysledky-doplneni'!$C$7:$L$126,4,0) -> 11 | F22: =VLOOKUP($B22,'Vysledky-doplneni'!$C$7:$L$126,5,0) -> 15 | G22: =VLOOKUP($B22,'Vysledky-doplneni'!$C$7:$L$126,6,0) -> 15 | H22: =VLOOKUP($B22,'Vysledky-doplneni'!$C$7:$L$126,7,0) -> 13 | I22: =VLOOKUP($B22,'Vysledky-doplneni'!$C$7:$L$126,8,0) -> 8 | J22: =VLOOKUP($B22,'Vysledky-doplneni'!$C$7:$L$126,9,0) -> 11 | K22: =VLOOKUP($B22,'Vysledky-doplneni'!$C$7:$L$126,10,0) -> 15 | M22: 103 | N22: 64.4% | O22: 8
A23: 5 | B23: =IF(Vstup!C21<>"",Vstup!C21,"") -> Husar Vladimír | C23: =IF(Vstup!C21<>"",Vstup!D21,"") -> B | D23: =VLOOKUP($B23,'Vysledky-doplneni'!$C$7:$L$126,3,0) -> 16 | E23: =VLOOKUP($B23,'Vysledky-doplneni'!$C$7:$L$126,4,0) -> 7 | F23: =VLOOKUP($B23,'Vysledky-doplneni'!$C$7:$L$126,5,0) -> 16 | G23: =VLOOKUP($B23,'Vysledky-doplneni'!$C$7:$L$126,6,0) -> 10 | H23: =VLOOKUP($B23,'Vysledky-doplneni'!$C$7:$L$126,7,0) -> 14 | I23: =VLOOKUP($B23,'Vysledky-doplneni'!$C$7:$L$126,8,0) -> 10 | J23: =VLOOKUP($B23,'Vysledky-doplneni'!$C$7:$L$126,9,0) -> 17 | K23: =VLOOKUP($B23,'Vysledky-doplneni'!$C$7:$L$126,10,0) -> 13 | M23: 103 | N23: 64.4% | O23: 8
A24: 6 | B24: =IF(Vstup!C10<>"",Vstup!C10,"") -> Koloc Martin | C24: =IF(Vstup!C10<>"",Vstup!D10,"") -> B | D24: =VLOOKUP($B24,'Vysledky-doplneni'!$C$7:$L$126,3,0) -> 13 | E24: =VLOOKUP($B24,'Vysledky-doplneni'!$C$7:$L$126,4,0) -> 11 | F24: =VLOOKUP($B24,'Vysledky-doplneni'!$C$7:$L$126,5,0) -> 17 | G24: =VLOOKUP($B24,'Vysledky-doplneni'!$C$7:$L$126,6,0) -> 17 | H24: =VLOOKUP($B24,'Vysledky-doplneni'!$C$7:$L$126,7,0) -> 9 | I24: =VLOOKUP($B24,'Vysledky-doplneni'!$C$7:$L$126,8,0) -> 7 | J24: =VLOOKUP($B24,'Vysledky-doplneni'!$C$7:$L$126,9,0) -> 14 | K24: =VLOOKUP($B24,'Vysledky-doplneni'!$C$7:$L$126,10,0) -> 13 | M24: 101 | N24: 63.1% | O24: 8
A25: 7 | B25: =IF(Vstup!C39<>"",Vstup!C39,"") -> Neuvirt Martin | C25: =IF(Vstup!C39<>"",Vstup!D39,"") -> B | D25: =VLOOKUP($B25,'Vysledky-doplneni'!$C$7:$L$126,3,0) -> 13 | E25: =VLOOKUP($B25,'Vysledky-doplneni'!$C$7:$L$126,4,0) -> 7 | F25: =VLOOKUP($B25,'Vysledky-doplneni'!$C$7:$L$126,5,0) -> 13 | G25: =VLOOKUP($B25,'Vysledky-doplneni'!$C$7:$L$126,6,0) -> 16 | H25: =VLOOKUP($B25,'Vysledky-doplneni'!$C$7:$L$126,7,0) -> 7 | I25: =VLOOKUP($B25,'Vysledky-doplneni'!$C$7:$L$126,8,0) -> 8 | J25: =VLOOKUP($B25,'Vysledky-doplneni'!$C$7:$L$126,9,0) -> 14 | K25: =VLOOKUP($B25,'Vysledky-doplneni'!$C$7:$L$126,10,0) -> 16 | M25: 94 | N25: 58.8% | O25: 8
A26: KATEGORIE C
A27: 1 | B27: =IF(Vstup!C47<>"",Vstup!C47,"") -> Cieplik Waldemar | C27: =IF(Vstup!C47<>"",Vstup!D47,"") -> C | D27: =VLOOKUP($B27,'Vysledky-doplneni'!$C$7:$L$126,3,0) -> 13 | E27: =VLOOKUP($B27,'Vysledky-doplneni'!$C$7:$L$126,4,0) -> 14 | F27: =VLOOKUP($B27,'Vysledky-doplneni'!$C$7:$L$126,5,0) -> 17 | G27: =VLOOKUP($B27,'Vysledky-doplneni'!$C$7:$L$126,6,0) -> 12 | H27: =VLOOKUP($B27,'Vysledky-doplneni'!$C$7:$L$126,7,0) -> 16 | I27: =VLOOKUP($B27,'Vysledky-doplneni'!$C$7:$L$126,8,0) -> 9 | J27: =VLOOKUP($B27,'Vysledky-doplneni'!$C$7:$L$126,9,0) -> 16 | K27: =VLOOKUP($B27,'Vysledky-doplneni'!$C$7:$L$126,10,0) -> 15 | M27: =SUM(D27:K27) -> 112 | N27: =(M27/(20*O27)) -> 70.0% | O27: 8
A28: 2 | B28: =IF(Vstup!C18<>"",Vstup!C18,"") -> Mikulka Peter | C28: =IF(Vstup!C18<>"",Vstup!D18,"") -> C | D28: =VLOOKUP($B28,'Vysledky-doplneni'!$C$7:$L$126,3,0) -> 15 | E28: =VLOOKUP($B28,'Vysledky-doplneni'!$C$7:$L$126,4,0) -> 8 | F28: =VLOOKUP($B28,'Vysledky-doplneni'!$C$7:$L$126,5,0) -> 15 | G28: =VLOOKUP($B28,'Vysledky-doplneni'!$C$7:$L$126,6,0) -> 12 | H28: =VLOOKUP($B28,'Vysledky-doplneni'!$C$7:$L$126,7,0) -> 17 | I28: =VLOOKUP($B28,'Vysledky-doplneni'!$C$7:$L$126,8,0) -> 4 | J28: =VLOOKUP($B28,'Vysledky-doplneni'!$C$7:$L$126,9,0) -> 13 | K28: =VLOOKUP($B28,'Vysledky-doplneni'!$C$7:$L$126,10,0) -> 15 | M28: 99 | N28: 61.9% | O28: 8
A29: 3 | B29: =IF(Vstup!C46<>"",Vstup!C46,"") -> Jedros Witold | C29: =IF(Vstup!C46<>"",Vstup!D46,"") -> C | D29: =VLOOKUP($B29,'Vysledky-doplneni'!$C$7:$L$126,3,0) -> 14 | E29: =VLOOKUP($B29,'Vysledky-doplneni'!$C$7:$L$126,4,0) -> 13 | F29: =VLOOKUP($B29,'Vysledky-doplneni'!$C$7:$L$126,5,0) -> 13 | G29: =VLOOKUP($B29,'Vysledky-doplneni'!$C$7:$L$126,6,0) -> 17 | H29: =VLOOKUP($B29,'Vysledky-doplneni'!$C$7:$L$126,7,0) -> 11 | I29: =VLOOKUP($B29,'Vysledky-doplneni'!$C$7:$L$126,8,0) -> 9 | J29: =VLOOKUP($B29,'Vysledky-doplneni'!$C$7:$L$126,9,0) -> 12 | K29: =VLOOKUP($B29,'Vysledky-doplneni'!$C$7:$L$126,10,0) -> 9 | M29: 98 | N29: 61.3% | O29: 8
A30: 4 | B30: =IF(Vstup!C24<>"",Vstup!C24,"") -> Korál Petr | C30: =IF(Vstup!C24<>"",Vstup!D24,"") -> C | D30: =VLOOKUP($B30,'Vysledky-doplneni'!$C$7:$L$126,3,0) -> 12 | E30: =VLOOKUP($B30,'Vysledky-doplneni'!$C$7:$L$126,4,0) -> 13 | F30: =VLOOKUP($B30,'Vysledky-doplneni'!$C$7:$L$126,5,0) -> 10 | G30: =VLOOKUP($B30,'Vysledky-doplneni'!$C$7:$L$126,6,0) -> 14 | H30: =VLOOKUP($B30,'Vysledky-doplneni'!$C$7:$L$126,7,0) -> 13 | I30: =VLOOKUP($B30,'Vysledky-doplneni'!$C$7:$L$126,8,0) -> 8 | J30: =VLOOKUP($B30,'Vysledky-doplneni'!$C$7:$L$126,9,0) -> 9 | K30: =VLOOKUP($B30,'Vysledky-doplneni'!$C$7:$L$126,10,0) -> 14 | M30: 93 | N30: 58.1% | O30: 8
A31: 5 | B31: =IF(Vstup!C37<>"",Vstup!C37,"") -> Horák František | C31: =IF(Vstup!C37<>"",Vstup!D37,"") -> C | D31: =VLOOKUP($B31,'Vysledky-doplneni'!$C$7:$L$126,3,0) -> 13 | E31: =VLOOKUP($B31,'Vysledky-doplneni'!$C$7:$L$126,4,0) -> 11 | F31: =VLOOKUP($B31,'Vysledky-doplneni'!$C$7:$L$126,5,0) -> 15 | G31: =VLOOKUP($B31,'Vysledky-doplneni'!$C$7:$L$126,6,0) -> 12 | H31: =VLOOKUP($B31,'Vysledky-doplneni'!$C$7:$L$126,7,0) -> 7 | I31: =VLOOKUP($B31,'Vysledky-doplneni'!$C$7:$L$126,8,0) -> 6 | J31: =VLOOKUP($B31,'Vysledky-doplneni'!$C$7:$L$126,9,0) -> 10 | K31: =VLOOKUP($B31,'Vysledky-doplneni'!$C$7:$L$126,10,0) -> 15 | M31: 89 | N31: 55.6% | O31: 8
A32: 6 | B32: =IF(Vstup!C30<>"",Vstup!C30,"") -> Mrázek Lubomír | C32: =IF(Vstup!C30<>"",Vstup!D30,"") -> C | D32: =VLOOKUP($B32,'Vysledky-doplneni'!$C$7:$L$126,3,0) -> 15 | E32: =VLOOKUP($B32,'Vysledky-doplneni'!$C$7:$L$126,4,0) -> 3 | F32: =VLOOKUP($B32,'Vysledky-doplneni'!$C$7:$L$126,5,0) -> 15 | G32: =VLOOKUP($B32,'Vysledky-doplneni'!$C$7:$L$126,6,0) -> 16 | H32: =VLOOKUP($B32,'Vysledky-doplneni'!$C$7:$L$126,7,0) -> 7 | I32: =VLOOKUP($B32,'Vysledky-doplneni'!$C$7:$L$126,8,0) -> 7 | J32: =VLOOKUP($B32,'Vysledky-doplneni'!$C$7:$L$126,9,0) -> 13 | K32: =VLOOKUP($B32,'Vysledky-doplneni'!$C$7:$L$126,10,0) -> 12 | M32: 88 | N32: 55.0% | O32: 8
A33: 7 | B33: =IF(Vstup!C9<>"",Vstup!C9,"") -> Dolanský Jan | C33: =IF(Vstup!C9<>"",Vstup!D9,"") -> C | D33: =VLOOKUP($B33,'Vysledky-doplneni'!$C$7:$L$126,3,0) -> 15 | E33: =VLOOKUP($B33,'Vysledky-doplneni'!$C$7:$L$126,4,0) -> 4 | F33: =VLOOKUP($B33,'Vysledky-doplneni'!$C$7:$L$126,5,0) -> 13 | G33: =VLOOKUP($B33,'Vysledky-doplneni'!$C$7:$L$126,6,0) -> 13 | H33: =VLOOKUP($B33,'Vysledky-doplneni'!$C$7:$L$126,7,0) -> 13 | I33: =VLOOKUP($B33,'Vysledky-doplneni'!$C$7:$L$126,8,0) -> 3 | J33: =VLOOKUP($B33,'Vysledky-doplneni'!$C$7:$L$126,9,0) -> 10 | K33: =VLOOKUP($B33,'Vysledky-doplneni'!$C$7:$L$126,10,0) -> 14 | M33: 85 | N33: 53.1% | O33: 8
A34: 8 | B34: =IF(Vstup!C19<>"",Vstup!C19,"") -> Hedvik Jaromír | C34: =IF(Vstup!C19<>"",Vstup!D19,"") -> C | D34: =VLOOKUP($B34,'Vysledky-doplneni'!$C$7:$L$126,3,0) -> 13 | E34: =VLOOKUP($B34,'Vysledky-doplneni'!$C$7:$L$126,4,0) -> 15 | F34: =VLOOKUP($B34,'Vysledky-doplneni'!$C$7:$L$126,5,0) -> 13 | G34: =VLOOKUP($B34,'Vysledky-doplneni'!$C$7:$L$126,6,0) -> 11 | H34: =VLOOKUP($B34,'Vysledky-doplneni'!$C$7:$L$126,7,0) -> 12 | I34: =VLOOKUP($B34,'Vysledky-doplneni'!$C$7:$L$126,8,0) -> 9 | J34: =VLOOKUP($B34,'Vysledky-doplneni'!$C$7:$L$126,9,0) -> 5 | K34: =VLOOKUP($B34,'Vysledky-doplneni'!$C$7:$L$126,10,0) -> 7 | M34: 85 | N34: 53.1% | O34: 8
A35: 9 | B35: =IF(Vstup!C12<>"",Vstup!C12,"") -> Hoštička Eduard | C35: =IF(Vstup!C12<>"",Vstup!D12,"") -> C | D35: =VLOOKUP($B35,'Vysledky-doplneni'!$C$7:$L$126,3,0) -> 13 | E35: =VLOOKUP($B35,'Vysledky-doplneni'!$C$7:$L$126,4,0) -> 7 | F35: =VLOOKUP($B35,'Vysledky-doplneni'!$C$7:$L$126,5,0) -> 13 | G35: =VLOOKUP($B35,'Vysledky-doplneni'!$C$7:$L$126,6,0) -> 9 | H35: =VLOOKUP($B35,'Vysledky-doplneni'!$C$7:$L$126,7,0) -> 11 | I35: =VLOOKUP($B35,'Vysledky-doplneni'!$C$7:$L$126,8,0) -> 9 | J35: =VLOOKUP($B35,'Vysledky-doplneni'!$C$7:$L$126,9,0) -> 12 | K35: =VLOOKUP($B35,'Vysledky-doplneni'!$C$7:$L$126,10,0) -> 10 | M35: 84 | N35: 52.5% | O35: 8
A36: 10 | B36: =IF(Vstup!C42<>"",Vstup!C42,"") -> Vavrečka Michal | C36: =IF(Vstup!C42<>"",Vstup!D42,"") -> C | D36: =VLOOKUP($B36,'Vysledky-doplneni'!$C$7:$L$126,3,0) -> 12 | E36: =VLOOKUP($B36,'Vysledky-doplneni'!$C$7:$L$126,4,0) -> 7 | F36: =VLOOKUP($B36,'Vysledky-doplneni'!$C$7:$L$126,5,0) -> 12 | G36: =VLOOKUP($B36,'Vysledky-doplneni'!$C$7:$L$126,6,0) -> 11 | H36: =VLOOKUP($B36,'Vysledky-doplneni'!$C$7:$L$126,7,0) -> 9 | I36: =VLOOKUP($B36,'Vysledky-doplneni'!$C$7:$L$126,8,0) -> 5 | J36: =VLOOKUP($B36,'Vysledky-doplneni'!$C$7:$L$126,9,0) -> 14 | K36: =VLOOKUP($B36,'Vysledky-doplneni'!$C$7:$L$126,10,0) -> 11 | M36: 81 | N36: 50.6% | O36: 8
A37: 11 | B37: =IF(Vstup!C11<>"",Vstup!C11,"") -> Greš Marek | C37: =IF(Vstup!C11<>"",Vstup!D11,"") -> C | D37: =VLOOKUP($B37,'Vysledky-doplneni'!$C$7:$L$126,3,0) -> 14 | E37: =VLOOKUP($B37,'Vysledky-doplneni'!$C$7:$L$126,4,0) -> 8 | F37: =VLOOKUP($B37,'Vysledky-doplneni'!$C$7:$L$126,5,0) -> 10 | G37: =VLOOKUP($B37,'Vysledky-doplneni'!$C$7:$L$126,6,0) -> 11 | H37: =VLOOKUP($B37,'Vysledky-doplneni'!$C$7:$L$126,7,0) -> 10 | I37: =VLOOKUP($B37,'Vysledky-doplneni'!$C$7:$L$126,8,0) -> 6 | J37: =VLOOKUP($B37,'Vysledky-doplneni'!$C$7:$L$126,9,0) -> 8 | K37: =VLOOKUP($B37,'Vysledky-doplneni'!$C$7:$L$126,10,0) -> 13 | M37: 80 | N37: 50.0% | O37: 8
A38: 12 | B38: =IF(Vstup!C27<>"",Vstup!C27,"") -> Jirků Milan | C38: =IF(Vstup!C27<>"",Vstup!D27,"") -> C | D38: =VLOOKUP($B38,'Vysledky-doplneni'!$C$7:$L$126,3,0) -> 9 | E38: =VLOOKUP($B38,'Vysledky-doplneni'!$C$7:$L$126,4,0) -> 10 | F38: =VLOOKUP($B38,'Vysledky-doplneni'!$C$7:$L$126,5,0) -> 10 | G38: =VLOOKUP($B38,'Vysledky-doplneni'!$C$7:$L$126,6,0) -> 10 | H38: =VLOOKUP($B38,'Vysledky-doplneni'!$C$7:$L$126,7,0) -> 8 | I38: =VLOOKUP($B38,'Vysledky-doplneni'!$C$7:$L$126,8,0) -> 8 | J38: =VLOOKUP($B38,'Vysledky-doplneni'!$C$7:$L$126,9,0) -> 10 | K38: =VLOOKUP($B38,'Vysledky-doplneni'!$C$7:$L$126,10,0) -> 7 | M38: 72 | N38: 45.0% | O38: 8
A39: 13 | B39: =IF(Vstup!C43<>"",Vstup!C43,"") -> Jelínek Aleš | C39: =IF(Vstup!C43<>"",Vstup!D43,"") -> C | D39: =VLOOKUP($B39,'Vysledky-doplneni'!$C$7:$L$126,3,0) -> 14 | E39: =VLOOKUP($B39,'Vysledky-doplneni'!$C$7:$L$126,4,0) -> 3 | F39: =VLOOKUP($B39,'Vysledky-doplneni'!$C$7:$L$126,5,0) -> 10 | G39: =VLOOKUP($B39,'Vysledky-doplneni'!$C$7:$L$126,6,0) -> 7 | H39: =VLOOKUP($B39,'Vysledky-doplneni'!$C$7:$L$126,7,0) -> 8 | I39: =VLOOKUP($B39,'Vysledky-doplneni'!$C$7:$L$126,8,0) -> 4 | J39: =VLOOKUP($B39,'Vysledky-doplneni'!$C$7:$L$126,9,0) -> 4 | K39: =VLOOKUP($B39,'Vysledky-doplneni'!$C$7:$L$126,10,0) -> 5 | M39: 55 | N39: 34.4% | O39: 8
A40: KATEGORIE JUNIOŘI
A41: 1 | B41: =IF(Vstup!C20<>"",Vstup!C20,"") -> Jankovský Jakub | C41: =IF(Vstup!C20<>"",Vstup!D20,"") -> J | D41: =VLOOKUP($B41,'Vysledky-doplneni'!$C$7:$L$126,3,0) -> 17 | E41: =VLOOKUP($B41,'Vysledky-doplneni'!$C$7:$L$126,4,0) -> 17 | F41: =VLOOKUP($B41,'Vysledky-doplneni'!$C$7:$L$126,5,0) -> 17 | G41: =VLOOKUP($B41,'Vysledky-doplneni'!$C$7:$L$126,6,0) -> 18 | H41: =VLOOKUP($B41,'Vysledky-doplneni'!$C$7:$L$126,7,0) -> 14 | I41: =VLOOKUP($B41,'Vysledky-doplneni'!$C$7:$L$126,8,0) -> 9 | J41: =VLOOKUP($B41,'Vysledky-doplneni'!$C$7:$L$126,9,0) -> 17 | K41: =VLOOKUP($B41,'Vysledky-doplneni'!$C$7:$L$126,10,0) -> 17 | M41: =SUM(D41:K41) -> 126 | N41: =(M41/(20*O41)) -> 78.8% | O41: 8
A42: 2 | B42: =IF(Vstup!C31<>"",Vstup!C31,"") -> Hřebec Jan ml. | C42: =IF(Vstup!C31<>"",Vstup!D31,"") -> J | D42: =VLOOKUP($B42,'Vysledky-doplneni'!$C$7:$L$126,3,0) -> 16 | E42: =VLOOKUP($B42,'Vysledky-doplneni'!$C$7:$L$126,4,0) -> 14 | F42: =VLOOKUP($B42,'Vysledky-doplneni'!$C$7:$L$126,5,0) -> 13 | G42: =VLOOKUP($B42,'Vysledky-doplneni'!$C$7:$L$126,6,0) -> 13 | H42: =VLOOKUP($B42,'Vysledky-doplneni'!$C$7:$L$126,7,0) -> 14 | I42: =VLOOKUP($B42,'Vysledky-doplneni'!$C$7:$L$126,8,0) -> 7 | J42: =VLOOKUP($B42,'Vysledky-doplneni'!$C$7:$L$126,9,0) -> 13 | K42: =VLOOKUP($B42,'Vysledky-doplneni'!$C$7:$L$126,10,0) -> 17 | M42: 107 | N42: =(M42/(20*O42)) -> 66.9% | O42: 8
A43: 3 | B43: =IF(Vstup!C26<>"",Vstup!C26,"") -> Divíšek Martin ml. | C43: =IF(Vstup!C26<>"",Vstup!D26,"") -> J | D43: =VLOOKUP($B43,'Vysledky-doplneni'!$C$7:$L$126,3,0) -> 14 | E43: =VLOOKUP($B43,'Vysledky-doplneni'!$C$7:$L$126,4,0) -> 10 | F43: =VLOOKUP($B43,'Vysledky-doplneni'!$C$7:$L$126,5,0) -> 12 | G43: =VLOOKUP($B43,'Vysledky-doplneni'!$C$7:$L$126,6,0) -> 10 | H43: =VLOOKUP($B43,'Vysledky-doplneni'!$C$7:$L$126,7,0) -> 13 | I43: =VLOOKUP($B43,'Vysledky-doplneni'!$C$7:$L$126,8,0) -> 8 | J43: =VLOOKUP($B43,'Vysledky-doplneni'!$C$7:$L$126,9,0) -> 11 | K43: =VLOOKUP($B43,'Vysledky-doplneni'!$C$7:$L$126,10,0) -> 10 | M43: 88 | N43: =(M43/(20*O43)) -> 55.0% | O43: 8
A44: KATEGORIE VETERÁNI
A45: 1 | B45: =IF(Vstup!C17<>"",Vstup!C17,"") -> Uher Jaromír | C45: =IF(Vstup!C17<>"",Vstup!D17,"") -> V | D45: =VLOOKUP($B45,'Vysledky-doplneni'!$C$7:$L$126,3,0) -> 18 | E45: =VLOOKUP($B45,'Vysledky-doplneni'!$C$7:$L$126,4,0) -> 16 | F45: =VLOOKUP($B45,'Vysledky-doplneni'!$C$7:$L$126,5,0) -> 17 | G45: =VLOOKUP($B45,'Vysledky-doplneni'!$C$7:$L$126,6,0) -> 18 | H45: =VLOOKUP($B45,'Vysledky-doplneni'!$C$7:$L$126,7,0) -> 17 | I45: =VLOOKUP($B45,'Vysledky-doplneni'!$C$7:$L$126,8,0) -> 13 | J45: =VLOOKUP($B45,'Vysledky-doplneni'!$C$7:$L$126,9,0) -> 14 | K45: =VLOOKUP($B45,'Vysledky-doplneni'!$C$7:$L$126,10,0) -> 17 | M45: =SUM(D45:K45) -> 130 | N45: =(M45/(20*O45)) -> 81.3% | O45: 8
A46: 2 | B46: =IF(Vstup!C15<>"",Vstup!C15,"") -> Otáhal Milan | C46: =IF(Vstup!C15<>"",Vstup!D15,"") -> V | D46: =VLOOKUP($B46,'Vysledky-doplneni'!$C$7:$L$126,3,0) -> 18 | E46: =VLOOKUP($B46,'Vysledky-doplneni'!$C$7:$L$126,4,0) -> 13 | F46: =VLOOKUP($B46,'Vysledky-doplneni'!$C$7:$L$126,5,0) -> 14 | G46: =VLOOKUP($B46,'Vysledky-doplneni'!$C$7:$L$126,6,0) -> 17 | H46: =VLOOKUP($B46,'Vysledky-doplneni'!$C$7:$L$126,7,0) -> 18 | I46: =VLOOKUP($B46,'Vysledky-doplneni'!$C$7:$L$126,8,0) -> 14 | J46: =VLOOKUP($B46,'Vysledky-doplneni'!$C$7:$L$126,9,0) -> 14 | K46: =VLOOKUP($B46,'Vysledky-doplneni'!$C$7:$L$126,10,0) -> 13 | M46: 121 | N46: 75.6% | O46: 8
A47: 3 | B47: =IF(Vstup!C29<>"",Vstup!C29,"") -> Říha Milan | C47: =IF(Vstup!C29<>"",Vstup!D29,"") -> V | D47: =VLOOKUP($B47,'Vysledky-doplneni'!$C$7:$L$126,3,0) -> 18 | E47: =VLOOKUP($B47,'Vysledky-doplneni'!$C$7:$L$126,4,0) -> 13 | F47: =VLOOKUP($B47,'Vysledky-doplneni'!$C$7:$L$126,5,0) -> 17 | G47: =VLOOKUP($B47,'Vysledky-doplneni'!$C$7:$L$126,6,0) -> 16 | H47: =VLOOKUP($B47,'Vysledky-doplneni'!$C$7:$L$126,7,0) -> 10 | I47: =VLOOKUP($B47,'Vysledky-doplneni'!$C$7:$L$126,8,0) -> 12 | J47: =VLOOKUP($B47,'Vysledky-doplneni'!$C$7:$L$126,9,0) -> 14 | K47: =VLOOKUP($B47,'Vysledky-doplneni'!$C$7:$L$126,10,0) -> 16 | M47: 116 | N47: 72.5% | O47: 8
A48: 4 | B48: =IF(Vstup!C14<>"",Vstup!C14,"") -> Vadlejch Josef | C48: =IF(Vstup!C14<>"",Vstup!D14,"") -> V | D48: =VLOOKUP($B48,'Vysledky-doplneni'!$C$7:$L$126,3,0) -> 13 | E48: =VLOOKUP($B48,'Vysledky-doplneni'!$C$7:$L$126,4,0) -> 12 | F48: =VLOOKUP($B48,'Vysledky-doplneni'!$C$7:$L$126,5,0) -> 16 | G48: =VLOOKUP($B48,'Vysledky-doplneni'!$C$7:$L$126,6,0) -> 13 | H48: =VLOOKUP($B48,'Vysledky-doplneni'!$C$7:$L$126,7,0) -> 13 | I48: =VLOOKUP($B48,'Vysledky-doplneni'!$C$7:$L$126,8,0) -> 11 | J48: =VLOOKUP($B48,'Vysledky-doplneni'!$C$7:$L$126,9,0) -> 14 | K48: =VLOOKUP($B48,'Vysledky-doplneni'!$C$7:$L$126,10,0) -> 14 | M48: 106 | N48: 66.3% | O48: 8
A49: 5 | B49: =IF(Vstup!C40<>"",Vstup!C40,"") -> Neuvirt Václav | C49: =IF(Vstup!C40<>"",Vstup!D40,"") -> V | D49: =VLOOKUP($B49,'Vysledky-doplneni'!$C$7:$L$126,3,0) -> 14 | E49: =VLOOKUP($B49,'Vysledky-doplneni'!$C$7:$L$126,4,0) -> 12 | F49: =VLOOKUP($B49,'Vysledky-doplneni'!$C$7:$L$126,5,0) -> 12 | G49: =VLOOKUP($B49,'Vysledky-doplneni'!$C$7:$L$126,6,0) -> 12 | H49: =VLOOKUP($B49,'Vysledky-doplneni'!$C$7:$L$126,7,0) -> 15 | I49: =VLOOKUP($B49,'Vysledky-doplneni'!$C$7:$L$126,8,0) -> 11 | J49: =VLOOKUP($B49,'Vysledky-doplneni'!$C$7:$L$126,9,0) -> 10 | K49: =VLOOKUP($B49,'Vysledky-doplneni'!$C$7:$L$126,10,0) -> 8 | M49: 94 | N49: 58.8% | O49: 8
A50: 6 | B50: =IF(Vstup!C38<>"",Vstup!C38,"") -> Kubík Jindřich | C50: =IF(Vstup!C38<>"",Vstup!D38,"") -> V | D50: =VLOOKUP($B50,'Vysledky-doplneni'!$C$7:$L$126,3,0) -> 11 | E50: =VLOOKUP($B50,'Vysledky-doplneni'!$C$7:$L$126,4,0) -> 9 | F50: =VLOOKUP($B50,'Vysledky-doplneni'!$C$7:$L$126,5,0) -> 12 | G50: =VLOOKUP($B50,'Vysledky-doplneni'!$C$7:$L$126,6,0) -> 14 | H50: =VLOOKUP($B50,'Vysledky-doplneni'!$C$7:$L$126,7,0) -> 13 | I50: =VLOOKUP($B50,'Vysledky-doplneni'!$C$7:$L$126,8,0) -> 10 | J50: =VLOOKUP($B50,'Vysledky-doplneni'!$C$7:$L$126,9,0) -> 11 | K50: =VLOOKUP($B50,'Vysledky-doplneni'!$C$7:$L$126,10,0) -> 10 | M50: 90 | N50: 56.3% | O50: 8
A51: 7 | B51: =IF(Vstup!C36<>"",Vstup!C36,"") -> Jelínek Jiří | C51: =IF(Vstup!C36<>"",Vstup!D36,"") -> V | D51: =VLOOKUP($B51,'Vysledky-doplneni'!$C$7:$L$126,3,0) -> 16 | E51: =VLOOKUP($B51,'Vysledky-doplneni'!$C$7:$L$126,4,0) -> 11 | F51: =VLOOKUP($B51,'Vysledky-doplneni'!$C$7:$L$126,5,0) -> 11 | G51: =VLOOKUP($B51,'Vysledky-doplneni'!$C$7:$L$126,6,0) -> 11 | H51: =VLOOKUP($B51,'Vysledky-doplneni'!$C$7:$L$126,7,0) -> 11 | I51: =VLOOKUP($B51,'Vysledky-doplneni'!$C$7:$L$126,8,0) -> 6 | J51: =VLOOKUP($B51,'Vysledky-doplneni'!$C$7:$L$126,9,0) -> 13 | K51: =VLOOKUP($B51,'Vysledky-doplneni'!$C$7:$L$126,10,0) -> 6 | M51: 85 | N51: 53.1% | O51: 8
B52: =IF(Vstup!C48<>"",Vstup!C48,"") ->  | C52: =IF(Vstup!C48<>"",Vstup!D48,"") ->  | D52: =VLOOKUP($B52,'Vysledky-doplneni'!$C$7:$L$126,3,0) -> 0 | E52: =VLOOKUP($B52,'Vysledky-doplneni'!$C$7:$L$126,4,0) -> 0 | F52: =VLOOKUP($B52,'Vysledky-doplneni'!$C$7:$L$126,5,0) -> 0 | G52: =VLOOKUP($B52,'Vysledky-doplneni'!$C$7:$L$126,6,0) -> 0 | H52: =VLOOKUP($B52,'Vysledky-doplneni'!$C$7:$L$126,7,0) -> 0 | I52: =VLOOKUP($B52,'Vysledky-doplneni'!$C$7:$L$126,8,0) -> 0 | J52: =VLOOKUP($B52,'Vysledky-doplneni'!$C$7:$L$126,9,0) -> 0 | K52: =VLOOKUP($B52,'Vysledky-doplneni'!$C$7:$L$126,10,0) -> 0 | M52: =SUM(D52:H52) -> 0 | N52: =(M52/(20*O52)) ->  | O52: 0
B53: =IF(Vstup!C49<>"",Vstup!C49,"") ->  | C53: =IF(Vstup!C49<>"",Vstup!D49,"") ->  | D53: =VLOOKUP($B53,'Vysledky-doplneni'!$C$7:$L$126,3,0) -> 0 | E53: =VLOOKUP($B53,'Vysledky-doplneni'!$C$7:$L$126,4,0) -> 0 | F53: =VLOOKUP($B53,'Vysledky-doplneni'!$C$7:$L$126,5,0) -> 0 | G53: =VLOOKUP($B53,'Vysledky-doplneni'!$C$7:$L$126,6,0) -> 0 | H53: =VLOOKUP($B53,'Vysledky-doplneni'!$C$7:$L$126,7,0) -> 0 | I53: =VLOOKUP($B53,'Vysledky-doplneni'!$C$7:$L$126,8,0) -> 0 | J53: =VLOOKUP($B53,'Vysledky-doplneni'!$C$7:$L$126,9,0) -> 0 | K53: =VLOOKUP($B53,'Vysledky-doplneni'!$C$7:$L$126,10,0) -> 0 | M53: 0 | O53: 0
A54: =IF(Vstup!C50<>"",Vstup!B50,"") ->  | B54: =IF(Vstup!C50<>"",Vstup!C50,"") ->  | C54: =IF(Vstup!C50<>"",Vstup!D50,"") ->  | D54: =VLOOKUP($B54,'Vysledky-doplneni'!$C$7:$L$126,3,0) -> 0 | E54: =VLOOKUP($B54,'Vysledky-doplneni'!$C$7:$L$126,4,0) -> 0 | F54: =VLOOKUP($B54,'Vysledky-doplneni'!$C$7:$L$126,5,0) -> 0 | G54: =VLOOKUP($B54,'Vysledky-doplneni'!$C$7:$L$126,6,0) -> 0 | H54: =VLOOKUP($B54,'Vysledky-doplneni'!$C$7:$L$126,7,0) -> 0 | I54: =VLOOKUP($B54,'Vysledky-doplneni'!$C$7:$L$126,8,0) -> 0 | J54: =VLOOKUP($B54,'Vysledky-doplneni'!$C$7:$L$126,9,0) -> 0 | K54: =VLOOKUP($B54,'Vysledky-doplneni'!$C$7:$L$126,10,0) -> 0 | M54: 0 | O54: 0
A55: =IF(Vstup!C51<>"",Vstup!B51,"") ->  | B55: =IF(Vstup!C51<>"",Vstup!C51,"") ->  | C55: =IF(Vstup!C51<>"",Vstup!D51,"") ->  | D55: =VLOOKUP($B55,'Vysledky-doplneni'!$C$7:$L$126,3,0) -> 0 | E55: =VLOOKUP($B55,'Vysledky-doplneni'!$C$7:$L$126,4,0) -> 0 | F55: =VLOOKUP($B55,'Vysledky-doplneni'!$C$7:$L$126,5,0) -> 0 | G55: =VLOOKUP($B55,'Vysledky-doplneni'!$C$7:$L$126,6,0) -> 0 | H55: =VLOOKUP($B55,'Vysledky-doplneni'!$C$7:$L$126,7,0) -> 0 | I55: =VLOOKUP($B55,'Vysledky-doplneni'!$C$7:$L$126,8,0) -> 0 | J55: =VLOOKUP($B55,'Vysledky-doplneni'!$C$7:$L$126,9,0) -> 0 | K55: =VLOOKUP($B55,'Vysledky-doplneni'!$C$7:$L$126,10,0) -> 0 | M55: 0 | O55: 0
A56: =IF(Vstup!C52<>"",Vstup!B52,"") ->  | B56: =IF(Vstup!C52<>"",Vstup!C52,"") ->  | C56: =IF(Vstup!C52<>"",Vstup!D52,"") ->  | D56: =VLOOKUP($B56,'Vysledky-doplneni'!$C$7:$L$126,3,0) -> 0 | E56: =VLOOKUP($B56,'Vysledky-doplneni'!$C$7:$L$126,4,0) -> 0 | F56: =VLOOKUP($B56,'Vysledky-doplneni'!$C$7:$L$126,5,0) -> 0 | G56: =VLOOKUP($B56,'Vysledky-doplneni'!$C$7:$L$126,6,0) -> 0 | H56: =VLOOKUP($B56,'Vysledky-doplneni'!$C$7:$L$126,7,0) -> 0 | I56: =VLOOKUP($B56,'Vysledky-doplneni'!$C$7:$L$126,8,0) -> 0 | J56: =VLOOKUP($B56,'Vysledky-doplneni'!$C$7:$L$126,9,0) -> 0 | K56: =VLOOKUP($B56,'Vysledky-doplneni'!$C$7:$L$126,10,0) -> 0 | M56: 0 | O56: 0
A57: =IF(Vstup!C53<>"",Vstup!B53,"") ->  | B57: =IF(Vstup!C53<>"",Vstup!C53,"") ->  | C57: =IF(Vstup!C53<>"",Vstup!D53,"") ->  | D57: =VLOOKUP($B57,'Vysledky-doplneni'!$C$7:$L$126,3,0) -> 0 | E57: =VLOOKUP($B57,'Vysledky-doplneni'!$C$7:$L$126,4,0) -> 0 | F57: =VLOOKUP($B57,'Vysledky-doplneni'!$C$7:$L$126,5,0) -> 0 | G57: =VLOOKUP($B57,'Vysledky-doplneni'!$C$7:$L$126,6,0) -> 0 | H57: =VLOOKUP($B57,'Vysledky-doplneni'!$C$7:$L$126,7,0) -> 0 | I57: =VLOOKUP($B57,'Vysledky-doplneni'!$C$7:$L$126,8,0) -> 0 | J57: =VLOOKUP($B57,'Vysledky-doplneni'!$C$7:$L$126,9,0) -> 0 | K57: =VLOOKUP($B57,'Vysledky-doplneni'!$C$7:$L$126,10,0) -> 0 | M57: 0 | O57: 0
A58: =IF(Vstup!C54<>"",Vstup!B54,"") ->  | B58: =IF(Vstup!C54<>"",Vstup!C54,"") ->  | C58: =IF(Vstup!C54<>"",Vstup!D54,"") ->  | D58: =VLOOKUP($B58,'Vysledky-doplneni'!$C$7:$L$126,3,0) -> 0 | E58: =VLOOKUP($B58,'Vysledky-doplneni'!$C$7:$L$126,4,0) -> 0 | F58: =VLOOKUP($B58,'Vysledky-doplneni'!$C$7:$L$126,5,0) -> 0 | G58: =VLOOKUP($B58,'Vysledky-doplneni'!$C$7:$L$126,6,0) -> 0 | H58: =VLOOKUP($B58,'Vysledky-doplneni'!$C$7:$L$126,7,0) -> 0 | I58: =VLOOKUP($B58,'Vysledky-doplneni'!$C$7:$L$126,8,0) -> 0 | J58: =VLOOKUP($B58,'Vysledky-doplneni'!$C$7:$L$126,9,0) -> 0 | K58: =VLOOKUP($B58,'Vysledky-doplneni'!$C$7:$L$126,10,0) -> 0 | M58: 0 | O58: 0
A59: =IF(Vstup!C55<>"",Vstup!B55,"") ->  | B59: =IF(Vstup!C55<>"",Vstup!C55,"") ->  | C59: =IF(Vstup!C55<>"",Vstup!D55,"") ->  | D59: =VLOOKUP($B59,'Vysledky-doplneni'!$C$7:$L$126,3,0) -> 0 | E59: =VLOOKUP($B59,'Vysledky-doplneni'!$C$7:$L$126,4,0) -> 0 | F59: =VLOOKUP($B59,'Vysledky-doplneni'!$C$7:$L$126,5,0) -> 0 | G59: =VLOOKUP($B59,'Vysledky-doplneni'!$C$7:$L$126,6,0) -> 0 | H59: =VLOOKUP($B59,'Vysledky-doplneni'!$C$7:$L$126,7,0) -> 0 | I59: =VLOOKUP($B59,'Vysledky-doplneni'!$C$7:$L$126,8,0) -> 0 | J59: =VLOOKUP($B59,'Vysledky-doplneni'!$C$7:$L$126,9,0) -> 0 | K59: =VLOOKUP($B59,'Vysledky-doplneni'!$C$7:$L$126,10,0) -> 0 | M59: 0 | O59: 0
A60: =IF(Vstup!C56<>"",Vstup!B56,"") ->  | B60: =IF(Vstup!C56<>"",Vstup!C56,"") ->  | C60: =IF(Vstup!C56<>"",Vstup!D56,"") ->  | D60: =VLOOKUP($B60,'Vysledky-doplneni'!$C$7:$L$126,3,0) -> 0 | E60: =VLOOKUP($B60,'Vysledky-doplneni'!$C$7:$L$126,4,0) -> 0 | F60: =VLOOKUP($B60,'Vysledky-doplneni'!$C$7:$L$126,5,0) -> 0 | G60: =VLOOKUP($B60,'Vysledky-doplneni'!$C$7:$L$126,6,0) -> 0 | H60: =VLOOKUP($B60,'Vysledky-doplneni'!$C$7:$L$126,7,0) -> 0 | I60: =VLOOKUP($B60,'Vysledky-doplneni'!$C$7:$L$126,8,0) -> 0 | J60: =VLOOKUP($B60,'Vysledky-doplneni'!$C$7:$L$126,9,0) -> 0 | K60: =VLOOKUP($B60,'Vysledky-doplneni'!$C$7:$L$126,10,0) -> 0 | M60: 0 | O60: 0
A61: =IF(Vstup!C57<>"",Vstup!B57,"") ->  | B61: =IF(Vstup!C57<>"",Vstup!C57,"") ->  | C61: =IF(Vstup!C57<>"",Vstup!D57,"") ->  | D61: =VLOOKUP($B61,'Vysledky-doplneni'!$C$7:$L$126,3,0) -> 0 | E61: =VLOOKUP($B61,'Vysledky-doplneni'!$C$7:$L$126,4,0) -> 0 | F61: =VLOOKUP($B61,'Vysledky-doplneni'!$C$7:$L$126,5,0) -> 0 | G61: =VLOOKUP($B61,'Vysledky-doplneni'!$C$7:$L$126,6,0) -> 0 | H61: =VLOOKUP($B61,'Vysledky-doplneni'!$C$7:$L$126,7,0) -> 0 | I61: =VLOOKUP($B61,'Vysledky-doplneni'!$C$7:$L$126,8,0) -> 0 | J61: =VLOOKUP($B61,'Vysledky-doplneni'!$C$7:$L$126,9,0) -> 0 | K61: =VLOOKUP($B61,'Vysledky-doplneni'!$C$7:$L$126,10,0) -> 0 | M61: 0 | O61: 0
A62: =IF(Vstup!C58<>"",Vstup!B58,"") ->  | B62: =IF(Vstup!C58<>"",Vstup!C58,"") ->  | C62: =IF(Vstup!C58<>"",Vstup!D58,"") ->  | D62: =VLOOKUP($B62,'Vysledky-doplneni'!$C$7:$L$126,3,0) -> 0 | E62: =VLOOKUP($B62,'Vysledky-doplneni'!$C$7:$L$126,4,0) -> 0 | F62: =VLOOKUP($B62,'Vysledky-doplneni'!$C$7:$L$126,5,0) -> 0 | G62: =VLOOKUP($B62,'Vysledky-doplneni'!$C$7:$L$126,6,0) -> 0 | H62: =VLOOKUP($B62,'Vysledky-doplneni'!$C$7:$L$126,7,0) -> 0 | I62: =VLOOKUP($B62,'Vysledky-doplneni'!$C$7:$L$126,8,0) -> 0 | J62: =VLOOKUP($B62,'Vysledky-doplneni'!$C$7:$L$126,9,0) -> 0 | K62: =VLOOKUP($B62,'Vysledky-doplneni'!$C$7:$L$126,10,0) -> 0 | M62: 0 | O62: 0
A63: =IF(Vstup!C59<>"",Vstup!B59,"") ->  | B63: =IF(Vstup!C59<>"",Vstup!C59,"") ->  | C63: =IF(Vstup!C59<>"",Vstup!D59,"") ->  | D63: =VLOOKUP($B63,'Vysledky-doplneni'!$C$7:$L$126,3,0) -> 0 | E63: =VLOOKUP($B63,'Vysledky-doplneni'!$C$7:$L$126,4,0) -> 0 | F63: =VLOOKUP($B63,'Vysledky-doplneni'!$C$7:$L$126,5,0) -> 0 | G63: =VLOOKUP($B63,'Vysledky-doplneni'!$C$7:$L$126,6,0) -> 0 | H63: =VLOOKUP($B63,'Vysledky-doplneni'!$C$7:$L$126,7,0) -> 0 | I63: =VLOOKUP($B63,'Vysledky-doplneni'!$C$7:$L$126,8,0) -> 0 | J63: =VLOOKUP($B63,'Vysledky-doplneni'!$C$7:$L$126,9,0) -> 0 | K63: =VLOOKUP($B63,'Vysledky-doplneni'!$C$7:$L$126,10,0) -> 0 | M63: 0 | O63: 0
A64: =IF(Vstup!C60<>"",Vstup!B60,"") ->  | B64: =IF(Vstup!C60<>"",Vstup!C60,"") ->  | C64: =IF(Vstup!C60<>"",Vstup!D60,"") ->  | D64: =VLOOKUP($B64,'Vysledky-doplneni'!$C$7:$L$126,3,0) -> 0 | E64: =VLOOKUP($B64,'Vysledky-doplneni'!$C$7:$L$126,4,0) -> 0 | F64: =VLOOKUP($B64,'Vysledky-doplneni'!$C$7:$L$126,5,0) -> 0 | G64: =VLOOKUP($B64,'Vysledky-doplneni'!$C$7:$L$126,6,0) -> 0 | H64: =VLOOKUP($B64,'Vysledky-doplneni'!$C$7:$L$126,7,0) -> 0 | I64: =VLOOKUP($B64,'Vysledky-doplneni'!$C$7:$L$126,8,0) -> 0 | J64: =VLOOKUP($B64,'Vysledky-doplneni'!$C$7:$L$126,9,0) -> 0 | K64: =VLOOKUP($B64,'Vysledky-doplneni'!$C$7:$L$126,10,0) -> 0 | M64: 0 | O64: 0
A65: =IF(Vstup!C61<>"",Vstup!B61,"") ->  | B65: =IF(Vstup!C61<>"",Vstup!C61,"") ->  | C65: =IF(Vstup!C61<>"",Vstup!D61,"") ->  | D65: =VLOOKUP($B65,'Vysledky-doplneni'!$C$7:$L$126,3,0) -> 0 | E65: =VLOOKUP($B65,'Vysledky-doplneni'!$C$7:$L$126,4,0) -> 0 | F65: =VLOOKUP($B65,'Vysledky-doplneni'!$C$7:$L$126,5,0) -> 0 | G65: =VLOOKUP($B65,'Vysledky-doplneni'!$C$7:$L$126,6,0) -> 0 | H65: =VLOOKUP($B65,'Vysledky-doplneni'!$C$7:$L$126,7,0) -> 0 | I65: =VLOOKUP($B65,'Vysledky-doplneni'!$C$7:$L$126,8,0) -> 0 | J65: =VLOOKUP($B65,'Vysledky-doplneni'!$C$7:$L$126,9,0) -> 0 | K65: =VLOOKUP($B65,'Vysledky-doplneni'!$C$7:$L$126,10,0) -> 0 | M65: 0 | O65: 0
A66: =IF(Vstup!C62<>"",Vstup!B62,"") ->  | B66: =IF(Vstup!C62<>"",Vstup!C62,"") ->  | C66: =IF(Vstup!C62<>"",Vstup!D62,"") ->  | D66: =VLOOKUP($B66,'Vysledky-doplneni'!$C$7:$L$126,3,0) -> 0 | E66: =VLOOKUP($B66,'Vysledky-doplneni'!$C$7:$L$126,4,0) -> 0 | F66: =VLOOKUP($B66,'Vysledky-doplneni'!$C$7:$L$126,5,0) -> 0 | G66: =VLOOKUP($B66,'Vysledky-doplneni'!$C$7:$L$126,6,0) -> 0 | H66: =VLOOKUP($B66,'Vysledky-doplneni'!$C$7:$L$126,7,0) -> 0 | I66: =VLOOKUP($B66,'Vysledky-doplneni'!$C$7:$L$126,8,0) -> 0 | J66: =VLOOKUP($B66,'Vysledky-doplneni'!$C$7:$L$126,9,0) -> 0 | K66: =VLOOKUP($B66,'Vysledky-doplneni'!$C$7:$L$126,10,0) -> 0 | M66: 0 | O66: 0
A67: =IF(Vstup!C63<>"",Vstup!B63,"") ->  | B67: =IF(Vstup!C63<>"",Vstup!C63,"") ->  | C67: =IF(Vstup!C63<>"",Vstup!D63,"") ->  | D67: =VLOOKUP($B67,'Vysledky-doplneni'!$C$7:$L$126,3,0) -> 0 | E67: =VLOOKUP($B67,'Vysledky-doplneni'!$C$7:$L$126,4,0) -> 0 | F67: =VLOOKUP($B67,'Vysledky-doplneni'!$C$7:$L$126,5,0) -> 0 | G67: =VLOOKUP($B67,'Vysledky-doplneni'!$C$7:$L$126,6,0) -> 0 | H67: =VLOOKUP($B67,'Vysledky-doplneni'!$C$7:$L$126,7,0) -> 0 | I67: =VLOOKUP($B67,'Vysledky-doplneni'!$C$7:$L$126,8,0) -> 0 | J67: =VLOOKUP($B67,'Vysledky-doplneni'!$C$7:$L$126,9,0) -> 0 | K67: =VLOOKUP($B67,'Vysledky-doplneni'!$C$7:$L$126,10,0) -> 0 | M67: 0 | O67: 0
A68: =IF(Vstup!C64<>"",Vstup!B64,"") ->  | B68: =IF(Vstup!C64<>"",Vstup!C64,"") ->  | C68: =IF(Vstup!C64<>"",Vstup!D64,"") ->  | D68: =VLOOKUP($B68,'Vysledky-doplneni'!$C$7:$L$126,3,0) -> 0 | E68: =VLOOKUP($B68,'Vysledky-doplneni'!$C$7:$L$126,4,0) -> 0 | F68: =VLOOKUP($B68,'Vysledky-doplneni'!$C$7:$L$126,5,0) -> 0 | G68: =VLOOKUP($B68,'Vysledky-doplneni'!$C$7:$L$126,6,0) -> 0 | H68: =VLOOKUP($B68,'Vysledky-doplneni'!$C$7:$L$126,7,0) -> 0 | I68: =VLOOKUP($B68,'Vysledky-doplneni'!$C$7:$L$126,8,0) -> 0 | J68: =VLOOKUP($B68,'Vysledky-doplneni'!$C$7:$L$126,9,0) -> 0 | K68: =VLOOKUP($B68,'Vysledky-doplneni'!$C$7:$L$126,10,0) -> 0 | M68: 0 | O68: 0
A69: =IF(Vstup!C65<>"",Vstup!B65,"") ->  | B69: =IF(Vstup!C65<>"",Vstup!C65,"") ->  | C69: =IF(Vstup!C65<>"",Vstup!D65,"") ->  | D69: =VLOOKUP($B69,'Vysledky-doplneni'!$C$7:$L$126,3,0) -> 0 | E69: =VLOOKUP($B69,'Vysledky-doplneni'!$C$7:$L$126,4,0) -> 0 | F69: =VLOOKUP($B69,'Vysledky-doplneni'!$C$7:$L$126,5,0) -> 0 | G69: =VLOOKUP($B69,'Vysledky-doplneni'!$C$7:$L$126,6,0) -> 0 | H69: =VLOOKUP($B69,'Vysledky-doplneni'!$C$7:$L$126,7,0) -> 0 | I69: =VLOOKUP($B69,'Vysledky-doplneni'!$C$7:$L$126,8,0) -> 0 | J69: =VLOOKUP($B69,'Vysledky-doplneni'!$C$7:$L$126,9,0) -> 0 | K69: =VLOOKUP($B69,'Vysledky-doplneni'!$C$7:$L$126,10,0) -> 0 | M69: 0 | O69: 0
A70: =IF(Vstup!C66<>"",Vstup!B66,"") ->  | B70: =IF(Vstup!C66<>"",Vstup!C66,"") ->  | C70: =IF(Vstup!C66<>"",Vstup!D66,"") ->  | D70: =VLOOKUP($B70,'Vysledky-doplneni'!$C$7:$L$126,3,0) -> 0 | E70: =VLOOKUP($B70,'Vysledky-doplneni'!$C$7:$L$126,4,0) -> 0 | F70: =VLOOKUP($B70,'Vysledky-doplneni'!$C$7:$L$126,5,0) -> 0 | G70: =VLOOKUP($B70,'Vysledky-doplneni'!$C$7:$L$126,6,0) -> 0 | H70: =VLOOKUP($B70,'Vysledky-doplneni'!$C$7:$L$126,7,0) -> 0 | I70: =VLOOKUP($B70,'Vysledky-doplneni'!$C$7:$L$126,8,0) -> 0 | J70: =VLOOKUP($B70,'Vysledky-doplneni'!$C$7:$L$126,9,0) -> 0 | K70: =VLOOKUP($B70,'Vysledky-doplneni'!$C$7:$L$126,10,0) -> 0 | M70: 0 | O70: 0
A71: =IF(Vstup!C67<>"",Vstup!B67,"") ->  | B71: =IF(Vstup!C67<>"",Vstup!C67,"") ->  | C71: =IF(Vstup!C67<>"",Vstup!D67,"") ->  | D71: =VLOOKUP($B71,'Vysledky-doplneni'!$C$7:$L$126,3,0) -> 0 | E71: =VLOOKUP($B71,'Vysledky-doplneni'!$C$7:$L$126,4,0) -> 0 | F71: =VLOOKUP($B71,'Vysledky-doplneni'!$C$7:$L$126,5,0) -> 0 | G71: =VLOOKUP($B71,'Vysledky-doplneni'!$C$7:$L$126,6,0) -> 0 | H71: =VLOOKUP($B71,'Vysledky-doplneni'!$C$7:$L$126,7,0) -> 0 | I71: =VLOOKUP($B71,'Vysledky-doplneni'!$C$7:$L$126,8,0) -> 0 | J71: =VLOOKUP($B71,'Vysledky-doplneni'!$C$7:$L$126,9,0) -> 0 | K71: =VLOOKUP($B71,'Vysledky-doplneni'!$C$7:$L$126,10,0) -> 0 | M71: 0 | O71: 0
A72: =IF(Vstup!C68<>"",Vstup!B68,"") ->  | B72: =IF(Vstup!C68<>"",Vstup!C68,"") ->  | C72: =IF(Vstup!C68<>"",Vstup!D68,"") ->  | D72: =VLOOKUP($B72,'Vysledky-doplneni'!$C$7:$L$126,3,0) -> 0 | E72: =VLOOKUP($B72,'Vysledky-doplneni'!$C$7:$L$126,4,0) -> 0 | F72: =VLOOKUP($B72,'Vysledky-doplneni'!$C$7:$L$126,5,0) -> 0 | G72: =VLOOKUP($B72,'Vysledky-doplneni'!$C$7:$L$126,6,0) -> 0 | H72: =VLOOKUP($B72,'Vysledky-doplneni'!$C$7:$L$126,7,0) -> 0 | I72: =VLOOKUP($B72,'Vysledky-doplneni'!$C$7:$L$126,8,0) -> 0 | J72: =VLOOKUP($B72,'Vysledky-doplneni'!$C$7:$L$126,9,0) -> 0 | K72: =VLOOKUP($B72,'Vysledky-doplneni'!$C$7:$L$126,10,0) -> 0 | M72: 0 | O72: 0
A73: =IF(Vstup!C69<>"",Vstup!B69,"") ->  | B73: =IF(Vstup!C69<>"",Vstup!C69,"") ->  | C73: =IF(Vstup!C69<>"",Vstup!D69,"") ->  | D73: =VLOOKUP($B73,'Vysledky-doplneni'!$C$7:$L$126,3,0) -> 0 | E73: =VLOOKUP($B73,'Vysledky-doplneni'!$C$7:$L$126,4,0) -> 0 | F73: =VLOOKUP($B73,'Vysledky-doplneni'!$C$7:$L$126,5,0) -> 0 | G73: =VLOOKUP($B73,'Vysledky-doplneni'!$C$7:$L$126,6,0) -> 0 | H73: =VLOOKUP($B73,'Vysledky-doplneni'!$C$7:$L$126,7,0) -> 0 | I73: =VLOOKUP($B73,'Vysledky-doplneni'!$C$7:$L$126,8,0) -> 0 | J73: =VLOOKUP($B73,'Vysledky-doplneni'!$C$7:$L$126,9,0) -> 0 | K73: =VLOOKUP($B73,'Vysledky-doplneni'!$C$7:$L$126,10,0) -> 0 | M73: 0 | O73: 0
A74: =IF(Vstup!C70<>"",Vstup!B70,"") ->  | B74: =IF(Vstup!C70<>"",Vstup!C70,"") ->  | C74: =IF(Vstup!C70<>"",Vstup!D70,"") ->  | D74: =VLOOKUP($B74,'Vysledky-doplneni'!$C$7:$L$126,3,0) -> 0 | E74: =VLOOKUP($B74,'Vysledky-doplneni'!$C$7:$L$126,4,0) -> 0 | F74: =VLOOKUP($B74,'Vysledky-doplneni'!$C$7:$L$126,5,0) -> 0 | G74: =VLOOKUP($B74,'Vysledky-doplneni'!$C$7:$L$126,6,0) -> 0 | H74: =VLOOKUP($B74,'Vysledky-doplneni'!$C$7:$L$126,7,0) -> 0 | I74: =VLOOKUP($B74,'Vysledky-doplneni'!$C$7:$L$126,8,0) -> 0 | J74: =VLOOKUP($B74,'Vysledky-doplneni'!$C$7:$L$126,9,0) -> 0 | K74: =VLOOKUP($B74,'Vysledky-doplneni'!$C$7:$L$126,10,0) -> 0 | M74: 0 | O74: 0
A75: =IF(Vstup!C71<>"",Vstup!B71,"") ->  | B75: =IF(Vstup!C71<>"",Vstup!C71,"") ->  | C75: =IF(Vstup!C71<>"",Vstup!D71,"") ->  | D75: =VLOOKUP($B75,'Vysledky-doplneni'!$C$7:$L$126,3,0) -> 0 | E75: =VLOOKUP($B75,'Vysledky-doplneni'!$C$7:$L$126,4,0) -> 0 | F75: =VLOOKUP($B75,'Vysledky-doplneni'!$C$7:$L$126,5,0) -> 0 | G75: =VLOOKUP($B75,'Vysledky-doplneni'!$C$7:$L$126,6,0) -> 0 | H75: =VLOOKUP($B75,'Vysledky-doplneni'!$C$7:$L$126,7,0) -> 0 | I75: =VLOOKUP($B75,'Vysledky-doplneni'!$C$7:$L$126,8,0) -> 0 | J75: =VLOOKUP($B75,'Vysledky-doplneni'!$C$7:$L$126,9,0) -> 0 | K75: =VLOOKUP($B75,'Vysledky-doplneni'!$C$7:$L$126,10,0) -> 0 | M75: 0 | O75: 0
A76: =IF(Vstup!C72<>"",Vstup!B72,"") ->  | B76: =IF(Vstup!C72<>"",Vstup!C72,"") ->  | C76: =IF(Vstup!C72<>"",Vstup!D72,"") ->  | D76: =VLOOKUP($B76,'Vysledky-doplneni'!$C$7:$L$126,3,0) -> 0 | E76: =VLOOKUP($B76,'Vysledky-doplneni'!$C$7:$L$126,4,0) -> 0 | F76: =VLOOKUP($B76,'Vysledky-doplneni'!$C$7:$L$126,5,0) -> 0 | G76: =VLOOKUP($B76,'Vysledky-doplneni'!$C$7:$L$126,6,0) -> 0 | H76: =VLOOKUP($B76,'Vysledky-doplneni'!$C$7:$L$126,7,0) -> 0 | I76: =VLOOKUP($B76,'Vysledky-doplneni'!$C$7:$L$126,8,0) -> 0 | J76: =VLOOKUP($B76,'Vysledky-doplneni'!$C$7:$L$126,9,0) -> 0 | K76: =VLOOKUP($B76,'Vysledky-doplneni'!$C$7:$L$126,10,0) -> 0 | M76: 0 | O76: 0
A77: =IF(Vstup!C73<>"",Vstup!B73,"") ->  | B77: =IF(Vstup!C73<>"",Vstup!C73,"") ->  | C77: =IF(Vstup!C73<>"",Vstup!D73,"") ->  | D77: =VLOOKUP($B77,'Vysledky-doplneni'!$C$7:$L$126,3,0) -> 0 | E77: =VLOOKUP($B77,'Vysledky-doplneni'!$C$7:$L$126,4,0) -> 0 | F77: =VLOOKUP($B77,'Vysledky-doplneni'!$C$7:$L$126,5,0) -> 0 | G77: =VLOOKUP($B77,'Vysledky-doplneni'!$C$7:$L$126,6,0) -> 0 | H77: =VLOOKUP($B77,'Vysledky-doplneni'!$C$7:$L$126,7,0) -> 0 | I77: =VLOOKUP($B77,'Vysledky-doplneni'!$C$7:$L$126,8,0) -> 0 | J77: =VLOOKUP($B77,'Vysledky-doplneni'!$C$7:$L$126,9,0) -> 0 | K77: =VLOOKUP($B77,'Vysledky-doplneni'!$C$7:$L$126,10,0) -> 0 | M77: 0 | O77: 0
A78: =IF(Vstup!C74<>"",Vstup!B74,"") ->  | B78: =IF(Vstup!C74<>"",Vstup!C74,"") ->  | C78: =IF(Vstup!C74<>"",Vstup!D74,"") ->  | D78: =VLOOKUP($B78,'Vysledky-doplneni'!$C$7:$L$126,3,0) -> 0 | E78: =VLOOKUP($B78,'Vysledky-doplneni'!$C$7:$L$126,4,0) -> 0 | F78: =VLOOKUP($B78,'Vysledky-doplneni'!$C$7:$L$126,5,0) -> 0 | G78: =VLOOKUP($B78,'Vysledky-doplneni'!$C$7:$L$126,6,0) -> 0 | H78: =VLOOKUP($B78,'Vysledky-doplneni'!$C$7:$L$126,7,0) -> 0 | I78: =VLOOKUP($B78,'Vysledky-doplneni'!$C$7:$L$126,8,0) -> 0 | J78: =VLOOKUP($B78,'Vysledky-doplneni'!$C$7:$L$126,9,0) -> 0 | K78: =VLOOKUP($B78,'Vysledky-doplneni'!$C$7:$L$126,10,0) -> 0 | M78: =SUM(D78:H78) -> 0 | N78: =(M78/(20*O78)) ->  | O78: =COUNTIF(D78:K78,">0") -> 0
A79: =IF(Vstup!C75<>"",Vstup!B75,"") ->  | B79: =IF(Vstup!C75<>"",Vstup!C75,"") ->  | C79: =IF(Vstup!C75<>"",Vstup!D75,"") ->  | D79: =VLOOKUP($B79,'Vysledky-doplneni'!$C$7:$L$126,3,0) -> 0 | E79: =VLOOKUP($B79,'Vysledky-doplneni'!$C$7:$L$126,4,0) -> 0 | F79: =VLOOKUP($B79,'Vysledky-doplneni'!$C$7:$L$126,5,0) -> 0 | G79: =VLOOKUP($B79,'Vysledky-doplneni'!$C$7:$L$126,6,0) -> 0 | H79: =VLOOKUP($B79,'Vysledky-doplneni'!$C$7:$L$126,7,0) -> 0 | I79: =VLOOKUP($B79,'Vysledky-doplneni'!$C$7:$L$126,8,0) -> 0 | J79: =VLOOKUP($B79,'Vysledky-doplneni'!$C$7:$L$126,9,0) -> 0 | K79: =VLOOKUP($B79,'Vysledky-doplneni'!$C$7:$L$126,10,0) -> 0 | M79: 0 | O79: 0
A80: =IF(Vstup!C76<>"",Vstup!B76,"") ->  | B80: =IF(Vstup!C76<>"",Vstup!C76,"") ->  | C80: =IF(Vstup!C76<>"",Vstup!D76,"") ->  | D80: =VLOOKUP($B80,'Vysledky-doplneni'!$C$7:$L$126,3,0) -> 0 | E80: =VLOOKUP($B80,'Vysledky-doplneni'!$C$7:$L$126,4,0) -> 0 | F80: =VLOOKUP($B80,'Vysledky-doplneni'!$C$7:$L$126,5,0) -> 0 | G80: =VLOOKUP($B80,'Vysledky-doplneni'!$C$7:$L$126,6,0) -> 0 | H80: =VLOOKUP($B80,'Vysledky-doplneni'!$C$7:$L$126,7,0) -> 0 | I80: =VLOOKUP($B80,'Vysledky-doplneni'!$C$7:$L$126,8,0) -> 0 | J80: =VLOOKUP($B80,'Vysledky-doplneni'!$C$7:$L$126,9,0) -> 0 | K80: =VLOOKUP($B80,'Vysledky-doplneni'!$C$7:$L$126,10,0) -> 0 | M80: 0 | O80: 0
A81: =IF(Vstup!C77<>"",Vstup!B77,"") ->  | B81: =IF(Vstup!C77<>"",Vstup!C77,"") ->  | C81: =IF(Vstup!C77<>"",Vstup!D77,"") ->  | D81: =VLOOKUP($B81,'Vysledky-doplneni'!$C$7:$L$126,3,0) -> 0 | E81: =VLOOKUP($B81,'Vysledky-doplneni'!$C$7:$L$126,4,0) -> 0 | F81: =VLOOKUP($B81,'Vysledky-doplneni'!$C$7:$L$126,5,0) -> 0 | G81: =VLOOKUP($B81,'Vysledky-doplneni'!$C$7:$L$126,6,0) -> 0 | H81: =VLOOKUP($B81,'Vysledky-doplneni'!$C$7:$L$126,7,0) -> 0 | I81: =VLOOKUP($B81,'Vysledky-doplneni'!$C$7:$L$126,8,0) -> 0 | J81: =VLOOKUP($B81,'Vysledky-doplneni'!$C$7:$L$126,9,0) -> 0 | K81: =VLOOKUP($B81,'Vysledky-doplneni'!$C$7:$L$126,10,0) -> 0 | M81: 0 | O81: 0
A82: =IF(Vstup!C78<>"",Vstup!B78,"") ->  | B82: =IF(Vstup!C78<>"",Vstup!C78,"") ->  | C82: =IF(Vstup!C78<>"",Vstup!D78,"") ->  | D82: =VLOOKUP($B82,'Vysledky-doplneni'!$C$7:$L$126,3,0) -> 0 | E82: =VLOOKUP($B82,'Vysledky-doplneni'!$C$7:$L$126,4,0) -> 0 | F82: =VLOOKUP($B82,'Vysledky-doplneni'!$C$7:$L$126,5,0) -> 0 | G82: =VLOOKUP($B82,'Vysledky-doplneni'!$C$7:$L$126,6,0) -> 0 | H82: =VLOOKUP($B82,'Vysledky-doplneni'!$C$7:$L$126,7,0) -> 0 | I82: =VLOOKUP($B82,'Vysledky-doplneni'!$C$7:$L$126,8,0) -> 0 | J82: =VLOOKUP($B82,'Vysledky-doplneni'!$C$7:$L$126,9,0) -> 0 | K82: =VLOOKUP($B82,'Vysledky-doplneni'!$C$7:$L$126,10,0) -> 0 | M82: 0 | O82: 0
A83: =IF(Vstup!C79<>"",Vstup!B79,"") ->  | B83: =IF(Vstup!C79<>"",Vstup!C79,"") ->  | C83: =IF(Vstup!C79<>"",Vstup!D79,"") ->  | D83: =VLOOKUP($B83,'Vysledky-doplneni'!$C$7:$L$126,3,0) -> 0 | E83: =VLOOKUP($B83,'Vysledky-doplneni'!$C$7:$L$126,4,0) -> 0 | F83: =VLOOKUP($B83,'Vysledky-doplneni'!$C$7:$L$126,5,0) -> 0 | G83: =VLOOKUP($B83,'Vysledky-doplneni'!$C$7:$L$126,6,0) -> 0 | H83: =VLOOKUP($B83,'Vysledky-doplneni'!$C$7:$L$126,7,0) -> 0 | I83: =VLOOKUP($B83,'Vysledky-doplneni'!$C$7:$L$126,8,0) -> 0 | J83: =VLOOKUP($B83,'Vysledky-doplneni'!$C$7:$L$126,9,0) -> 0 | K83: =VLOOKUP($B83,'Vysledky-doplneni'!$C$7:$L$126,10,0) -> 0 | M83: 0 | O83: 0
A84: =IF(Vstup!C80<>"",Vstup!B80,"") ->  | B84: =IF(Vstup!C80<>"",Vstup!C80,"") ->  | C84: =IF(Vstup!C80<>"",Vstup!D80,"") ->  | D84: =VLOOKUP($B84,'Vysledky-doplneni'!$C$7:$L$126,3,0) -> 0 | E84: =VLOOKUP($B84,'Vysledky-doplneni'!$C$7:$L$126,4,0) -> 0 | F84: =VLOOKUP($B84,'Vysledky-doplneni'!$C$7:$L$126,5,0) -> 0 | G84: =VLOOKUP($B84,'Vysledky-doplneni'!$C$7:$L$126,6,0) -> 0 | H84: =VLOOKUP($B84,'Vysledky-doplneni'!$C$7:$L$126,7,0) -> 0 | I84: =VLOOKUP($B84,'Vysledky-doplneni'!$C$7:$L$126,8,0) -> 0 | J84: =VLOOKUP($B84,'Vysledky-doplneni'!$C$7:$L$126,9,0) -> 0 | K84: =VLOOKUP($B84,'Vysledky-doplneni'!$C$7:$L$126,10,0) -> 0 | M84: 0 | O84: 0
A85: =IF(Vstup!C81<>"",Vstup!B81,"") ->  | B85: =IF(Vstup!C81<>"",Vstup!C81,"") ->  | C85: =IF(Vstup!C81<>"",Vstup!D81,"") ->  | D85: =VLOOKUP($B85,'Vysledky-doplneni'!$C$7:$L$126,3,0) -> 0 | E85: =VLOOKUP($B85,'Vysledky-doplneni'!$C$7:$L$126,4,0) -> 0 | F85: =VLOOKUP($B85,'Vysledky-doplneni'!$C$7:$L$126,5,0) -> 0 | G85: =VLOOKUP($B85,'Vysledky-doplneni'!$C$7:$L$126,6,0) -> 0 | H85: =VLOOKUP($B85,'Vysledky-doplneni'!$C$7:$L$126,7,0) -> 0 | I85: =VLOOKUP($B85,'Vysledky-doplneni'!$C$7:$L$126,8,0) -> 0 | J85: =VLOOKUP($B85,'Vysledky-doplneni'!$C$7:$L$126,9,0) -> 0 | K85: =VLOOKUP($B85,'Vysledky-doplneni'!$C$7:$L$126,10,0) -> 0 | M85: 0 | O85: 0
A86: =IF(Vstup!C82<>"",Vstup!B82,"") ->  | B86: =IF(Vstup!C82<>"",Vstup!C82,"") ->  | C86: =IF(Vstup!C82<>"",Vstup!D82,"") ->  | D86: =VLOOKUP($B86,'Vysledky-doplneni'!$C$7:$L$126,3,0) -> 0 | E86: =VLOOKUP($B86,'Vysledky-doplneni'!$C$7:$L$126,4,0) -> 0 | F86: =VLOOKUP($B86,'Vysledky-doplneni'!$C$7:$L$126,5,0) -> 0 | G86: =VLOOKUP($B86,'Vysledky-doplneni'!$C$7:$L$126,6,0) -> 0 | H86: =VLOOKUP($B86,'Vysledky-doplneni'!$C$7:$L$126,7,0) -> 0 | I86: =VLOOKUP($B86,'Vysledky-doplneni'!$C$7:$L$126,8,0) -> 0 | J86: =VLOOKUP($B86,'Vysledky-doplneni'!$C$7:$L$126,9,0) -> 0 | K86: =VLOOKUP($B86,'Vysledky-doplneni'!$C$7:$L$126,10,0) -> 0 | M86: 0 | O86: 0
A87: =IF(Vstup!C83<>"",Vstup!B83,"") ->  | B87: =IF(Vstup!C83<>"",Vstup!C83,"") ->  | C87: =IF(Vstup!C83<>"",Vstup!D83,"") ->  | D87: =VLOOKUP($B87,'Vysledky-doplneni'!$C$7:$L$126,3,0) -> 0 | E87: =VLOOKUP($B87,'Vysledky-doplneni'!$C$7:$L$126,4,0) -> 0 | F87: =VLOOKUP($B87,'Vysledky-doplneni'!$C$7:$L$126,5,0) -> 0 | G87: =VLOOKUP($B87,'Vysledky-doplneni'!$C$7:$L$126,6,0) -> 0 | H87: =VLOOKUP($B87,'Vysledky-doplneni'!$C$7:$L$126,7,0) -> 0 | I87: =VLOOKUP($B87,'Vysledky-doplneni'!$C$7:$L$126,8,0) -> 0 | J87: =VLOOKUP($B87,'Vysledky-doplneni'!$C$7:$L$126,9,0) -> 0 | K87: =VLOOKUP($B87,'Vysledky-doplneni'!$C$7:$L$126,10,0) -> 0 | M87: 0 | O87: 0
A88: =IF(Vstup!C84<>"",Vstup!B84,"") ->  | B88: =IF(Vstup!C84<>"",Vstup!C84,"") ->  | C88: =IF(Vstup!C84<>"",Vstup!D84,"") ->  | D88: =VLOOKUP($B88,'Vysledky-doplneni'!$C$7:$L$126,3,0) -> 0 | E88: =VLOOKUP($B88,'Vysledky-doplneni'!$C$7:$L$126,4,0) -> 0 | F88: =VLOOKUP($B88,'Vysledky-doplneni'!$C$7:$L$126,5,0) -> 0 | G88: =VLOOKUP($B88,'Vysledky-doplneni'!$C$7:$L$126,6,0) -> 0 | H88: =VLOOKUP($B88,'Vysledky-doplneni'!$C$7:$L$126,7,0) -> 0 | I88: =VLOOKUP($B88,'Vysledky-doplneni'!$C$7:$L$126,8,0) -> 0 | J88: =VLOOKUP($B88,'Vysledky-doplneni'!$C$7:$L$126,9,0) -> 0 | K88: =VLOOKUP($B88,'Vysledky-doplneni'!$C$7:$L$126,10,0) -> 0 | M88: 0 | O88: 0
A89: =IF(Vstup!C85<>"",Vstup!B85,"") ->  | B89: =IF(Vstup!C85<>"",Vstup!C85,"") ->  | C89: =IF(Vstup!C85<>"",Vstup!D85,"") ->  | D89: =VLOOKUP($B89,'Vysledky-doplneni'!$C$7:$L$126,3,0) -> 0 | E89: =VLOOKUP($B89,'Vysledky-doplneni'!$C$7:$L$126,4,0) -> 0 | F89: =VLOOKUP($B89,'Vysledky-doplneni'!$C$7:$L$126,5,0) -> 0 | G89: =VLOOKUP($B89,'Vysledky-doplneni'!$C$7:$L$126,6,0) -> 0 | H89: =VLOOKUP($B89,'Vysledky-doplneni'!$C$7:$L$126,7,0) -> 0 | I89: =VLOOKUP($B89,'Vysledky-doplneni'!$C$7:$L$126,8,0) -> 0 | J89: =VLOOKUP($B89,'Vysledky-doplneni'!$C$7:$L$126,9,0) -> 0 | K89: =VLOOKUP($B89,'Vysledky-doplneni'!$C$7:$L$126,10,0) -> 0 | M89: 0 | O89: 0
A90: =IF(Vstup!C86<>"",Vstup!B86,"") ->  | B90: =IF(Vstup!C86<>"",Vstup!C86,"") ->  | C90: =IF(Vstup!C86<>"",Vstup!D86,"") ->  | D90: =VLOOKUP($B90,'Vysledky-doplneni'!$C$7:$L$126,3,0) -> 0 | E90: =VLOOKUP($B90,'Vysledky-doplneni'!$C$7:$L$126,4,0) -> 0 | F90: =VLOOKUP($B90,'Vysledky-doplneni'!$C$7:$L$126,5,0) -> 0 | G90: =VLOOKUP($B90,'Vysledky-doplneni'!$C$7:$L$126,6,0) -> 0 | H90: =VLOOKUP($B90,'Vysledky-doplneni'!$C$7:$L$126,7,0) -> 0 | I90: =VLOOKUP($B90,'Vysledky-doplneni'!$C$7:$L$126,8,0) -> 0 | J90: =VLOOKUP($B90,'Vysledky-doplneni'!$C$7:$L$126,9,0) -> 0 | K90: =VLOOKUP($B90,'Vysledky-doplneni'!$C$7:$L$126,10,0) -> 0 | M90: 0 | O90: 0
A91: =IF(Vstup!C87<>"",Vstup!B87,"") ->  | B91: =IF(Vstup!C87<>"",Vstup!C87,"") ->  | C91: =IF(Vstup!C87<>"",Vstup!D87,"") ->  | D91: =VLOOKUP($B91,'Vysledky-doplneni'!$C$7:$L$126,3,0) -> 0 | E91: =VLOOKUP($B91,'Vysledky-doplneni'!$C$7:$L$126,4,0) -> 0 | F91: =VLOOKUP($B91,'Vysledky-doplneni'!$C$7:$L$126,5,0) -> 0 | G91: =VLOOKUP($B91,'Vysledky-doplneni'!$C$7:$L$126,6,0) -> 0 | H91: =VLOOKUP($B91,'Vysledky-doplneni'!$C$7:$L$126,7,0) -> 0 | I91: =VLOOKUP($B91,'Vysledky-doplneni'!$C$7:$L$126,8,0) -> 0 | J91: =VLOOKUP($B91,'Vysledky-doplneni'!$C$7:$L$126,9,0) -> 0 | K91: =VLOOKUP($B91,'Vysledky-doplneni'!$C$7:$L$126,10,0) -> 0 | M91: 0 | O91: 0
A92: =IF(Vstup!C88<>"",Vstup!B88,"") ->  | B92: =IF(Vstup!C88<>"",Vstup!C88,"") ->  | C92: =IF(Vstup!C88<>"",Vstup!D88,"") ->  | D92: =VLOOKUP($B92,'Vysledky-doplneni'!$C$7:$L$126,3,0) -> 0 | E92: =VLOOKUP($B92,'Vysledky-doplneni'!$C$7:$L$126,4,0) -> 0 | F92: =VLOOKUP($B92,'Vysledky-doplneni'!$C$7:$L$126,5,0) -> 0 | G92: =VLOOKUP($B92,'Vysledky-doplneni'!$C$7:$L$126,6,0) -> 0 | H92: =VLOOKUP($B92,'Vysledky-doplneni'!$C$7:$L$126,7,0) -> 0 | I92: =VLOOKUP($B92,'Vysledky-doplneni'!$C$7:$L$126,8,0) -> 0 | J92: =VLOOKUP($B92,'Vysledky-doplneni'!$C$7:$L$126,9,0) -> 0 | K92: =VLOOKUP($B92,'Vysledky-doplneni'!$C$7:$L$126,10,0) -> 0 | M92: 0 | O92: 0
A93: =IF(Vstup!C89<>"",Vstup!B89,"") ->  | B93: =IF(Vstup!C89<>"",Vstup!C89,"") ->  | C93: =IF(Vstup!C89<>"",Vstup!D89,"") ->  | D93: =VLOOKUP($B93,'Vysledky-doplneni'!$C$7:$L$126,3,0) -> 0 | E93: =VLOOKUP($B93,'Vysledky-doplneni'!$C$7:$L$126,4,0) -> 0 | F93: =VLOOKUP($B93,'Vysledky-doplneni'!$C$7:$L$126,5,0) -> 0 | G93: =VLOOKUP($B93,'Vysledky-doplneni'!$C$7:$L$126,6,0) -> 0 | H93: =VLOOKUP($B93,'Vysledky-doplneni'!$C$7:$L$126,7,0) -> 0 | I93: =VLOOKUP($B93,'Vysledky-doplneni'!$C$7:$L$126,8,0) -> 0 | J93: =VLOOKUP($B93,'Vysledky-doplneni'!$C$7:$L$126,9,0) -> 0 | K93: =VLOOKUP($B93,'Vysledky-doplneni'!$C$7:$L$126,10,0) -> 0 | M93: 0 | O93: 0
A94: =IF(Vstup!C90<>"",Vstup!B90,"") ->  | B94: =IF(Vstup!C90<>"",Vstup!C90,"") ->  | C94: =IF(Vstup!C90<>"",Vstup!D90,"") ->  | D94: =VLOOKUP($B94,'Vysledky-doplneni'!$C$7:$L$126,3,0) -> 0 | E94: =VLOOKUP($B94,'Vysledky-doplneni'!$C$7:$L$126,4,0) -> 0 | F94: =VLOOKUP($B94,'Vysledky-doplneni'!$C$7:$L$126,5,0) -> 0 | G94: =VLOOKUP($B94,'Vysledky-doplneni'!$C$7:$L$126,6,0) -> 0 | H94: =VLOOKUP($B94,'Vysledky-doplneni'!$C$7:$L$126,7,0) -> 0 | I94: =VLOOKUP($B94,'Vysledky-doplneni'!$C$7:$L$126,8,0) -> 0 | J94: =VLOOKUP($B94,'Vysledky-doplneni'!$C$7:$L$126,9,0) -> 0 | K94: =VLOOKUP($B94,'Vysledky-doplneni'!$C$7:$L$126,10,0) -> 0 | M94: 0 | O94: 0
A95: =IF(Vstup!C91<>"",Vstup!B91,"") ->  | B95: =IF(Vstup!C91<>"",Vstup!C91,"") ->  | C95: =IF(Vstup!C91<>"",Vstup!D91,"") ->  | D95: =VLOOKUP($B95,'Vysledky-doplneni'!$C$7:$L$126,3,0) -> 0 | E95: =VLOOKUP($B95,'Vysledky-doplneni'!$C$7:$L$126,4,0) -> 0 | F95: =VLOOKUP($B95,'Vysledky-doplneni'!$C$7:$L$126,5,0) -> 0 | G95: =VLOOKUP($B95,'Vysledky-doplneni'!$C$7:$L$126,6,0) -> 0 | H95: =VLOOKUP($B95,'Vysledky-doplneni'!$C$7:$L$126,7,0) -> 0 | I95: =VLOOKUP($B95,'Vysledky-doplneni'!$C$7:$L$126,8,0) -> 0 | J95: =VLOOKUP($B95,'Vysledky-doplneni'!$C$7:$L$126,9,0) -> 0 | K95: =VLOOKUP($B95,'Vysledky-doplneni'!$C$7:$L$126,10,0) -> 0 | M95: 0 | O95: 0
A96: =IF(Vstup!C92<>"",Vstup!B92,"") ->  | B96: =IF(Vstup!C92<>"",Vstup!C92,"") ->  | C96: =IF(Vstup!C92<>"",Vstup!D92,"") ->  | D96: =VLOOKUP($B96,'Vysledky-doplneni'!$C$7:$L$126,3,0) -> 0 | E96: =VLOOKUP($B96,'Vysledky-doplneni'!$C$7:$L$126,4,0) -> 0 | F96: =VLOOKUP($B96,'Vysledky-doplneni'!$C$7:$L$126,5,0) -> 0 | G96: =VLOOKUP($B96,'Vysledky-doplneni'!$C$7:$L$126,6,0) -> 0 | H96: =VLOOKUP($B96,'Vysledky-doplneni'!$C$7:$L$126,7,0) -> 0 | I96: =VLOOKUP($B96,'Vysledky-doplneni'!$C$7:$L$126,8,0) -> 0 | J96: =VLOOKUP($B96,'Vysledky-doplneni'!$C$7:$L$126,9,0) -> 0 | K96: =VLOOKUP($B96,'Vysledky-doplneni'!$C$7:$L$126,10,0) -> 0 | M96: 0 | O96: 0
A97: =IF(Vstup!C93<>"",Vstup!B93,"") ->  | B97: =IF(Vstup!C93<>"",Vstup!C93,"") ->  | C97: =IF(Vstup!C93<>"",Vstup!D93,"") ->  | D97: =VLOOKUP($B97,'Vysledky-doplneni'!$C$7:$L$126,3,0) -> 0 | E97: =VLOOKUP($B97,'Vysledky-doplneni'!$C$7:$L$126,4,0) -> 0 | F97: =VLOOKUP($B97,'Vysledky-doplneni'!$C$7:$L$126,5,0) -> 0 | G97: =VLOOKUP($B97,'Vysledky-doplneni'!$C$7:$L$126,6,0) -> 0 | H97: =VLOOKUP($B97,'Vysledky-doplneni'!$C$7:$L$126,7,0) -> 0 | I97: =VLOOKUP($B97,'Vysledky-doplneni'!$C$7:$L$126,8,0) -> 0 | J97: =VLOOKUP($B97,'Vysledky-doplneni'!$C$7:$L$126,9,0) -> 0 | K97: =VLOOKUP($B97,'Vysledky-doplneni'!$C$7:$L$126,10,0) -> 0 | M97: 0 | O97: 0
A98: =IF(Vstup!C94<>"",Vstup!B94,"") ->  | B98: =IF(Vstup!C94<>"",Vstup!C94,"") ->  | C98: =IF(Vstup!C94<>"",Vstup!D94,"") ->  | D98: =VLOOKUP($B98,'Vysledky-doplneni'!$C$7:$L$126,3,0) -> 0 | E98: =VLOOKUP($B98,'Vysledky-doplneni'!$C$7:$L$126,4,0) -> 0 | F98: =VLOOKUP($B98,'Vysledky-doplneni'!$C$7:$L$126,5,0) -> 0 | G98: =VLOOKUP($B98,'Vysledky-doplneni'!$C$7:$L$126,6,0) -> 0 | H98: =VLOOKUP($B98,'Vysledky-doplneni'!$C$7:$L$126,7,0) -> 0 | I98: =VLOOKUP($B98,'Vysledky-doplneni'!$C$7:$L$126,8,0) -> 0 | J98: =VLOOKUP($B98,'Vysledky-doplneni'!$C$7:$L$126,9,0) -> 0 | K98: =VLOOKUP($B98,'Vysledky-doplneni'!$C$7:$L$126,10,0) -> 0 | M98: 0 | O98: 0
A99: =IF(Vstup!C95<>"",Vstup!B95,"") ->  | B99: =IF(Vstup!C95<>"",Vstup!C95,"") ->  | C99: =IF(Vstup!C95<>"",Vstup!D95,"") ->  | D99: =VLOOKUP($B99,'Vysledky-doplneni'!$C$7:$L$126,3,0) -> 0 | E99: =VLOOKUP($B99,'Vysledky-doplneni'!$C$7:$L$126,4,0) -> 0 | F99: =VLOOKUP($B99,'Vysledky-doplneni'!$C$7:$L$126,5,0) -> 0 | G99: =VLOOKUP($B99,'Vysledky-doplneni'!$C$7:$L$126,6,0) -> 0 | H99: =VLOOKUP($B99,'Vysledky-doplneni'!$C$7:$L$126,7,0) -> 0 | I99: =VLOOKUP($B99,'Vysledky-doplneni'!$C$7:$L$126,8,0) -> 0 | J99: =VLOOKUP($B99,'Vysledky-doplneni'!$C$7:$L$126,9,0) -> 0 | K99: =VLOOKUP($B99,'Vysledky-doplneni'!$C$7:$L$126,10,0) -> 0 | M99: 0 | O99: 0
A100: =IF(Vstup!C96<>"",Vstup!B96,"") ->  | B100: =IF(Vstup!C96<>"",Vstup!C96,"") ->  | C100: =IF(Vstup!C96<>"",Vstup!D96,"") ->  | D100: =VLOOKUP($B100,'Vysledky-doplneni'!$C$7:$L$126,3,0) -> 0 | E100: =VLOOKUP($B100,'Vysledky-doplneni'!$C$7:$L$126,4,0) -> 0 | F100: =VLOOKUP($B100,'Vysledky-doplneni'!$C$7:$L$126,5,0) -> 0 | G100: =VLOOKUP($B100,'Vysledky-doplneni'!$C$7:$L$126,6,0) -> 0 | H100: =VLOOKUP($B100,'Vysledky-doplneni'!$C$7:$L$126,7,0) -> 0 | I100: =VLOOKUP($B100,'Vysledky-doplneni'!$C$7:$L$126,8,0) -> 0 | J100: =VLOOKUP($B100,'Vysledky-doplneni'!$C$7:$L$126,9,0) -> 0 | K100: =VLOOKUP($B100,'Vysledky-doplneni'!$C$7:$L$126,10,0) -> 0 | M100: 0 | O100: 0
A101: =IF(Vstup!C97<>"",Vstup!B97,"") ->  | B101: =IF(Vstup!C97<>"",Vstup!C97,"") ->  | C101: =IF(Vstup!C97<>"",Vstup!D97,"") ->  | D101: =VLOOKUP($B101,'Vysledky-doplneni'!$C$7:$L$126,3,0) -> 0 | E101: =VLOOKUP($B101,'Vysledky-doplneni'!$C$7:$L$126,4,0) -> 0 | F101: =VLOOKUP($B101,'Vysledky-doplneni'!$C$7:$L$126,5,0) -> 0 | G101: =VLOOKUP($B101,'Vysledky-doplneni'!$C$7:$L$126,6,0) -> 0 | H101: =VLOOKUP($B101,'Vysledky-doplneni'!$C$7:$L$126,7,0) -> 0 | I101: =VLOOKUP($B101,'Vysledky-doplneni'!$C$7:$L$126,8,0) -> 0 | J101: =VLOOKUP($B101,'Vysledky-doplneni'!$C$7:$L$126,9,0) -> 0 | K101: =VLOOKUP($B101,'Vysledky-doplneni'!$C$7:$L$126,10,0) -> 0 | M101: 0 | O101: 0
A102: =IF(Vstup!C98<>"",Vstup!B98,"") ->  | B102: =IF(Vstup!C98<>"",Vstup!C98,"") ->  | C102: =IF(Vstup!C98<>"",Vstup!D98,"") ->  | D102: =VLOOKUP($B102,'Vysledky-doplneni'!$C$7:$L$126,3,0) -> 0 | E102: =VLOOKUP($B102,'Vysledky-doplneni'!$C$7:$L$126,4,0) -> 0 | F102: =VLOOKUP($B102,'Vysledky-doplneni'!$C$7:$L$126,5,0) -> 0 | G102: =VLOOKUP($B102,'Vysledky-doplneni'!$C$7:$L$126,6,0) -> 0 | H102: =VLOOKUP($B102,'Vysledky-doplneni'!$C$7:$L$126,7,0) -> 0 | I102: =VLOOKUP($B102,'Vysledky-doplneni'!$C$7:$L$126,8,0) -> 0 | J102: =VLOOKUP($B102,'Vysledky-doplneni'!$C$7:$L$126,9,0) -> 0 | K102: =VLOOKUP($B102,'Vysledky-doplneni'!$C$7:$L$126,10,0) -> 0 | M102: 0 | O102: 0
A103: =IF(Vstup!C99<>"",Vstup!B99,"") ->  | B103: =IF(Vstup!C99<>"",Vstup!C99,"") ->  | C103: =IF(Vstup!C99<>"",Vstup!D99,"") ->  | D103: =VLOOKUP($B103,'Vysledky-doplneni'!$C$7:$L$126,3,0) -> 0 | E103: =VLOOKUP($B103,'Vysledky-doplneni'!$C$7:$L$126,4,0) -> 0 | F103: =VLOOKUP($B103,'Vysledky-doplneni'!$C$7:$L$126,5,0) -> 0 | G103: =VLOOKUP($B103,'Vysledky-doplneni'!$C$7:$L$126,6,0) -> 0 | H103: =VLOOKUP($B103,'Vysledky-doplneni'!$C$7:$L$126,7,0) -> 0 | I103: =VLOOKUP($B103,'Vysledky-doplneni'!$C$7:$L$126,8,0) -> 0 | J103: =VLOOKUP($B103,'Vysledky-doplneni'!$C$7:$L$126,9,0) -> 0 | K103: =VLOOKUP($B103,'Vysledky-doplneni'!$C$7:$L$126,10,0) -> 0 | M103: 0 | O103: 0
A104: =IF(Vstup!C100<>"",Vstup!B100,"") ->  | B104: =IF(Vstup!C100<>"",Vstup!C100,"") ->  | C104: =IF(Vstup!C100<>"",Vstup!D100,"") ->  | D104: =VLOOKUP($B104,'Vysledky-doplneni'!$C$7:$L$126,3,0) -> 0 | E104: =VLOOKUP($B104,'Vysledky-doplneni'!$C$7:$L$126,4,0) -> 0 | F104: =VLOOKUP($B104,'Vysledky-doplneni'!$C$7:$L$126,5,0) -> 0 | G104: =VLOOKUP($B104,'Vysledky-doplneni'!$C$7:$L$126,6,0) -> 0 | H104: =VLOOKUP($B104,'Vysledky-doplneni'!$C$7:$L$126,7,0) -> 0 | I104: =VLOOKUP($B104,'Vysledky-doplneni'!$C$7:$L$126,8,0) -> 0 | J104: =VLOOKUP($B104,'Vysledky-doplneni'!$C$7:$L$126,9,0) -> 0 | K104: =VLOOKUP($B104,'Vysledky-doplneni'!$C$7:$L$126,10,0) -> 0 | M104: 0 | O104: 0
A105: =IF(Vstup!C101<>"",Vstup!B101,"") ->  | B105: =IF(Vstup!C101<>"",Vstup!C101,"") ->  | C105: =IF(Vstup!C101<>"",Vstup!D101,"") ->  | D105: =VLOOKUP($B105,'Vysledky-doplneni'!$C$7:$L$126,3,0) -> 0 | E105: =VLOOKUP($B105,'Vysledky-doplneni'!$C$7:$L$126,4,0) -> 0 | F105: =VLOOKUP($B105,'Vysledky-doplneni'!$C$7:$L$126,5,0) -> 0 | G105: =VLOOKUP($B105,'Vysledky-doplneni'!$C$7:$L$126,6,0) -> 0 | H105: =VLOOKUP($B105,'Vysledky-doplneni'!$C$7:$L$126,7,0) -> 0 | I105: =VLOOKUP($B105,'Vysledky-doplneni'!$C$7:$L$126,8,0) -> 0 | J105: =VLOOKUP($B105,'Vysledky-doplneni'!$C$7:$L$126,9,0) -> 0 | K105: =VLOOKUP($B105,'Vysledky-doplneni'!$C$7:$L$126,10,0) -> 0 | M105: 0 | O105: 0
A106: =IF(Vstup!C102<>"",Vstup!B102,"") ->  | B106: =IF(Vstup!C102<>"",Vstup!C102,"") ->  | C106: =IF(Vstup!C102<>"",Vstup!D102,"") ->  | D106: =VLOOKUP($B106,'Vysledky-doplneni'!$C$7:$L$126,3,0) -> 0 | E106: =VLOOKUP($B106,'Vysledky-doplneni'!$C$7:$L$126,4,0) -> 0 | F106: =VLOOKUP($B106,'Vysledky-doplneni'!$C$7:$L$126,5,0) -> 0 | G106: =VLOOKUP($B106,'Vysledky-doplneni'!$C$7:$L$126,6,0) -> 0 | H106: =VLOOKUP($B106,'Vysledky-doplneni'!$C$7:$L$126,7,0) -> 0 | I106: =VLOOKUP($B106,'Vysledky-doplneni'!$C$7:$L$126,8,0) -> 0 | J106: =VLOOKUP($B106,'Vysledky-doplneni'!$C$7:$L$126,9,0) -> 0 | K106: =VLOOKUP($B106,'Vysledky-doplneni'!$C$7:$L$126,10,0) -> 0 | M106: 0 | O106: 0
A107: =IF(Vstup!C103<>"",Vstup!B103,"") ->  | B107: =IF(Vstup!C103<>"",Vstup!C103,"") ->  | C107: =IF(Vstup!C103<>"",Vstup!D103,"") ->  | D107: =VLOOKUP($B107,'Vysledky-doplneni'!$C$7:$L$126,3,0) -> 0 | E107: =VLOOKUP($B107,'Vysledky-doplneni'!$C$7:$L$126,4,0) -> 0 | F107: =VLOOKUP($B107,'Vysledky-doplneni'!$C$7:$L$126,5,0) -> 0 | G107: =VLOOKUP($B107,'Vysledky-doplneni'!$C$7:$L$126,6,0) -> 0 | H107: =VLOOKUP($B107,'Vysledky-doplneni'!$C$7:$L$126,7,0) -> 0 | I107: =VLOOKUP($B107,'Vysledky-doplneni'!$C$7:$L$126,8,0) -> 0 | J107: =VLOOKUP($B107,'Vysledky-doplneni'!$C$7:$L$126,9,0) -> 0 | K107: =VLOOKUP($B107,'Vysledky-doplneni'!$C$7:$L$126,10,0) -> 0 | M107: 0 | O107: 0
A108: =IF(Vstup!C104<>"",Vstup!B104,"") ->  | B108: =IF(Vstup!C104<>"",Vstup!C104,"") ->  | C108: =IF(Vstup!C104<>"",Vstup!D104,"") ->  | D108: =VLOOKUP($B108,'Vysledky-doplneni'!$C$7:$L$126,3,0) -> 0 | E108: =VLOOKUP($B108,'Vysledky-doplneni'!$C$7:$L$126,4,0) -> 0 | F108: =VLOOKUP($B108,'Vysledky-doplneni'!$C$7:$L$126,5,0) -> 0 | G108: =VLOOKUP($B108,'Vysledky-doplneni'!$C$7:$L$126,6,0) -> 0 | H108: =VLOOKUP($B108,'Vysledky-doplneni'!$C$7:$L$126,7,0) -> 0 | I108: =VLOOKUP($B108,'Vysledky-doplneni'!$C$7:$L$126,8,0) -> 0 | J108: =VLOOKUP($B108,'Vysledky-doplneni'!$C$7:$L$126,9,0) -> 0 | K108: =VLOOKUP($B108,'Vysledky-doplneni'!$C$7:$L$126,10,0) -> 0 | M108: 0 | O108: 0
A109: =IF(Vstup!C105<>"",Vstup!B105,"") ->  | B109: =IF(Vstup!C105<>"",Vstup!C105,"") ->  | C109: =IF(Vstup!C105<>"",Vstup!D105,"") ->  | D109: =VLOOKUP($B109,'Vysledky-doplneni'!$C$7:$L$126,3,0) -> 0 | E109: =VLOOKUP($B109,'Vysledky-doplneni'!$C$7:$L$126,4,0) -> 0 | F109: =VLOOKUP($B109,'Vysledky-doplneni'!$C$7:$L$126,5,0) -> 0 | G109: =VLOOKUP($B109,'Vysledky-doplneni'!$C$7:$L$126,6,0) -> 0 | H109: =VLOOKUP($B109,'Vysledky-doplneni'!$C$7:$L$126,7,0) -> 0 | I109: =VLOOKUP($B109,'Vysledky-doplneni'!$C$7:$L$126,8,0) -> 0 | J109: =VLOOKUP($B109,'Vysledky-doplneni'!$C$7:$L$126,9,0) -> 0 | K109: =VLOOKUP($B109,'Vysledky-doplneni'!$C$7:$L$126,10,0) -> 0 | M109: 0 | O109: 0
A110: =IF(Vstup!C106<>"",Vstup!B106,"") ->  | B110: =IF(Vstup!C106<>"",Vstup!C106,"") ->  | C110: =IF(Vstup!C106<>"",Vstup!D106,"") ->  | D110: =VLOOKUP($B110,'Vysledky-doplneni'!$C$7:$L$126,3,0) -> 0 | E110: =VLOOKUP($B110,'Vysledky-doplneni'!$C$7:$L$126,4,0) -> 0 | F110: =VLOOKUP($B110,'Vysledky-doplneni'!$C$7:$L$126,5,0) -> 0 | G110: =VLOOKUP($B110,'Vysledky-doplneni'!$C$7:$L$126,6,0) -> 0 | H110: =VLOOKUP($B110,'Vysledky-doplneni'!$C$7:$L$126,7,0) -> 0 | I110: =VLOOKUP($B110,'Vysledky-doplneni'!$C$7:$L$126,8,0) -> 0 | J110: =VLOOKUP($B110,'Vysledky-doplneni'!$C$7:$L$126,9,0) -> 0 | K110: =VLOOKUP($B110,'Vysledky-doplneni'!$C$7:$L$126,10,0) -> 0 | M110: 0 | O110: 0
A111: =IF(Vstup!C107<>"",Vstup!B107,"") ->  | B111: =IF(Vstup!C107<>"",Vstup!C107,"") ->  | C111: =IF(Vstup!C107<>"",Vstup!D107,"") ->  | D111: =VLOOKUP($B111,'Vysledky-doplneni'!$C$7:$L$126,3,0) -> 0 | E111: =VLOOKUP($B111,'Vysledky-doplneni'!$C$7:$L$126,4,0) -> 0 | F111: =VLOOKUP($B111,'Vysledky-doplneni'!$C$7:$L$126,5,0) -> 0 | G111: =VLOOKUP($B111,'Vysledky-doplneni'!$C$7:$L$126,6,0) -> 0 | H111: =VLOOKUP($B111,'Vysledky-doplneni'!$C$7:$L$126,7,0) -> 0 | I111: =VLOOKUP($B111,'Vysledky-doplneni'!$C$7:$L$126,8,0) -> 0 | J111: =VLOOKUP($B111,'Vysledky-doplneni'!$C$7:$L$126,9,0) -> 0 | K111: =VLOOKUP($B111,'Vysledky-doplneni'!$C$7:$L$126,10,0) -> 0 | M111: 0 | O111: 0
A112: =IF(Vstup!C108<>"",Vstup!B108,"") ->  | B112: =IF(Vstup!C108<>"",Vstup!C108,"") ->  | C112: =IF(Vstup!C108<>"",Vstup!D108,"") ->  | D112: =VLOOKUP($B112,'Vysledky-doplneni'!$C$7:$L$126,3,0) -> 0 | E112: =VLOOKUP($B112,'Vysledky-doplneni'!$C$7:$L$126,4,0) -> 0 | F112: =VLOOKUP($B112,'Vysledky-doplneni'!$C$7:$L$126,5,0) -> 0 | G112: =VLOOKUP($B112,'Vysledky-doplneni'!$C$7:$L$126,6,0) -> 0 | H112: =VLOOKUP($B112,'Vysledky-doplneni'!$C$7:$L$126,7,0) -> 0 | I112: =VLOOKUP($B112,'Vysledky-doplneni'!$C$7:$L$126,8,0) -> 0 | J112: =VLOOKUP($B112,'Vysledky-doplneni'!$C$7:$L$126,9,0) -> 0 | K112: =VLOOKUP($B112,'Vysledky-doplneni'!$C$7:$L$126,10,0) -> 0 | M112: 0 | O112: 0
A113: =IF(Vstup!C109<>"",Vstup!B109,"") ->  | B113: =IF(Vstup!C109<>"",Vstup!C109,"") ->  | C113: =IF(Vstup!C109<>"",Vstup!D109,"") ->  | D113: =VLOOKUP($B113,'Vysledky-doplneni'!$C$7:$L$126,3,0) -> 0 | E113: =VLOOKUP($B113,'Vysledky-doplneni'!$C$7:$L$126,4,0) -> 0 | F113: =VLOOKUP($B113,'Vysledky-doplneni'!$C$7:$L$126,5,0) -> 0 | G113: =VLOOKUP($B113,'Vysledky-doplneni'!$C$7:$L$126,6,0) -> 0 | H113: =VLOOKUP($B113,'Vysledky-doplneni'!$C$7:$L$126,7,0) -> 0 | I113: =VLOOKUP($B113,'Vysledky-doplneni'!$C$7:$L$126,8,0) -> 0 | J113: =VLOOKUP($B113,'Vysledky-doplneni'!$C$7:$L$126,9,0) -> 0 | K113: =VLOOKUP($B113,'Vysledky-doplneni'!$C$7:$L$126,10,0) -> 0 | M113: 0 | O113: 0
A114: =IF(Vstup!C110<>"",Vstup!B110,"") ->  | B114: =IF(Vstup!C110<>"",Vstup!C110,"") ->  | C114: =IF(Vstup!C110<>"",Vstup!D110,"") ->  | D114: =VLOOKUP($B114,'Vysledky-doplneni'!$C$7:$L$126,3,0) -> 0 | E114: =VLOOKUP($B114,'Vysledky-doplneni'!$C$7:$L$126,4,0) -> 0 | F114: =VLOOKUP($B114,'Vysledky-doplneni'!$C$7:$L$126,5,0) -> 0 | G114: =VLOOKUP($B114,'Vysledky-doplneni'!$C$7:$L$126,6,0) -> 0 | H114: =VLOOKUP($B114,'Vysledky-doplneni'!$C$7:$L$126,7,0) -> 0 | I114: =VLOOKUP($B114,'Vysledky-doplneni'!$C$7:$L$126,8,0) -> 0 | J114: =VLOOKUP($B114,'Vysledky-doplneni'!$C$7:$L$126,9,0) -> 0 | K114: =VLOOKUP($B114,'Vysledky-doplneni'!$C$7:$L$126,10,0) -> 0 | M114: 0 | O114: 0
A115: =IF(Vstup!C111<>"",Vstup!B111,"") ->  | B115: =IF(Vstup!C111<>"",Vstup!C111,"") ->  | C115: =IF(Vstup!C111<>"",Vstup!D111,"") ->  | D115: =VLOOKUP($B115,'Vysledky-doplneni'!$C$7:$L$126,3,0) -> 0 | E115: =VLOOKUP($B115,'Vysledky-doplneni'!$C$7:$L$126,4,0) -> 0 | F115: =VLOOKUP($B115,'Vysledky-doplneni'!$C$7:$L$126,5,0) -> 0 | G115: =VLOOKUP($B115,'Vysledky-doplneni'!$C$7:$L$126,6,0) -> 0 | H115: =VLOOKUP($B115,'Vysledky-doplneni'!$C$7:$L$126,7,0) -> 0 | I115: =VLOOKUP($B115,'Vysledky-doplneni'!$C$7:$L$126,8,0) -> 0 | J115: =VLOOKUP($B115,'Vysledky-doplneni'!$C$7:$L$126,9,0) -> 0 | K115: =VLOOKUP($B115,'Vysledky-doplneni'!$C$7:$L$126,10,0) -> 0 | M115: 0 | O115: 0
A116: =IF(Vstup!C112<>"",Vstup!B112,"") ->  | B116: =IF(Vstup!C112<>"",Vstup!C112,"") ->  | C116: =IF(Vstup!C112<>"",Vstup!D112,"") ->  | D116: =VLOOKUP($B116,'Vysledky-doplneni'!$C$7:$L$126,3,0) -> 0 | E116: =VLOOKUP($B116,'Vysledky-doplneni'!$C$7:$L$126,4,0) -> 0 | F116: =VLOOKUP($B116,'Vysledky-doplneni'!$C$7:$L$126,5,0) -> 0 | G116: =VLOOKUP($B116,'Vysledky-doplneni'!$C$7:$L$126,6,0) -> 0 | H116: =VLOOKUP($B116,'Vysledky-doplneni'!$C$7:$L$126,7,0) -> 0 | I116: =VLOOKUP($B116,'Vysledky-doplneni'!$C$7:$L$126,8,0) -> 0 | J116: =VLOOKUP($B116,'Vysledky-doplneni'!$C$7:$L$126,9,0) -> 0 | K116: =VLOOKUP($B116,'Vysledky-doplneni'!$C$7:$L$126,10,0) -> 0 | M116: 0 | O116: 0
A117: =IF(Vstup!C113<>"",Vstup!B113,"") ->  | B117: =IF(Vstup!C113<>"",Vstup!C113,"") ->  | C117: =IF(Vstup!C113<>"",Vstup!D113,"") ->  | D117: =VLOOKUP($B117,'Vysledky-doplneni'!$C$7:$L$126,3,0) -> 0 | E117: =VLOOKUP($B117,'Vysledky-doplneni'!$C$7:$L$126,4,0) -> 0 | F117: =VLOOKUP($B117,'Vysledky-doplneni'!$C$7:$L$126,5,0) -> 0 | G117: =VLOOKUP($B117,'Vysledky-doplneni'!$C$7:$L$126,6,0) -> 0 | H117: =VLOOKUP($B117,'Vysledky-doplneni'!$C$7:$L$126,7,0) -> 0 | I117: =VLOOKUP($B117,'Vysledky-doplneni'!$C$7:$L$126,8,0) -> 0 | J117: =VLOOKUP($B117,'Vysledky-doplneni'!$C$7:$L$126,9,0) -> 0 | K117: =VLOOKUP($B117,'Vysledky-doplneni'!$C$7:$L$126,10,0) -> 0 | M117: 0 | O117: 0
A118: =IF(Vstup!C114<>"",Vstup!B114,"") ->  | B118: =IF(Vstup!C114<>"",Vstup!C114,"") ->  | C118: =IF(Vstup!C114<>"",Vstup!D114,"") ->  | D118: =VLOOKUP($B118,'Vysledky-doplneni'!$C$7:$L$126,3,0) -> 0 | E118: =VLOOKUP($B118,'Vysledky-doplneni'!$C$7:$L$126,4,0) -> 0 | F118: =VLOOKUP($B118,'Vysledky-doplneni'!$C$7:$L$126,5,0) -> 0 | G118: =VLOOKUP($B118,'Vysledky-doplneni'!$C$7:$L$126,6,0) -> 0 | H118: =VLOOKUP($B118,'Vysledky-doplneni'!$C$7:$L$126,7,0) -> 0 | I118: =VLOOKUP($B118,'Vysledky-doplneni'!$C$7:$L$126,8,0) -> 0 | J118: =VLOOKUP($B118,'Vysledky-doplneni'!$C$7:$L$126,9,0) -> 0 | K118: =VLOOKUP($B118,'Vysledky-doplneni'!$C$7:$L$126,10,0) -> 0 | M118: 0 | O118: 0
A119: =IF(Vstup!C115<>"",Vstup!B115,"") ->  | B119: =IF(Vstup!C115<>"",Vstup!C115,"") ->  | C119: =IF(Vstup!C115<>"",Vstup!D115,"") ->  | D119: =VLOOKUP($B119,'Vysledky-doplneni'!$C$7:$L$126,3,0) -> 0 | E119: =VLOOKUP($B119,'Vysledky-doplneni'!$C$7:$L$126,4,0) -> 0 | F119: =VLOOKUP($B119,'Vysledky-doplneni'!$C$7:$L$126,5,0) -> 0 | G119: =VLOOKUP($B119,'Vysledky-doplneni'!$C$7:$L$126,6,0) -> 0 | H119: =VLOOKUP($B119,'Vysledky-doplneni'!$C$7:$L$126,7,0) -> 0 | I119: =VLOOKUP($B119,'Vysledky-doplneni'!$C$7:$L$126,8,0) -> 0 | J119: =VLOOKUP($B119,'Vysledky-doplneni'!$C$7:$L$126,9,0) -> 0 | K119: =VLOOKUP($B119,'Vysledky-doplneni'!$C$7:$L$126,10,0) -> 0 | M119: 0 | O119: 0
A120: =IF(Vstup!C116<>"",Vstup!B116,"") ->  | B120: =IF(Vstup!C116<>"",Vstup!C116,"") ->  | C120: =IF(Vstup!C116<>"",Vstup!D116,"") ->  | D120: =VLOOKUP($B120,'Vysledky-doplneni'!$C$7:$L$126,3,0) -> 0 | E120: =VLOOKUP($B120,'Vysledky-doplneni'!$C$7:$L$126,4,0) -> 0 | F120: =VLOOKUP($B120,'Vysledky-doplneni'!$C$7:$L$126,5,0) -> 0 | G120: =VLOOKUP($B120,'Vysledky-doplneni'!$C$7:$L$126,6,0) -> 0 | H120: =VLOOKUP($B120,'Vysledky-doplneni'!$C$7:$L$126,7,0) -> 0 | I120: =VLOOKUP($B120,'Vysledky-doplneni'!$C$7:$L$126,8,0) -> 0 | J120: =VLOOKUP($B120,'Vysledky-doplneni'!$C$7:$L$126,9,0) -> 0 | K120: =VLOOKUP($B120,'Vysledky-doplneni'!$C$7:$L$126,10,0) -> 0 | M120: 0 | O120: 0
A121: =IF(Vstup!C117<>"",Vstup!B117,"") ->  | B121: =IF(Vstup!C117<>"",Vstup!C117,"") ->  | C121: =IF(Vstup!C117<>"",Vstup!D117,"") ->  | D121: =VLOOKUP($B121,'Vysledky-doplneni'!$C$7:$L$126,3,0) -> 0 | E121: =VLOOKUP($B121,'Vysledky-doplneni'!$C$7:$L$126,4,0) -> 0 | F121: =VLOOKUP($B121,'Vysledky-doplneni'!$C$7:$L$126,5,0) -> 0 | G121: =VLOOKUP($B121,'Vysledky-doplneni'!$C$7:$L$126,6,0) -> 0 | H121: =VLOOKUP($B121,'Vysledky-doplneni'!$C$7:$L$126,7,0) -> 0 | I121: =VLOOKUP($B121,'Vysledky-doplneni'!$C$7:$L$126,8,0) -> 0 | J121: =VLOOKUP($B121,'Vysledky-doplneni'!$C$7:$L$126,9,0) -> 0 | K121: =VLOOKUP($B121,'Vysledky-doplneni'!$C$7:$L$126,10,0) -> 0 | M121: 0 | O121: 0
A122: =IF(Vstup!C118<>"",Vstup!B118,"") ->  | B122: =IF(Vstup!C118<>"",Vstup!C118,"") ->  | C122: =IF(Vstup!C118<>"",Vstup!D118,"") ->  | D122: =VLOOKUP($B122,'Vysledky-doplneni'!$C$7:$L$126,3,0) -> 0 | E122: =VLOOKUP($B122,'Vysledky-doplneni'!$C$7:$L$126,4,0) -> 0 | F122: =VLOOKUP($B122,'Vysledky-doplneni'!$C$7:$L$126,5,0) -> 0 | G122: =VLOOKUP($B122,'Vysledky-doplneni'!$C$7:$L$126,6,0) -> 0 | H122: =VLOOKUP($B122,'Vysledky-doplneni'!$C$7:$L$126,7,0) -> 0 | I122: =VLOOKUP($B122,'Vysledky-doplneni'!$C$7:$L$126,8,0) -> 0 | J122: =VLOOKUP($B122,'Vysledky-doplneni'!$C$7:$L$126,9,0) -> 0 | K122: =VLOOKUP($B122,'Vysledky-doplneni'!$C$7:$L$126,10,0) -> 0 | M122: 0 | O122: 0
A123: =IF(Vstup!C119<>"",Vstup!B119,"") ->  | B123: =IF(Vstup!C119<>"",Vstup!C119,"") ->  | C123: =IF(Vstup!C119<>"",Vstup!D119,"") ->  | D123: =VLOOKUP($B123,'Vysledky-doplneni'!$C$7:$L$126,3,0) -> 0 | E123: =VLOOKUP($B123,'Vysledky-doplneni'!$C$7:$L$126,4,0) -> 0 | F123: =VLOOKUP($B123,'Vysledky-doplneni'!$C$7:$L$126,5,0) -> 0 | G123: =VLOOKUP($B123,'Vysledky-doplneni'!$C$7:$L$126,6,0) -> 0 | H123: =VLOOKUP($B123,'Vysledky-doplneni'!$C$7:$L$126,7,0) -> 0 | I123: =VLOOKUP($B123,'Vysledky-doplneni'!$C$7:$L$126,8,0) -> 0 | J123: =VLOOKUP($B123,'Vysledky-doplneni'!$C$7:$L$126,9,0) -> 0 | K123: =VLOOKUP($B123,'Vysledky-doplneni'!$C$7:$L$126,10,0) -> 0 | M123: 0 | O123: 0
A124: =IF(Vstup!C120<>"",Vstup!B120,"") ->  | B124: =IF(Vstup!C120<>"",Vstup!C120,"") ->  | C124: =IF(Vstup!C120<>"",Vstup!D120,"") ->  | D124: =VLOOKUP($B124,'Vysledky-doplneni'!$C$7:$L$126,3,0) -> 0 | E124: =VLOOKUP($B124,'Vysledky-doplneni'!$C$7:$L$126,4,0) -> 0 | F124: =VLOOKUP($B124,'Vysledky-doplneni'!$C$7:$L$126,5,0) -> 0 | G124: =VLOOKUP($B124,'Vysledky-doplneni'!$C$7:$L$126,6,0) -> 0 | H124: =VLOOKUP($B124,'Vysledky-doplneni'!$C$7:$L$126,7,0) -> 0 | I124: =VLOOKUP($B124,'Vysledky-doplneni'!$C$7:$L$126,8,0) -> 0 | J124: =VLOOKUP($B124,'Vysledky-doplneni'!$C$7:$L$126,9,0) -> 0 | K124: =VLOOKUP($B124,'Vysledky-doplneni'!$C$7:$L$126,10,0) -> 0 | M124: 0 | O124: 0
A125: =IF(Vstup!C121<>"",Vstup!B121,"") ->  | B125: =IF(Vstup!C121<>"",Vstup!C121,"") ->  | C125: =IF(Vstup!C121<>"",Vstup!D121,"") ->  | D125: =VLOOKUP($B125,'Vysledky-doplneni'!$C$7:$L$126,3,0) -> 0 | E125: =VLOOKUP($B125,'Vysledky-doplneni'!$C$7:$L$126,4,0) -> 0 | F125: =VLOOKUP($B125,'Vysledky-doplneni'!$C$7:$L$126,5,0) -> 0 | G125: =VLOOKUP($B125,'Vysledky-doplneni'!$C$7:$L$126,6,0) -> 0 | H125: =VLOOKUP($B125,'Vysledky-doplneni'!$C$7:$L$126,7,0) -> 0 | I125: =VLOOKUP($B125,'Vysledky-doplneni'!$C$7:$L$126,8,0) -> 0 | J125: =VLOOKUP($B125,'Vysledky-doplneni'!$C$7:$L$126,9,0) -> 0 | K125: =VLOOKUP($B125,'Vysledky-doplneni'!$C$7:$L$126,10,0) -> 0 | M125: 0 | O125: 0
A126: =IF(Vstup!C122<>"",Vstup!B122,"") ->  | B126: =IF(Vstup!C122<>"",Vstup!C122,"") ->  | C126: =IF(Vstup!C122<>"",Vstup!D122,"") ->  | D126: =VLOOKUP($B126,'Vysledky-doplneni'!$C$7:$L$126,3,0) -> 0 | E126: =VLOOKUP($B126,'Vysledky-doplneni'!$C$7:$L$126,4,0) -> 0 | F126: =VLOOKUP($B126,'Vysledky-doplneni'!$C$7:$L$126,5,0) -> 0 | G126: =VLOOKUP($B126,'Vysledky-doplneni'!$C$7:$L$126,6,0) -> 0 | H126: =VLOOKUP($B126,'Vysledky-doplneni'!$C$7:$L$126,7,0) -> 0 | I126: =VLOOKUP($B126,'Vysledky-doplneni'!$C$7:$L$126,8,0) -> 0 | J126: =VLOOKUP($B126,'Vysledky-doplneni'!$C$7:$L$126,9,0) -> 0 | K126: =VLOOKUP($B126,'Vysledky-doplneni'!$C$7:$L$126,10,0) -> 0 | M126: 0 | O126: 0
A127: =IF(Vstup!C123<>"",Vstup!B123,"") ->  | B127: =IF(Vstup!C123<>"",Vstup!C123,"") ->  | C127: =IF(Vstup!C123<>"",Vstup!D123,"") ->  | D127: =VLOOKUP($B127,'Vysledky-doplneni'!$C$7:$L$126,3,0) -> 0 | E127: =VLOOKUP($B127,'Vysledky-doplneni'!$C$7:$L$126,4,0) -> 0 | F127: =VLOOKUP($B127,'Vysledky-doplneni'!$C$7:$L$126,5,0) -> 0 | G127: =VLOOKUP($B127,'Vysledky-doplneni'!$C$7:$L$126,6,0) -> 0 | H127: =VLOOKUP($B127,'Vysledky-doplneni'!$C$7:$L$126,7,0) -> 0 | I127: =VLOOKUP($B127,'Vysledky-doplneni'!$C$7:$L$126,8,0) -> 0 | J127: =VLOOKUP($B127,'Vysledky-doplneni'!$C$7:$L$126,9,0) -> 0 | K127: =VLOOKUP($B127,'Vysledky-doplneni'!$C$7:$L$126,10,0) -> 0 | M127: 0 | O127: 0
A128: =IF(Vstup!C124<>"",Vstup!B124,"") ->  | B128: =IF(Vstup!C124<>"",Vstup!C124,"") ->  | C128: =IF(Vstup!C124<>"",Vstup!D124,"") ->  | D128: =VLOOKUP($B128,'Vysledky-doplneni'!$C$7:$L$126,3,0) -> 0 | E128: =VLOOKUP($B128,'Vysledky-doplneni'!$C$7:$L$126,4,0) -> 0 | F128: =VLOOKUP($B128,'Vysledky-doplneni'!$C$7:$L$126,5,0) -> 0 | G128: =VLOOKUP($B128,'Vysledky-doplneni'!$C$7:$L$126,6,0) -> 0 | H128: =VLOOKUP($B128,'Vysledky-doplneni'!$C$7:$L$126,7,0) -> 0 | I128: =VLOOKUP($B128,'Vysledky-doplneni'!$C$7:$L$126,8,0) -> 0 | J128: =VLOOKUP($B128,'Vysledky-doplneni'!$C$7:$L$126,9,0) -> 0 | K128: =VLOOKUP($B128,'Vysledky-doplneni'!$C$7:$L$126,10,0) -> 0 | M128: 0 | O128: 0
A129: =IF(Vstup!C125<>"",Vstup!B125,"") ->  | B129: =IF(Vstup!C125<>"",Vstup!C125,"") ->  | C129: =IF(Vstup!C125<>"",Vstup!D125,"") ->  | D129: =VLOOKUP($B129,'Vysledky-doplneni'!$C$7:$L$126,3,0) -> 0 | E129: =VLOOKUP($B129,'Vysledky-doplneni'!$C$7:$L$126,4,0) -> 0 | F129: =VLOOKUP($B129,'Vysledky-doplneni'!$C$7:$L$126,5,0) -> 0 | G129: =VLOOKUP($B129,'Vysledky-doplneni'!$C$7:$L$126,6,0) -> 0 | H129: =VLOOKUP($B129,'Vysledky-doplneni'!$C$7:$L$126,7,0) -> 0 | I129: =VLOOKUP($B129,'Vysledky-doplneni'!$C$7:$L$126,8,0) -> 0 | J129: =VLOOKUP($B129,'Vysledky-doplneni'!$C$7:$L$126,9,0) -> 0 | K129: =VLOOKUP($B129,'Vysledky-doplneni'!$C$7:$L$126,10,0) -> 0 | M129: 0 | O129: 0
A130: =IF(Vstup!C126<>"",Vstup!B126,"") ->  | B130: =IF(Vstup!C126<>"",Vstup!C126,"") ->  | C130: =IF(Vstup!C126<>"",Vstup!D126,"") ->  | D130: =VLOOKUP($B130,'Vysledky-doplneni'!$C$7:$L$126,3,0) -> 0 | E130: =VLOOKUP($B130,'Vysledky-doplneni'!$C$7:$L$126,4,0) -> 0 | F130: =VLOOKUP($B130,'Vysledky-doplneni'!$C$7:$L$126,5,0) -> 0 | G130: =VLOOKUP($B130,'Vysledky-doplneni'!$C$7:$L$126,6,0) -> 0 | H130: =VLOOKUP($B130,'Vysledky-doplneni'!$C$7:$L$126,7,0) -> 0 | I130: =VLOOKUP($B130,'Vysledky-doplneni'!$C$7:$L$126,8,0) -> 0 | J130: =VLOOKUP($B130,'Vysledky-doplneni'!$C$7:$L$126,9,0) -> 0 | K130: =VLOOKUP($B130,'Vysledky-doplneni'!$C$7:$L$126,10,0) -> 0 | M130: 0 | O130: 0
A131: =IF(Vstup!C127<>"",Vstup!B127,"") ->  | B131: =IF(Vstup!C127<>"",Vstup!C127,"") ->  | C131: =IF(Vstup!C127<>"",Vstup!D127,"") ->  | D131: =VLOOKUP($B131,'Vysledky-doplneni'!$C$7:$L$126,3,0) -> 0 | E131: =VLOOKUP($B131,'Vysledky-doplneni'!$C$7:$L$126,4,0) -> 0 | F131: =VLOOKUP($B131,'Vysledky-doplneni'!$C$7:$L$126,5,0) -> 0 | G131: =VLOOKUP($B131,'Vysledky-doplneni'!$C$7:$L$126,6,0) -> 0 | H131: =VLOOKUP($B131,'Vysledky-doplneni'!$C$7:$L$126,7,0) -> 0 | I131: =VLOOKUP($B131,'Vysledky-doplneni'!$C$7:$L$126,8,0) -> 0 | J131: =VLOOKUP($B131,'Vysledky-doplneni'!$C$7:$L$126,9,0) -> 0 | K131: =VLOOKUP($B131,'Vysledky-doplneni'!$C$7:$L$126,10,0) -> 0 | M131: 0 | O131: 0
A132: =IF(Vstup!C128<>"",Vstup!B128,"") ->  | B132: =IF(Vstup!C128<>"",Vstup!C128,"") ->  | C132: =IF(Vstup!C128<>"",Vstup!D128,"") ->  | D132: =VLOOKUP($B132,'Vysledky-doplneni'!$C$7:$L$126,3,0) -> 0 | E132: =VLOOKUP($B132,'Vysledky-doplneni'!$C$7:$L$126,4,0) -> 0 | F132: =VLOOKUP($B132,'Vysledky-doplneni'!$C$7:$L$126,5,0) -> 0 | G132: =VLOOKUP($B132,'Vysledky-doplneni'!$C$7:$L$126,6,0) -> 0 | H132: =VLOOKUP($B132,'Vysledky-doplneni'!$C$7:$L$126,7,0) -> 0 | I132: =VLOOKUP($B132,'Vysledky-doplneni'!$C$7:$L$126,8,0) -> 0 | J132: =VLOOKUP($B132,'Vysledky-doplneni'!$C$7:$L$126,9,0) -> 0 | K132: =VLOOKUP($B132,'Vysledky-doplneni'!$C$7:$L$126,10,0) -> 0 | M132: 0 | O132: 0
D133: =SUM(D8:D132)/(Data!$C$14*20) -> 75.3% | E133: =SUM(E8:E132)/(Data!$C$14*20) -> 57.5% | F133: =SUM(F8:F132)/(Data!$C$14*20) -> 71.7% | G133: =SUM(G8:G132)/(Data!$C$14*20) -> 69.7% | H133: =SUM(H8:H132)/(Data!$C$14*20) -> 65.5% | I133: =SUM(I8:I132)/(Data!$C$14*20) -> 45.7% | J133: =SUM(J8:J132)/(Data!$C$14*20) -> 63.9% | K133: =SUM(K8:K132)/(Data!$C$14*20) -> 66.3%

Sheet ASAT
D1: R O Z D Ě L E N Í D O K A T E G O R I Í P R O R O K 2 0 1 2
C2: ID | D2: Přijmeni | E2: Jméno | G2: Titul | H2: Kat | I2: Datum | J2: 26.3. | K2: 9.4. | L2: 17.4. | M2: 30.4. | N2: 12.6. | O2: 14.5. | P2: 21.5. | Q2: 4.6. | R2: 5.6. | S2: 18.6. | T2: 25.6. | U2: 5.7. | V2: 9.7. | W2: 30.7. | X2: 6.8. | Y2: 13.8. | Z2: 4.9. | AA2: 10.9. | AB2: 8.10. | AC2: Terčů | AD2: Zásahů | AE2: Průměr | AF2: Kategorie
I3: narození | J3: 200 | K3: 200 | L3: 100 | M3: 200 | N3: 100 | O3: 160 | P3: 120 | Q3: 200 | R3: 160 | S3: 200 | T3: 150 | U3: 200 | V3: 150 | W3: 200 | X3: 200 | Y3: 200 | Z3: 160 | AA3: 160 | AB3: 100
A4: =D4&" "&E4&F4 -> Jankovský Jakub | B4: =AF4 -> J | C4: 20637 | D4: Jankovský | E4: Jakub | H4: J | I4: 1992-02-02 | J4: 173 | K4: 163 | L4: 86 | M4: 165 | N4: 91 | Q4: 164 | T4: 132 | U4: 160 | W4: 142 | X4: 151 | Y4: 155 | Z4: 126 | AA4: 123 | AB4: 74 | AC4: =IF(J4,$J$3) +IF(K4,$K$3) +IF(L4,$L$3) +IF(M4,$M$3) +IF(N4,$N$3) +IF(O4,$O$3) +IF(P4,$P$3) +IF(Q4,$Q$3) +IF(R4,$R$3) +IF(S4,$S$3) +IF(T4,$T$3) +IF(U4,$U$3) +IF(V4,$V$3) +IF(W4,$W$3) +IF(X4,$X$3) +IF(Y4,$Y$3) +IF(Z4,$Z$3) +IF(AA4,$AA$3) +IF(AB4,$AB$3) -> 2370 | AD4: =J4+K4+L4+M4+N4+O4+P4+Q4+R4+S4+T4+U4+V4+W4+X4+Y4+Z4+AA4+AB4 -> 1905 | AE4: =IF(AC4=0,0,AD4/AC4) -> 80.38% | AF4: J
A5: =D5&" "&E5&F5 -> Kopáček Radim | B5: =AF5 -> J | D5: Kopáček | E5: Radim | H5: J | AB5: 73 | AC5: 100 | AD5: 73 | AE5: 73.00% | AF5: J
A6: Hřebec Jan ml. | B6: J | D6: Hřebec | E6: Jan | F6: ml. | G6: ml. | H6: J | J6: 141 | K6: 137 | L6: 69 | M6: 131 | N6: 71 | O6: 104 | P6: 88 | R6: 86 | T6: 120 | U6: 127 | V6: 100 | W6: 118 | X6: 144 | Z6: 108 | AA6: 107 | AB6: 73 | AC6: 2560 | AD6: 1724 | AE6: 67.34% | AF6: J
A7: Vaněk Matěj | B7: J | D7: Vaněk | E7: Matěj | H7: J | L7: 63 | M7: 123 | N7: 69 | P7: 77 | Q7: 115 | U7: 114 | W7: 108 | X7: 121 | Y7: 113 | Z7: 103 | AA7: 105 | AC7: 1840 | AD7: 1111 | AE7: 60.38% | AF7: J
A8: Linhart Filip | B8: J | D8: Linhart | E8: Filip | H8: J | S8: 118 | AC8: 200 | AD8: 118 | AE8: 59.00% | AF8: J
A9: Čech Petr | B9: J | C9: 20217 | D9: Čech | E9: Petr | H9: J | AB9: 58 | AC9: 100 | AD9: 58 | AE9: 58.00% | AF9: J
A10: Divíšek Martin ml. | B10: J | C10: 236 | D10: Divíšek | E10: Martin | F10: ml. | G10: ml. | H10: J | L10: 59 | N10: 57 | O10: 57 | P10: 70 | Q10: 102 | R10: 74 | U10: 101 | V10: 81 | X10: 114 | Z10: 80 | AA10: 57 | AC10: 1710 | AD10: 852 | AE10: 49.82% | AF10: J
A11: Mikula Petr | B11: J | D11: Mikula | E11: Petr | H11: J | W11: 67 | AC11: 200 | AD11: 67 | AE11: 33.50% | AF11: J
A12: Ferkl Jan ml. | B12: J | C12: 130 | D12: Ferkl | E12: Jan | F12: ml. | G12: ml. | H12: J | I12: 1994-11-22 | AC12: 0 | AD12: 0 | AE12: 0.00% | AF12: J
A13: Tomeček Jakub | B13: J | C13: 460 | D13: Tomeček | E13: Jakub | H13: J | I13: 1991-05-23 | AC13: 0 | AD13: 0 | AE13: 0.00% | AF13: J
A14: Štenglová Michaela | B14: Ž | D14: Štenglová | E14: Michaela | H14: Ž | L14: 71 | N14: 62 | O14: 71 | Q14: 118 | Z14: 90 | AA14: 75 | AB14: 58 | AC14: 980 | AD14: 545 | AE14: 55.61% | AF14: Ž
A15: Krejzová Vlasta | B15: Ž | D15: Krejzová | E15: Vlasta | H15: Ž | I15: 1959-06-27 | AB15: 54 | AC15: 100 | AD15: 54 | AE15: 54.00% | AF15: Ž
A16: Víchová Anna | B16: Ž | D16: Víchová | E16: Anna | G16: ing. | H16: Ž | X16: 91 | AA16: 49 | AB16: 31 | AC16: 460 | AD16: 171 | AE16: 37.17% | AF16: Ž
A17: Zázvorka Pavel | B17: A | C17: 234 | D17: Zázvorka | E17: Pavel | H17: S | I17: 1962-10-05 | J17: 181 | K17: 174 | L17: 91 | M17: 172 | N17: 89 | P17: 107 | Q17: 179 | R17: 141 | S17: 174 | U17: 173 | W17: 155 | X17: 185 | Y17: 160 | Z17: 137 | AB17: 83 | AC17: 2540 | AD17: 2201 | AE17: 86.65% | AF17: A
A18: Činčera Přemysl | B18: A | C18: 553 | D18: Činčera | E18: Přemysl | H18: S | I18: 1963-10-02 | J18: 169 | K18: 165 | L18: 84 | M18: 160 | N18: 93 | P18: 111 | Q18: 177 | U18: 168 | W18: 160 | X18: 175 | Y18: 167 | AA18: 128 | AB18: 86 | AC18: 2180 | AD18: 1843 | AE18: 84.54% | AF18: A
A19: Můčka Igor | B19: A | C19: 2236 | D19: Můčka | E19: Igor | H19: S | I19: 1967-12-11 | K19: 163 | L19: 89 | N19: 92 | O19: 131 | Q19: 176 | R19: 133 | V19: 121 | W19: 147 | X19: 176 | AB19: 92 | AC19: 1570 | AD19: 1320 | AE19: 84.08% | AF19: A
A20: Špaček Pavel | B20: A | C20: 3769 | D20: Špaček | E20: Pavel | H20: S | K20: 158 | L20: 86 | O20: 131 | Q20: 161 | R20: 124 | T20: 146 | V20: 122 | X20: 177 | Z20: 129 | AB20: 88 | AC20: 1580 | AD20: 1322 | AE20: 83.67% | AF20: A
A21: Rybín Milan | B21: A | C21: 418 | D21: Rybín | E21: Milan | H21: S | I21: 1967-09-11 | J21: 175 | K21: 166 | M21: 172 | N21: 86 | P21: 110 | Q21: 175 | S21: 159 | U21: 168 | X21: 161 | Y21: 165 | AA21: 114 | AC21: 1980 | AD21: 1651 | AE21: 83.38% | AF21: A
A22: Zvolánek Petr | B22: A | C22: 549 | D22: Zvolánek | E22: Petr | H22: S | I22: 1969-12-16 | J22: 176 | K22: 166 | P22: 107 | Q22: 163 | R22: 127 | Z22: 127 | AC22: 1040 | AD22: 866 | AE22: 83.27% | AF22: A
A23: Halouzka Benedikt | B23: A | C23: 125 | D23: Halouzka | E23: Benedikt | H23: S | I23: 1964-04-08 | P23: 99 | X23: 165 | AB23: 85 | AC23: 420 | AD23: 349 | AE23: 83.10% | AF23: A
A24: Hondl František | B24: A | C24: 2572 | D24: Hondl | E24: František | H24: S | I24: 1979-07-09 | J24: 171 | K24: 165 | L24: 91 | M24: 161 | N24: 92 | O24: 142 | P24: 109 | Q24: 165 | R24: 110 | U24: 169 | W24: 157 | X24: 160 | Z24: 129 | AA24: 134 | AB24: 89 | AC24: 2460 | AD24: 2044 | AE24: 83.09% | AF24: A
A25: Borák Ondřej | B25: A | C25: 318 | D25: Borák | E25: Ondřej | H25: S | I25: 1982-09-17 | N25: 77 | T25: 130 | AC25: 250 | AD25: 207 | AE25: 82.80% | AF25: A
A26: Němeček Josef | B26: A | C26: 432 | D26: Němeček | E26: Josef | H26: S | I26: 1971-01-30 | O26: 128 | T26: 128 | V26: 129 | X26: 161 | AC26: 660 | AD26: 546 | AE26: 82.73% | AF26: A
A27: Pluczinski Marcin | B27: A | C27: 433 | D27: Pluczinski | E27: Marcin | H27: S | L27: 79 | T27: 125 | X27: 178 | AB27: 72 | AC27: 550 | AD27: 454 | AE27: 82.55% | AF27: A
A28: Halouzka Lukáš | B28: A | C28: 2831 | D28: Halouzka | E28: Lukáš | H28: S | V28: 123 | AC28: 150 | AD28: 123 | AE28: 82.00% | AF28: A
A29: Jarolím Zdeněk | B29: A | C29: 132 | D29: Jarolím | E29: Zdeněk | H29: S | V29: 122 | AC29: 150 | AD29: 122 | AE29: 81.33% | AF29: A
A30: Divíšek Martin | B30: A | C30: 537 | D30: Divíšek | E30: Martin | G30: ing. | H30: S | I30: 1968-08-27 | J30: 166 | K30: 168 | L30: 87 | M30: 167 | N30: 88 | O30: 113 | P30: 98 | Q30: 155 | R30: 133 | S30: 162 | T30: 119 | U30: 166 | V30: 127 | W30: 139 | X30: 157 | Y30: 164 | Z30: 136 | AA30: 132 | AB30: 88 | AC30: 3160 | AD30: 2565 | AE30: 81.17% | AF30: A
A31: Rykr Eduard | B31: A | C31: 2966 | D31: Rykr | E31: Eduard | H31: S | I31: 1962-01-28 | L31: 78 | M31: 161 | N31: 88 | AB31: 78 | AC31: 500 | AD31: 405 | AE31: 81.00% | AF31: A
A32: Kaprálek Michal | B32: A | C32: 2052 | D32: Kaprálek | E32: Michal | H32: S | I32: 1974-05-20 | L32: 81 | AC32: 100 | AD32: 81 | AE32: 81.00% | AF32: A
A33: Kroupa Roman | B33: A | C33: 3961 | D33: Kroupa | E33: Roman | H33: S | J33: 166 | K33: 154 | M33: 162 | P33: 101 | AC33: 720 | AD33: 583 | AE33: 80.97% | AF33: A
A34: Michálek Lubomír | B34: A | C34: 4184 | D34: Michálek | E34: Lubomír | H34: S | I34: 1967-03-10 | J34: 162 | K34: 155 | M34: 154 | O34: 141 | Q34: 159 | R34: 124 | T34: 126 | U34: 167 | V34: 125 | W34: 146 | X34: 178 | AA34: 124 | AC34: 2180 | AD34: 1761 | AE34: 80.78% | AF34: A
A35: Mácha Karel | B35: A | D35: Mácha | E35: Karel | H35: S | I35: 1968-10-25 | L35: 78 | N35: 78 | P35: 101 | AC35: 320 | AD35: 257 | AE35: 80.31% | AF35: A
A36: Hlaváček Václav | B36: A | C36: 359 | D36: Hlaváček | E36: Václav | H36: S | I36: 1975-07-21 | N36: 80 | AC36: 100 | AD36: 80 | AE36: 80.00% | AF36: A
A37: Hřebec Jan | B37: A | C37: 1755 | D37: Hřebec | E37: Jan | H37: S | J37: 156 | K37: 149 | L37: 81 | M37: 157 | N37: 84 | O37: 128 | P37: 110 | R37: 119 | T37: 132 | U37: 164 | V37: 125 | W37: 147 | X37: 170 | Y37: 152 | Z37: 134 | AA37: 119 | AB37: 80 | AC37: 2760 | AD37: 2207 | AE37: 79.96% | AF37: A
A38: Jankovský Miroslav | B38: A | C38: 3198 | D38: Jankovský | E38: Miroslav | G38: Ing. | H38: S | I38: 1963-11-22 | K38: 167 | L38: 91 | M38: 150 | N38: 86 | O38: 118 | P38: 101 | Q38: 158 | T38: 110 | U38: 162 | W38: 145 | X38: 164 | Y38: 163 | Z38: 130 | AA38: 123 | AB38: 86 | AC38: 2450 | AD38: 1954 | AE38: 79.76% | AF38: A
A39: Podsedník Ladislav | B39: A | C39: 822 | D39: Podsedník | E39: Ladislav | H39: S | X39: 158 | AC39: 200 | AD39: 158 | AE39: 79.00% | AF39: A
A40: Škanta Marek | B40: A | C40: 2977 | D40: Škanta | E40: Marek | H40: S | I40: 1973-01-31 | K40: 152 | M40: 158 | N40: 89 | Q40: 144 | U40: 160 | X40: 160 | Y40: 165 | AB40: 76 | AC40: 1400 | AD40: 1104 | AE40: 78.86% | AF40: A
A41: Kobes Jan | B41: A | C41: 381 | D41: Kobes | E41: Jan | H41: S | I41: 1973-07-17 | M41: 157 | AC41: 200 | AD41: 157 | AE41: 78.50% | AF41: A
A42: Kadlec Miroslav | B42: A | C42: 213 | D42: Kadlec | E42: Miroslav | G42: Ing. | H42: S | I42: 1983-10-06 | L42: 78 | N42: 78 | AC42: 200 | AD42: 156 | AE42: 78.00% | AF42: A
A43: Kopáček Pavel | B43: A | C43: 2967 | D43: Kopáček | E43: Pavel | H43: S | N43: 78 | AC43: 100 | AD43: 78 | AE43: 78.00% | AF43: A
A44: Novák Libor | B44: A | C44: 1024 | D44: Novák | E44: Libor | H44: S | I44: 1975-05-23 | J44: 159 | K44: 153 | M44: 157 | P44: 109 | Q44: 157 | R44: 117 | U44: 157 | W44: 139 | Z44: 123 | AA44: 128 | AB44: 80 | AC44: 1900 | AD44: 1479 | AE44: 77.84% | AF44: A
A45: Čechura Martin | B45: A | C45: 551 | D45: Čechura | E45: Martin | H45: S | I45: 1966-08-05 | J45: 168 | K45: 150 | M45: 155 | P45: 81 | U45: 161 | AC45: 920 | AD45: 715 | AE45: 77.72% | AF45: A
A46: Pápeš Milan | B46: A | C46: 1051 | D46: Pápeš | E46: Milan | H46: S | I46: 1970-03-13 | L46: 77 | AC46: 100 | AD46: 77 | AE46: 77.00% | AF46: A
A47: Černošek Milan | B47: A | C47: 655 | D47: Černošek | E47: Milan | G47: Ing. | H47: S | I47: 1964-05-13 | L47: 79 | M47: 135 | N47: 81 | O47: 120 | R47: 120 | S47: 151 | T47: 120 | U47: 154 | V47: 124 | W47: 141 | X47: 162 | AB47: 85 | AC47: 1920 | AD47: 1472 | AE47: 76.67% | AF47: A
A48: Vranka Petr | B48: A | D48: Vranka | E48: Petr | H48: S | L48: 82 | S48: 150 | X48: 149 | AB48: 79 | AC48: 600 | AD48: 460 | AE48: 76.67% | AF48: A
A49: Kotrc Karel | B49: A | C49: 3639 | D49: Kotrc | E49: Karel | H49: S | I49: 1960-12-10 | J49: 163 | R49: 112 | AC49: 360 | AD49: 275 | AE49: 76.39% | AF49: A
A50: Stanislav Tomáš | B50: A | C50: 826 | D50: Stanislav | E50: Tomáš | H50: S | I50: 1971-02-26 | J50: 151 | K50: 150 | L50: 84 | M50: 154 | N50: 89 | Q50: 148 | R50: 108 | V50: 114 | X50: 153 | AB50: 78 | AC50: 1610 | AD50: 1229 | AE50: 76.34% | AF50: A
A51: Vrbas Josef | B51: A | C51: 20526 | D51: Vrbas | E51: Josef | H51: S | I51: 1962-09-16 | AB51: 76 | AC51: 100 | AD51: 76 | AE51: 76.00% | AF51: A
A52: Vrzáň Josef ml. | B52: A | C52: 20219 | D52: Vrzáň | E52: Josef | F52: ml. | G52: ml. | H52: S | I52: 1978-06-23 | J52: 158 | Z52: 115 | AC52: 360 | AD52: 273 | AE52: 75.83% | AF52: A
A53: Salaj Josef | B53: A | C53: 131 | D53: Salaj | E53: Josef | H53: S | I53: 1962-07-05 | K53: 152 | L53: 79 | O53: 122 | Q53: 158 | R53: 106 | V53: 115 | X53: 149 | AB53: 81 | AC53: 1270 | AD53: 962 | AE53: 75.75% | AF53: A
A54: Štengl Jiří | B54: A | C54: 820 | D54: Štengl | E54: Jiří | H54: S | I54: 1969-08-31 | J54: 152 | K54: 163 | L54: 85 | M54: 154 | N54: 88 | O54: 112 | P54: 95 | Q54: 168 | R54: 114 | U54: 159 | W54: 116 | X54: 139 | Y54: 140 | Z54: 134 | AA54: 119 | AB54: 76 | AC54: 2660 | AD54: 2014 | AE54: 75.71% | AF54: A
A55: Zigo Martin | B55: A | C55: 20514 | D55: Zigo | E55: Martin | H55: S | I55: 1971-12-29 | J55: 167 | K55: 137 | L55: 74 | N55: 83 | O55: 110 | R55: 115 | T55: 123 | V55: 114 | AB55: 76 | AC55: 1320 | AD55: 999 | AE55: 75.68% | AF55: A
A56: Mrhálek Karel | B56: A | C56: 817 | D56: Mrhálek | E56: Karel | H56: S | I56: 1960-06-27 | O56: 112 | T56: 121 | AC56: 310 | AD56: 233 | AE56: 75.16% | AF56: A
A57: Vaňáč Václav | B57: A | C57: 3614 | D57: Vaňáč | E57: Václav | H57: S | I57: 1961-01-18 | K57: 159 | M57: 149 | R57: 124 | W57: 139 | AC57: 760 | AD57: 571 | AE57: 75.13% | AF57: A
A58: Musil Zdeněk | B58: A | D58: Musil | E58: Zdeněk | H58: S | I58: 1972-08-23 | L58: 73 | N58: 82 | P58: 87 | V58: 117 | X58: 147 | AB58: 72 | AC58: 770 | AD58: 578 | AE58: 75.06% | AF58: A
A59: Kyliánek Petr | B59: A | D59: Kyliánek | E59: Petr | H59: S | I59: 1971-05-11 | AC59: 0 | AD59: 0 | AE59: 0.00% | AF59: A
A60: Staněk Josef | B60: A | C60: 709 | D60: Staněk | E60: Josef | H60: S | I60: 1970-03-13 | AC60: 0 | AD60: 0 | AE60: 0.00% | AF60: A
A61: Vaněk Roman | B61: B | C61: 427 | D61: Vaněk | E61: Roman | H61: S | I61: 1972-02-24 | J61: 158 | L61: 79 | M61: 150 | N61: 65 | P61: 91 | Q61: 141 | U61: 157 | W61: 133 | X61: 176 | Y61: 134 | AC61: 1720 | AD61: 1284 | AE61: 74.65% | AF61: B
A62: Molnár Anton | B62: B | C62: 3317 | D62: Molnár | E62: Anton | G62: Ing. | H62: S | K62: 143 | L62: 73 | M62: 145 | S62: 154 | T62: 120 | V62: 111 | AC62: 1000 | AD62: 746 | AE62: 74.60% | AF62: B
A63: Kamiňski Marcin | B63: B | D63: Kamiňski | E63: Marcin | H63: S | L63: 73 | T63: 109 | AB63: 79 | AC63: 350 | AD63: 261 | AE63: 74.57% | AF63: B
A64: Vlček Martin | B64: B | C64: 200 | D64: Vlček | E64: Martin | H64: s | N64: 76 | P64: 91 | AB64: 71 | AC64: 320 | AD64: 238 | AE64: 74.38% | AF64: B
A65: Hrouda Josef | B65: B | C65: 20056 | D65: Hrouda | E65: Josef | H65: S | I65: 1970-03-14 | O65: 119 | AC65: 160 | AD65: 119 | AE65: 74.38% | AF65: B
A66: Někoranec Igor | B66: B | C66: 2787 | D66: Někoranec | E66: Igor | H66: S | L66: 77 | S66: 145 | T66: 116 | AB66: 71 | AC66: 550 | AD66: 409 | AE66: 74.36% | AF66: B
A67: Husar Vladimir | B67: B | D67: Husar | E67: Vladimir | H67: S | I67: 1973-03-13 | J67: 152 | K67: 158 | L67: 75 | M67: 147 | N67: 69 | O67: 112 | P67: 95 | Q67: 143 | R67: 115 | S67: 125 | T67: 138 | W67: 145 | X67: 154 | Y67: 151 | Z67: 115 | AA67: 118 | AB67: 76 | AC67: 2810 | AD67: 2088 | AE67: 74.31% | AF67: B
A68: Buda Dušan | B68: B | C68: 2186 | D68: Buda | E68: Dušan | G68: Ing. | H68: S | T68: 123 | AB68: 62 | AC68: =IF(J68,$J$3) +IF(K68,$K$3) +IF(L68,$L$3) +IF(M68,$M$3) +IF(N68,$N$3) +IF(O68,$O$3) +IF(P68,$P$3) +IF(Q68,$Q$3) +IF(R68,$R$3) +IF(S68,$S$3) +IF(T68,$T$3) +IF(U68,$U$3) +IF(V68,$V$3) +IF(W68,$W$3) +IF(X68,$X$3) +IF(Y68,$Y$3) +IF(Z68,$Z$3) +IF(AA68,$AA$3) +IF(AB68,$AB$3) -> 250 | AD68: =J68+K68+L68+M68+N68+O68+P68+Q68+R68+S68+T68+U68+V68+W68+X68+Y68+Z68+AA68+AB68 -> 185 | AE68: =IF(AC68=0,0,AD68/AC68) -> 74.00% | AF68: B
A69: =D69&" "&E69&F69 -> Minář Jaroslav | B69: =AF69 -> B | C69: 1017 | D69: Minář | E69: Jaroslav | H69: S | X69: 148 | AC69: 200 | AD69: 148 | AE69: 74.00% | AF69: B
A70: Staněk Karel | B70: B | C70: 2247 | D70: Staněk | E70: Karel | H70: S | I70: 1981-04-13 | N70: 74 | AC70: 100 | AD70: 74 | AE70: 74.00% | AF70: B
A71: Koloc Martin | B71: B | C71: 20599 | D71: Koloc | E71: Martin | G71: Ing. | H71: S | I71: 1961-07-10 | L71: 75 | N71: 81 | P71: 95 | Q71: 149 | U71: 137 | Z71: 114 | AA71: 112 | AB71: 79 | AC71: 1140 | AD71: 842 | AE71: 73.86% | AF71: B
A72: Komárek Josef | B72: B | C72: 336 | D72: Komárek | E72: Josef | H72: S | I72: 1972-04-02 | J72: 159 | K72: 147 | L72: 76 | M72: 138 | N72: 78 | O72: 104 | R72: 113 | S72: 141 | U72: 141 | V72: 116 | X72: 163 | AC72: 1870 | AD72: 1376 | AE72: 73.58% | AF72: B
A73: Pandula Ivan | B73: B | D73: Pandula | E73: Ivan | G73: Ing. | H73: S | O73: 105 | S73: 142 | T73: 118 | V73: 116 | AB73: 78 | AC73: 760 | AD73: 559 | AE73: 73.55% | AF73: B
A74: Škrna Jiří | B74: B | C74: 20635 | D74: Škrna | E74: Jiří | H74: S | J74: 147 | AC74: 200 | AD74: 147 | AE74: 73.50% | AF74: B
A75: Honz Petr | B75: B | C75: 4044 | D75: Honz | E75: Petr | G75: Ing. | H75: S | I75: 1965-08-25 | J75: 159 | K75: 150 | L75: 80 | M75: 152 | N75: 80 | O75: 97 | P75: 92 | Q75: 137 | R75: 98 | Y75: 161 | AA75: 112 | AB75: 78 | AC75: 1900 | AD75: 1396 | AE75: 73.47% | AF75: B
A76: Štícha Lubomír | B76: B | C76: 2661 | D76: Štícha | E76: Lubomír | H76: S | J76: 146 | K76: 156 | L76: 85 | M76: 150 | N76: 81 | O76: 114 | P76: 79 | Q76: 146 | R76: 115 | S76: 131 | V76: 119 | W76: 130 | Z76: 115 | AA76: 116 | AB76: 84 | AC76: 2410 | AD76: 1767 | AE76: 73.32% | AF76: B
A77: Bejček Václav ml. | B77: B | C77: 3113 | D77: Bejček | E77: Václav ml. | H77: S | Z77: 117 | AC77: 160 | AD77: 117 | AE77: 73.13% | AF77: B
A78: Fojt Martin | B78: B | C78: 2178 | D78: Fojt | E78: Martin | G78: Ing. | H78: S | I78: 1979-09-10 | L78: 77 | P78: 87 | AB78: 69 | AC78: 320 | AD78: 233 | AE78: 72.81% | AF78: B
A79: Divíšek Tomáš | B79: B | C79: 3102 | D79: Divíšek | E79: Tomáš | H79: S | I79: 1973-02-26 | L79: 76 | N79: 76 | O79: 104 | P79: 100 | U79: 145 | V79: 110 | X79: 151 | Z79: 112 | AA79: 106 | AC79: 1350 | AD79: 980 | AE79: 72.59% | AF79: B
A80: Hruška Pavel | B80: B | C80: 2777 | D80: Hruška | E80: Pavel | H80: S | I80: 1961-04-23 | N80: 75 | O80: 102 | S80: 133 | X80: 169 | AC80: 660 | AD80: 479 | AE80: 72.58% | AF80: B
A81: Kytlica Vilém | B81: B | C81: 3719 | D81: Kytlica | E81: Vilém | H81: S | J81: 145 | AC81: 200 | AD81: 145 | AE81: 72.50% | AF81: B
A82: Lengyel Jan | B82: B | C82: 20388 | D82: Lengyel | E82: Jan | H82: S | I82: 1988-07-24 | P82: 91 | R82: 121 | S82: 156 | U82: 152 | W82: 126 | AB82: 64 | AC82: 980 | AD82: 710 | AE82: 72.45% | AF82: B
A83: Potůček Jaroslav | B83: B | C83: 3826 | D83: Potůček | E83: Jaroslav | H83: S | I83: 1974-10-18 | L83: 88 | N83: 79 | Q83: 139 | AA83: 101 | AB83: 69 | AC83: 660 | AD83: 476 | AE83: 72.12% | AF83: B
A84: Babický Jiří | B84: B | C84: 20337 | D84: Babický | E84: Jiří | H84: S | I84: 1966-04-10 | N84: 72 | AC84: 100 | AD84: 72 | AE84: 72.00% | AF84: B
A85: Hertl Igor | B85: B | D85: Hertl | E85: Igor | H85: S | O85: 105 | S85: 135 | T85: 117 | V85: 117 | Z85: 116 | AC85: 820 | AD85: 590 | AE85: 71.95% | AF85: B
A86: Lengyel Ivan | B86: B | C86: 3810 | D86: Lengyel | E86: Ivan | G86: Ing. | H86: S | I86: 1961-10-24 | P86: 95 | R86: 112 | S86: 148 | W86: 134 | AC86: 680 | AD86: 489 | AE86: 71.91% | AF86: B
A87: Ornst Milan | B87: B | C87: 20572 | D87: Ornst | E87: Milan | G87: Ing. | H87: S | I87: 1960-07-02 | P87: 86 | AC87: 120 | AD87: 86 | AE87: 71.67% | AF87: B
A88: Beneš Jan | B88: B | C88: 1966 | D88: Beneš | E88: Jan | H88: S | I88: 1968-12-05 | J88: 163 | K88: 141 | M88: 147 | O88: 96 | T88: 110 | V88: 106 | AB88: 67 | AC88: 1160 | AD88: 830 | AE88: 71.55% | AF88: B
A89: Neuvirt Martin | B89: B | C89: 3194 | D89: Neuvirt | E89: Martin | H89: S | I89: 1978-08-08 | J89: 127 | K89: 134 | L89: 71 | M89: 158 | P89: 90 | Q89: 149 | R89: 88 | S89: 153 | U89: 147 | W89: 126 | Y89: 151 | Z89: 116 | AA89: 115 | AB89: 81 | AC89: 2400 | AD89: 1706 | AE89: 71.08% | AF89: B
A90: Pučálka Karel | B90: B | C90: 20364 | D90: Pučálka | E90: Karel | H90: S | I90: 1975-09-14 | L90: 81 | AB90: 61 | AC90: 200 | AD90: 142 | AE90: 71.00% | AF90: B
A91: Chrudimský Petr | B91: B | C91: 20576 | D91: Chrudimský | E91: Petr | H91: S | I91: 1970-08-05 | N91: 71 | AC91: 100 | AD91: 71 | AE91: 71.00% | AF91: B
A92: Pospíšil Stanislav | B92: B | C92: 2143 | D92: Pospíšil | E92: Stanislav | H92: S | S92: 142 | AC92: 200 | AD92: 142 | AE92: 71.00% | AF92: B
A93: Vranka David | B93: B | C93: 371 | D93: Vranka | E93: David | H93: S | L93: 76 | N93: 82 | S93: 134 | V93: 101 | AB93: 68 | AC93: 650 | AD93: 461 | AE93: 70.92% | AF93: B
A94: Mládek Jan | B94: B | C94: 3780 | D94: Mládek | E94: Jan | H94: S | P94: 85 | AC94: 120 | AD94: 85 | AE94: 70.83% | AF94: B
A95: Zíta Ladislav | B95: B | C95: 2806 | D95: Zíta | E95: Ladislav | H95: S | P95: 85 | AC95: 120 | AD95: 85 | AE95: 70.83% | AF95: B
A96: Sokola Bronislav | B96: B | C96: 20102 | D96: Sokola | E96: Bronislav | G96: ing. | H96: S | I96: 1966-06-19 | K96: 145 | M96: 137 | Q96: 161 | R96: 112 | S96: 146 | W96: 124 | Y96: 138 | AB96: 70 | AC96: 1460 | AD96: 1033 | AE96: 70.75% | AF96: B
A97: Bělík Michal | B97: B | C97: 648 | D97: Bělík | E97: Michal | H97: S | I97: 1977-08-16 | L97: 74 | N97: 65 | AB97: 73 | AC97: 300 | AD97: 212 | AE97: 70.67% | AF97: B
A98: Stránský Lukáš | B98: B | C98: 1809 | D98: Stránský | E98: Lukáš | H98: S | M98: 141 | AC98: 200 | AD98: 141 | AE98: 70.50% | AF98: B
A99: Lengyel Jiří | B99: B | C99: 3499 | D99: Lengyel | E99: Jiří | G99: Ing. | H99: S | I99: 1961-10-24 | P99: 91 | R99: 106 | S99: 139 | V99: 101 | W99: 128 | Z99: 119 | AB99: 80 | AC99: 1090 | AD99: 764 | AE99: 70.09% | AF99: B
A100: Klement Petr | B100: B | C100: 1015 | D100: Klement | E100: Petr | H100: S | AB100: 70 | AC100: 100 | AD100: 70 | AE100: 70.00% | AF100: B
A101: Hertl Rastislav | B101: B | D101: Hertl | E101: Rastislav | H101: S | O101: 106 | S101: 135 | T101: 110 | V101: 113 | X101: 154 | Z101: 95 | AC101: 1020 | AD101: 713 | AE101: 69.90% | AF101: B
A102: Lebloch Vladimír | B102: B | D102: Lebloch | E102: Vladimír | H102: S | S102: 137 | V102: 111 | W102: 131 | X102: 145 | AC102: 750 | AD102: 524 | AE102: 69.87% | AF102: B
A103: Kořínek Jindřich | B103: B | C103: 2116 | D103: Kořínek | E103: Jindřich | G103: Ing. | H103: S | I103: 1960-04-05 | O103: 99 | T103: 117 | AC103: 310 | AD103: 216 | AE103: 69.68% | AF103: B
A104: Staněk Tomáš | B104: B | C104: 20443 | D104: Staněk | E104: Tomáš | H104: S | I104: 1976-05-29 | N104: 79 | P104: 74 | AC104: 220 | AD104: 153 | AE104: 69.55% | AF104: B
A105: Racek Petr | B105: B | D105: Racek | E105: Petr | H105: S | M105: 138 | Q105: 139 | U105: 140 | AC105: 600 | AD105: 417 | AE105: 69.50% | AF105: B
A106: Hnízdil Milan | B106: B | C106: 1899 | D106: Hnízdil | E106: Milan | G106: Ing. | H106: S | I106: 1957-03-04 | S106: 135 | AB106: 73 | AC106: 300 | AD106: 208 | AE106: 69.33% | AF106: B
A107: Kašpar Jiří | B107: B | C107: 2829 | D107: Kašpar | E107: Jiří | G107: Ing. | H107: S | I107: 1965-06-16 | P107: 89 | W107: 126 | Z107: 114 | AB107: 71 | AC107: 580 | AD107: 400 | AE107: 68.97% | AF107: B
A108: Mocek Michal | B108: B | C108: 1200 | D108: Mocek | E108: Michal | H108: S | I108: 1977-06-21 | N108: 77 | U108: 140 | Z108: 100 | AC108: 460 | AD108: 317 | AE108: 68.91% | AF108: B
A109: Vícha Jakub | B109: B | D109: Vícha | E109: Jakub | H109: S | X109: 150 | AA109: 97 | AC109: 360 | AD109: 247 | AE109: 68.61% | AF109: B
A110: Mach Jan | B110: B | C110: 20571 | D110: Mach | E110: Jan | H110: S | M110: 137 | AC110: 200 | AD110: 137 | AE110: 68.50% | AF110: B
A111: Šlechta Martin | B111: B | C111: 2811 | D111: Šlechta | E111: Martin | G111: Ing. | H111: S | I111: 1978-02-09 | N111: 69 | T111: 102 | AC111: 250 | AD111: 171 | AE111: 68.40% | AF111: B
A112: Pacal Antonín | B112: B | C112: 20442 | D112: Pacal | E112: Antonín | H112: S | I112: 1972-01-10 | L112: 71 | N112: 45 | P112: 99 | AB112: 72 | AC112: 420 | AD112: 287 | AE112: 68.33% | AF112: B
A113: Vostárek Jindřich | B113: B | C113: 20386 | D113: Vostárek | E113: Jindřich | H113: S | M113: 135 | U113: 148 | W113: 124 | AC113: 600 | AD113: 407 | AE113: 67.83% | AF113: B
A114: Svoboda Vít | B114: B | C114: 1053 | D114: Svoboda | E114: Vít | H114: S | O114: 96 | T114: 106 | V114: 110 | AC114: 460 | AD114: 312 | AE114: 67.83% | AF114: B
A115: Spanilý Ivo | B115: B | C115: 3406 | D115: Spanilý | E115: Ivo | G115: Ing. | H115: S | I115: 1969-04-27 | L115: 71 | AB115: 63 | AC115: 200 | AD115: 134 | AE115: 67.00% | AF115: B
A116: Pulicar jaroslav | B116: B | C116: 20072 | D116: Pulicar | E116: jaroslav | H116: S | N116: 67 | AC116: 100 | AD116: 67 | AE116: 67.00% | AF116: B
A117: Kaiser Vladimír | B117: B | C117: 4062 | D117: Kaiser | E117: Vladimír | H117: S | J117: 136 | P117: 78 | AC117: 320 | AD117: 214 | AE117: 66.88% | AF117: B
A118: Hýna Roman | B118: B | C118: 375 | D118: Hýna | E118: Roman | H118: S | AA118: 107 | AC118: 160 | AD118: 107 | AE118: 66.88% | AF118: B
A119: Nesiba Josef | B119: B | C119: 739 | D119: Nesiba | E119: Josef | H119: S | I119: 1967-03-05 | P119: 80 | AC119: 120 | AD119: 80 | AE119: 66.67% | AF119: B
A120: Rykr Eduard ml. | B120: B | C120: 4173 | D120: Rykr | E120: Eduard ml. | H120: S | I120: 1989-10-09 | L120: 70 | M120: 133 | N120: 73 | AB120: 57 | AC120: 500 | AD120: 333 | AE120: 66.60% | AF120: B
A121: Zborník Karel | B121: B | C121: 3212 | D121: Zborník | E121: Karel | H121: S | I121: 1969-03-05 | J121: 138 | L121: 71 | N121: 70 | P121: 89 | R121: 97 | V121: 107 | Z121: 110 | AA121: 85 | AB121: 62 | AC121: 1250 | AD121: 829 | AE121: 66.32% | AF121: B
A122: Liška Vladislav | B122: B | C122: 3501 | D122: Liška | E122: Vladislav | H122: S | Z122: 106 | AC122: 160 | AD122: 106 | AE122: 66.25% | AF122: B
A123: Žofka Josef | B123: B | C123: 309 | D123: Žofka | E123: Josef | H123: S | L123: 72 | N123: 73 | R123: 111 | W123: 124 | Z123: 95 | AA123: 104 | AB123: 68 | AC123: 980 | AD123: 647 | AE123: 66.02% | AF123: B
A124: Málek Vlastimil | B124: B | C124: 20573 | D124: Málek | E124: Vlastimil | H124: S | L124: 64 | N124: 70 | AB124: 64 | AC124: 300 | AD124: 198 | AE124: 66.00% | AF124: B
A125: Čech Antonín | B125: B | C125: 383 | D125: Čech | E125: Antonín | H125: S | N125: 66 | AC125: 100 | AD125: 66 | AE125: 66.00% | AF125: B
A126: Červenka Zbyněk | B126: B | C126: 2431 | D126: Červenka | E126: Zbyněk | H126: S | I126: 1988-04-28 | AC126: 0 | AD126: 0 | AE126: 0.00% | AF126: B
A127: Čuda Milan | B127: B | C127: 145 | D127: Čuda | E127: Milan | H127: S | I127: 1974-01-23 | AC127: 0 | AD127: 0 | AE127: 0.00% | AF127: B
A128: Hanuš Jan | B128: B | C128: 2551 | D128: Hanuš | E128: Jan | H128: S | I128: 1970-03-13 | AC128: 0 | AD128: 0 | AE128: 0.00% | AF128: B
A129: Kodeš Václav | B129: B | C129: 20381 | D129: Kodeš | E129: Václav | H129: S | I129: 1962-06-11 | AC129: 0 | AD129: 0 | AE129: 0.00% | AF129: B
A130: Krejza Jan | B130: B | C130: 4032 | D130: Krejza | E130: Jan | H130: S | I130: 1985-08-14 | AC130: 0 | AD130: 0 | AE130: 0.00% | AF130: B
A131: Maruška Jaromír | B131: B | C131: 20389 | D131: Maruška | E131: Jaromír | H131: S | I131: 1976-08-12 | AC131: 0 | AD131: 0 | AE131: 0.00% | AF131: B
A132: Neuman Miloslav | B132: B | C132: 2255 | D132: Neuman | E132: Miloslav | H132: S | I132: 1982-03-16 | AC132: =IF(J132,$J$3) +IF(K132,$K$3) +IF(L132,$L$3) +IF(M132,$M$3) +IF(N132,$N$3) +IF(O132,$O$3) +IF(P132,$P$3) +IF(Q132,$Q$3) +IF(R132,$R$3) +IF(S132,$S$3) +IF(T132,$T$3) +IF(U132,$U$3) +IF(V132,$V$3) +IF(W132,$W$3) +IF(X132,$X$3) +IF(Y132,$Y$3) +IF(Z132,$Z$3) +IF(AA132,$AA$3) +IF(AB132,$AB$3) -> 0 | AD132: =J132+K132+L132+M132+N132+O132+P132+Q132+R132+S132+T132+U132+V132+W132+X132+Y132+Z132+AA132+AB132 -> 0 | AE132: =IF(AC132=0,0,AD132/AC132) -> 0.00% | AF132: B
A133: =D133&" "&E133&F133 -> Steiner Jan | B133: =AF133 -> B | C133: 20525 | D133: Steiner | E133: Jan | H133: S | I133: 1971-03-11 | AC133: 0 | AD133: 0 | AE133: 0.00% | AF133: B
A134: Straka Ladislav | B134: B | C134: 1054 | D134: Straka | E134: Ladislav | H134: S | I134: 1981-04-17 | AC134: 0 | AD134: 0 | AE134: 0.00% | AF134: B
A135: Sysel Tomáš | B135: B | C135: 2227 | D135: Sysel | E135: Tomáš | H135: S | AC135: 0 | AD135: 0 | AE135: 0.00% | AF135: B
A136: Šílený Josef | B136: B | C136: 20384 | D136: Šílený | E136: Josef | H136: S | AC136: 0 | AD136: 0 | AE136: 0.00% | AF136: B
A137: Šindelář Milan | B137: B | C137: 20574 | D137: Šindelář | E137: Milan | H137: S | I137: 1962-10-17 | AC137: 0 | AD137: 0 | AE137: 0.00% | AF137: B
A138: Tomeček Karel | B138: B | C138: 19967 | D138: Tomeček | E138: Karel | H138: S | I138: 1965-07-09 | AC138: 0 | AD138: 0 | AE138: 0.00% | AF138: B
A139: Tůma Martin | B139: B | C139: 20351 | D139: Tůma | E139: Martin | H139: S | AC139: 0 | AD139: 0 | AE139: 0.00% | AF139: B
A140: Valapka Peter | B140: B | C140: 3000 | D140: Valapka | E140: Peter | G140: Ing. | H140: S | I140: 1961-11-14 | AC140: 0 | AD140: 0 | AE140: 0.00% | AF140: B
A141: Žák Josef | B141: B | C141: 3596 | D141: Žák | E141: Josef | H141: S | AC141: 0 | AD141: 0 | AE141: 0.00% | AF141: B
A142: Trepka Jiří | B142: C | C142: 20506 | D142: Trepka | E142: Jiří | H142: S | Z142: 105 | AC142: 160 | AD142: 105 | AE142: 65.63% | AF142: C
A143: Jiráček Zdeněk | B143: C | C143: 3767 | D143: Jiráček | E143: Zdeněk | G143: Ing. | H143: S | I143: 1958-01-07 | J143: 146 | L143: 63 | N143: 70 | O143: 107 | P143: 85 | Q143: 133 | R143: 99 | S143: 129 | V143: 94 | W143: 107 | Z143: 105 | AB143: 73 | AC143: 1850 | AD143: 1211 | AE143: 65.46% | AF143: C
A144: Pražák Petr | B144: C | C144: 3503 | D144: Pražák | E144: Petr | H144: S | I144: 1983-05-15 | N144: 70 | U144: 131 | Z144: 99 | AC144: 460 | AD144: 300 | AE144: 65.22% | AF144: C
A145: Mikulka Peter | B145: C | C145: 20449 | D145: Mikulka | E145: Peter | H145: S | J145: 156 | K145: 137 | L145: 75 | M145: 136 | O145: 98 | P145: 130 | R145: 102 | S145: 13 | T145: 106 | U145: 145 | V145: 107 | W145: 116 | X145: 140 | Y145: 119 | Z145: 107 | AB145: 73 | AC145: 2700 | AD145: 1760 | AE145: 65.19% | AF145: C
A146: Brabec Václav | B146: C | C146: 3428 | D146: Brabec | E146: Václav | H146: S | I146: 1960-07-06 | J146: 129 | M146: 133 | P146: 88 | Z146: 93 | AC146: 680 | AD146: 443 | AE146: 65.15% | AF146: C
A147: Volf Jan | B147: C | C147: 20107 | D147: Volf | E147: Jan | H147: S | O147: 90 | P147: 92 | S147: 130 | AC147: 480 | AD147: 312 | AE147: 65.00% | AF147: C
A148: Vavrečka Michal | B148: C | C148: 4074 | D148: Vavrečka | E148: Michal | H148: S | J148: 143 | K148: 127 | M148: 122 | N148: 70 | O148: 91 | Q148: 128 | T148: 106 | AB148: 58 | AC148: 1310 | AD148: 845 | AE148: 64.50% | AF148: C
A149: Sedláček Jiří | B149: C | C149: 4043 | D149: Sedláček | E149: Jiří | H149: S | Z149: 103 | AC149: 160 | AD149: 103 | AE149: 64.38% | AF149: C
A150: Staněk Tomáš | B150: C | C150: 4156 | D150: Staněk | E150: Tomáš | H150: S | I150: 1979-08-23 | L150: 59 | N150: 69 | AC150: 200 | AD150: 128 | AE150: 64.00% | AF150: C
A151: Vrzáň Josef | B151: C | C151: 351 | D151: Vrzáň | E151: Josef | H151: S | J151: 119 | R151: 109 | AC151: 360 | AD151: 228 | AE151: 63.33% | AF151: C
A152: Miler Vlastimil | B152: C | C152: 20597 | D152: Miler | E152: Vlastimil | H152: S | J152: 122 | S152: 131 | AC152: 400 | AD152: 253 | AE152: 63.25% | AF152: C
A153: Bláha Milan | B153: C | C153: 411 | D153: Bláha | E153: Milan | H153: S | Z153: 101 | AC153: 160 | AD153: 101 | AE153: 63.13% | AF153: C
A154: Tarek Martin | B154: C | C154: 20019 | D154: Tarek | E154: Martin | H154: S | O154: 90 | S154: 117 | T154: 103 | V154: 106 | AC154: 660 | AD154: 416 | AE154: 63.03% | AF154: C
A155: Gregor Aleš | B155: C | C155: 20601 | D155: Gregor | E155: Aleš | H155: S | I155: 1964-07-29 | J155: 125 | L155: 65 | N155: 60 | O155: 87 | T155: 99 | V155: 105 | X155: 130 | AB155: 65 | AC155: =IF(J155,$J$3) +IF(K155,$K$3) +IF(L153,$L$3) +IF(M155,$M$3) +IF(N155,$N$3) +IF(O155,$O$3) +IF(P155,$P$3) +IF(Q155,$Q$3) +IF(R155,$R$3) +IF(S155,$S$3) +IF(T155,$T$3) +IF(U155,$U$3) +IF(V155,$V$3) +IF(W155,$W$3) +IF(X155,$X$3) +IF(Y155,$Y$3) +IF(Z155,$Z$3) +IF(AA155,$AA$3) +IF(AB155,$AB$3) -> 1060 | AD155: =J155+K155+L153+M155+N155+O155+P155+Q155+R155+S155+T155+U155+V155+W155+X155+Y155+Z155+AA155+AB155 -> 671 | AE155: 63.30% | AF155: C
A156: Hildprandt Jan | B156: C | C156: 20034 | D156: Hildprandt | E156: Jan | H156: S | L156: 71 | P156: 78 | T156: 84 | U156: 121 | AB156: 67 | AC156: =IF(J156,$J$3) +IF(K156,$K$3) +IF(L156,$L$3) +IF(M156,$M$3) +IF(N156,$N$3) +IF(O156,$O$3) +IF(P156,$P$3) +IF(Q156,$Q$3) +IF(R156,$R$3) +IF(S156,$S$3) +IF(T156,$T$3) +IF(U156,$U$3) +IF(V156,$V$3) +IF(W156,$W$3) +IF(X156,$X$3) +IF(Y156,$Y$3) +IF(Z156,$Z$3) +IF(AA156,$AA$3) +IF(AB156,$AB$3) -> 670 | AD156: =J156+K156+L156+M156+N156+O156+P156+Q156+R156+S156+T156+U156+V156+W156+X156+Y156+Z156+AA156+AB156 -> 421 | AE156: 62.84% | AF156: C
A157: Bělohlavý Tomáš | B157: C | C157: 20636 | D157: Bělohlavý | E157: Tomáš | H157: S | Z157: 100 | AC157: 160 | AD157: 100 | AE157: 62.50% | AF157: C
A158: Černý Bohuslav | B158: C | C158: 3595 | D158: Černý | E158: Bohuslav | H158: S | I158: 1966-08-22 | Z158: 100 | AC158: 160 | AD158: 100 | AE158: 62.50% | AF158: C
A159: Slovák Zdeněk | B159: C | C159: 20111 | D159: Slovák | E159: Zdeněk | H159: S | J159: 125 | AC159: 200 | AD159: 125 | AE159: 62.50% | AF159: C
A160: Horák František | B160: C | C160: 770 | D160: Horák | E160: František | H160: S | V160: 93 | AC160: 150 | AD160: 93 | AE160: 62.00% | AF160: C
A161: Kupka Přemysl | B161: C | C161: 20350 | D161: Kupka | E161: Přemysl | H161: S | I161: 1979-07-16 | N161: 62 | AC161: 100 | AD161: 62 | AE161: 62.00% | AF161: C
A162: Sahula Vlastimil | B162: C | C162: 20365 | D162: Sahula | E162: Vlastimil | G162: Ing. | H162: S | I162: 1967-02-15 | K162: 117 | L162: 75 | N162: 60 | AA162: 86 | AB162: 70 | AC162: 660 | AD162: 408 | AE162: 61.82% | AF162: C
A163: Novotný Václav | B163: C | D163: Novotný | E163: Václav | H163: S | I163: 1967-12-13 | P163: 74 | AC163: 120 | AD163: 74 | AE163: 61.67% | AF163: C
A164: Schmied Jaroslav | B164: C | C164: 20557 | D164: Schmied | E164: Jaroslav | H164: S | I164: 1960-10-08 | V164: 92 | AC164: 150 | AD164: 92 | AE164: 61.33% | AF164: C
A165: Krška Jan | B165: C | C165: 4160 | D165: Krška | E165: Jan | H165: S | I165: 1972-05-07 | J165: 136 | K165: 124 | M165: 122 | O165: 98 | Q165: 123 | R165: 93 | T165: 103 | V165: 108 | W165: 98 | AA165: 83 | AC165: 1780 | AD165: 1088 | AE165: 61.12% | AF165: C
A166: Gerger Jan | B166: C | C166: 20533 | D166: Gerger | E166: Jan | H166: S | V166: 91 | AC166: 150 | AD166: 91 | AE166: 60.67% | AF166: C
A167: Kirchner Milan | B167: C | C167: 3713 | D167: Kirchner | E167: Milan | H167: S | I167: 1966-11-11 | Z167: 97 | AC167: 160 | AD167: 97 | AE167: 60.63% | AF167: C
A168: Filippi Marcel | B168: C | D168: Filippi | E168: Marcel | H168: S | I168: 1972-11-12 | L168: 62 | N168: 66 | P168: 87 | S168: 112 | W168: 101 | AB168: 69 | AC168: 820 | AD168: 497 | AE168: 60.61% | AF168: C
A169: Dolanský Jan | B169: C | C169: 20370 | D169: Dolanský | E169: Jan | H169: S | I169: 1968-04-04 | J169: 132 | K169: 122 | L169: 64 | N169: 63 | P169: 75 | Q169: 110 | AA169: 83 | AB169: 61 | AC169: 1180 | AD169: 710 | AE169: 60.17% | AF169: C
A170: Pospíšil Lubomír | B170: C | C170: 4058 | D170: Pospíšil | E170: Lubomír | H170: S | T170: 89 | V170: 98 | X170: 113 | AC170: 500 | AD170: 300 | AE170: 60.00% | AF170: C
A171: Steklý Zdeněk | B171: C | C171: 3731 | D171: Steklý | E171: Zdeněk | H171: S | N171: 64 | Z171: 92 | AC171: 260 | AD171: 156 | AE171: 60.00% | AF171: C
A172: Frnoch Milan | B172: C | C172: 20630 | D172: Frnoch | E172: Milan | G172: Ing. | H172: S | I172: 1958-01-14 | R172: 94 | Z172: 97 | AC172: 320 | AD172: 191 | AE172: 59.69% | AF172: C
A173: Weiss Josef | B173: C | C173: 20314 | D173: Weiss | E173: Josef | G173: DiS. | H173: S | I173: 1962-08-19 | J173: 119 | K173: 118 | L173: 63 | AB173: 57 | AC173: 600 | AD173: 357 | AE173: 59.50% | AF173: C
A174: Provázek Rudolf | B174: C | C174: 4159 | D174: Provázek | E174: Rudolf | G174: Ing | H174: S | I174: 1960-10-05 | J174: 113 | P174: 77 | AC174: 320 | AD174: 190 | AE174: 59.38% | AF174: C
A175: Němec Tomáš | B175: C | C175: 20591 | D175: Němec | E175: Tomáš | H175: S | J175: 138 | M175: 116 | U175: 138 | W175: 82 | AC175: 800 | AD175: 474 | AE175: 59.25% | AF175: C
A176: Matoušek Václav | B176: C | C176: 2226 | D176: Matoušek | E176: Václav | G176: Ing | H176: S | I176: 1959-08-12 | L176: 65 | N176: 60 | Z176: 88 | AC176: 360 | AD176: 213 | AE176: 59.17% | AF176: C
A177: Hoštička Eduard | B177: C | C177: 20429 | D177: Hoštička | E177: Eduard | H177: S | I177: 1974-03-29 | J177: 142 | K177: 131 | L177: 63 | M177: 117 | P177: 71 | U177: 135 | W177: 88 | X177: 106 | Y177: 125 | AA177: 74 | AC177: 1780 | AD177: 1052 | AE177: 59.10% | AF177: C
A178: Vala Jiří | B178: C | C178: 20595 | D178: Vala | E178: Jiří | H178: S | L178: 61 | N178: 57 | AB178: 59 | AC178: 300 | AD178: 177 | AE178: 59.00% | AF178: C
A179: Prokop Jiří | B179: C | C179: 20385 | D179: Prokop | E179: Jiří | H179: S | L179: 57 | AB179: 61 | AC179: 200 | AD179: 118 | AE179: 59.00% | AF179: C
A180: Kureš Jan | B180: C | C180: 20472 | D180: Kureš | E180: Jan | H180: S | L180: 52 | N180: 59 | AB180: 65 | AC180: 300 | AD180: 176 | AE180: 58.67% | AF180: C
A181: Kaiser Vladimír | B181: C | C181: 20441 | D181: Kaiser | E181: Vladimír | G181: ml. | H181: S | P181: 70 | AC181: 120 | AD181: 70 | AE181: 58.33% | AF181: C
A182: Korál Petr | B182: C | C182: 20123 | D182: Korál | E182: Petr | H182: S | I182: 1974-01-16 | J182: 119 | K182: 93 | M182: 139 | S182: 123 | U182: 115 | V182: 96 | W182: 97 | Y182: 106 | Z182: 107 | AA182: 90 | AB182: 64 | AC182: 1970 | AD182: 1149 | AE182: 58.32% | AF182: C
A183: Pražák Jan | B183: C | C183: 1935 | D183: Pražák | E183: Jan | H183: S | I183: 1981-09-13 | N183: 58 | AC183: 100 | AD183: 58 | AE183: 58.00% | AF183: C
A184: Valchař Petr | B184: C | C184: 20639 | D184: Valchař | E184: Petr | H184: S | N184: 58 | AC184: 100 | AD184: 58 | AE184: 58.00% | AF184: C
A185: Strnad Josef | B185: C | C185: 20631 | D185: Strnad | E185: Josef | G185: ing. | H185: S | AA185: 92 | AC185: 160 | AD185: 92 | AE185: 57.50% | AF185: C
A186: Duchoň Jakub | B186: C | C186: 20382 | D186: Duchoň | E186: Jakub | H186: S | I186: 1981-05-14 | J186: 115 | L186: 57 | AC186: 300 | AD186: 172 | AE186: 57.33% | AF186: C
A187: Knaizl Tomáš | B187: C | C187: 20594 | D187: Knaizl | E187: Tomáš | H187: S | AB187: 57 | AC187: 100 | AD187: 57 | AE187: 57.00% | AF187: C
A188: Pavlíček Martin | B188: C | D188: Pavlíček | E188: Martin | G188: ing. | H188: S | AB188: 57 | AC188: 100 | AD188: 57 | AE188: 57.00% | AF188: C
A189: Petrůj Zdeněk | B189: C | C189: 751 | D189: Petrůj | E189: Zdeněk | H189: S | N189: 57 | AC189: 100 | AD189: 57 | AE189: 57.00% | AF189: C
A190: Vranák Martin | B190: C | C190: 20467 | D190: Vranák | E190: Martin | H190: S | J190: 113 | K190: 100 | M190: 116 | N190: 66 | Q190: 114 | Y190: 100 | AA190: 97 | AC190: 1260 | AD190: 706 | AE190: 56.03% | AF190: C
A191: Pešek Josef | B191: C | C191: 20358 | D191: Pešek | E191: Josef | H191: S | I191: 1958-03-23 | L191: 56 | AC191: 100 | AD191: 56 | AE191: 56.00% | AF191: C
A192: Petera Adam | B192: C | C192: 20640 | D192: Petera | E192: Adam | H192: S | AB192: 56 | AC192: 100 | AD192: 56 | AE192: 56.00% | AF192: C
A193: Sobotka Jiří | B193: C | C193: 20523 | D193: Sobotka | E193: Jiří | H193: S | AB193: 56 | AC193: 100 | AD193: 56 | AE193: 56.00% | AF193: C
A194: Švára Ondřej | B194: C | C194: 20589 | D194: Švára | E194: Ondřej | H194: S | I194: 1958-01-24 | J194: 141 | O194: 84 | W194: 87 | AC194: 560 | AD194: 312 | AE194: 55.71% | AF194: C
A195: Švec Miloslav | B195: C | C195: 20519 | D195: Švec | E195: Miloslav | H195: S | R195: 89 | AC195: 160 | AD195: 89 | AE195: 55.63% | AF195: C
A196: Němec Vít | B196: C | C196: 20392 | D196: Němec | E196: Vít | H196: S | L196: 55 | N196: 57 | P196: 71 | R196: 78 | AC196: 480 | AD196: 261 | AE196: =IF(AC196=0,0,AD196/AC196) -> 54.38% | AF196: C
A197: =D197&" "&E197&F197 -> Sabin Milan | B197: =AF197 -> C | D197: Sabin | E197: Milan | H197: S | O197: 69 | S197: 115 | V197: 90 | AC197: 510 | AD197: 274 | AE197: 53.73% | AF197: C
A198: Šimánek Jaroslav | B198: C | C198: 20520 | D198: Šimánek | E198: Jaroslav | H198: S | I198: 1958-05-08 | O198: 80 | S198: 112 | AC198: 360 | AD198: 192 | AE198: 53.33% | AF198: C
A199: Drahokoupil Jiří | B199: C | C199: 118 | D199: Drahokoupil | E199: Jiří | H199: S | Z199: 84 | AC199: 160 | AD199: 84 | AE199: 52.50% | AF199: C
A200: Hedvik jaromír | B200: C | C200: 20536 | D200: Hedvik | E200: jaromír | H200: s | N200: 50 | O200: 89 | P200: 55 | T200: 80 | V200: 73 | AB200: 52 | AC200: 780 | AD200: 399 | AE200: 51.15% | AF200: C
... 140 more rows

Sheet Data
A1: Druhy závodů : | B1: Počet dnů závodu : | C1: 1 | E1: Názvy linií / střelišť
A2: SPORTING | B2: 1. den : | C2: 8 | D2: střelišť | E2: Linie / střeliště č. 1 : | F2: SKEET I
A3: COMPAK SPORTING | B3: 2. den : | C3: 0 | D3: střelišť | E3: Linie / střeliště č. 2 : | F3: SKEET II
A4: TRAP | B4: 3. den : | C4: 0 | D4: střelišť | E4: Linie / střeliště č. 3 : | F4: TRAP I
A5: SKEET | B5: 4. den : | C5: 0 | D5: střelišť | E5: Linie / střeliště č. 4 : | F5: TRAP II
B6: 5. den : | C6: 0 | D6: střelišť | E6: Linie / střeliště č. 5 : | F6: SKEET I/2
B7: 6. den : | C7: 0 | D7: střelišť | E7: Linie / střeliště č. 6 : | F7: SKEET II/2
B8: Počet střelišť celkem : | C8: 8 | E8: Linie / střeliště č. 7 : | F8: TRAP I/2
E9: Linie / střeliště č. 8 : | F9: TRAP II/2
E10: Linie / střeliště č. 9 :
E11: Linie / střeliště č. 10 :
B14: Počet střelců : | C14: =120-COUNTIF(Vstup!C9:C128,"") -> 38
